Workbook

Sheet Simulatore_Scuola
D1: La tua scuola come comunità energetica rinnovabile
A6: Dati di Input:
A7: Dove si trovano gli utenti della CER?
A9: Simula utenti con potenza contrattuale :
A11: Carica profili medio giornaliero dell'impianto fotovoltaico:
A13: Carica il profilo dell'utente CER che vuoi simulare:
A15: Inserisci il profilo di carico della scuola e premi il pulsante carica:
A16: INSERISCI IL PROFILO DI CONSUMO DELLA SCUOLA | C16: Potenza da instalare | E16: 1 | F16: [kWp]
C17: Membri della CER | E17: 3 | F17: [N.]
A18: Ora 1 | B18: 22.54 | C18: Costo impianto | E18: 150000 | F18: [euro]
A19: Ora 2 | B19: 22.54 | C19: Tasso di intersee | E19: 4 | F19: [%]
A20: Ora 3 | B20: 22.54 | C20: Prezzo vendita energia | E20: 100 | F20: [euro/MWh]
A21: Ora 4 | B21: 22.54 | C21: Prezzo acquisto energia | E21: 150 | F21: [euro/MWh]
A22: Ora 5 | B22: 22.54 | C22: Componente TRASe | E22: 10.57 | F22: [euro/MWh]
A23: Ora 6 | B23: 22.54 | C23: Costo energia elettrica prodotta (da PVGIS) | G23: 0.098 | H23: euro/kWh
A24: Ora 7 | B24: 22.54 | C24: Risultati simulazione energetica
A25: Ora 8 | B25: 22.54 | C25: Energia prodotta dall'impianto fotovoltaico | G25: =Elaborazioni!N3 -> 2301.59875 | H25: kWh/anno
A26: Ora 9 | B26: 32.75 | C26: Energia prelevata dalla scuola | G26: =Elaborazioni!N4 -> 1782.222 | H26: kWh/anno
A27: Ora 10 | B27: 78.53625 | C27: Energia prelevata dagli utenti domestici | G27: =Elaborazioni!N5 -> 5346.666 | H27: kWh/anno
A28: Ora 11 | B28: 85.9025 | C28: Energia autoconsumata dalla scuola | G28: =Elaborazioni!N6 -> 2301.59875 | H28: kWh/anno
A29: Ora 12 | B29: 85.06625 | C29: Energia immessa in rete dall'impianto | G29: =Elaborazioni!N7 -> 0 | H29: kWh/anno
A30: Ora 13 | B30: 84.23 | C30: Energia condivisa nella CER | G30: =Elaborazioni!N8 -> 0 | H30: kWh/anno
A31: Ora 14 | B31: 79.75166667
A32: Ora 15 | B32: 69.18333333 | C32: Risultati simulazione economica
A33: Ora 16 | B33: 47.85856383
A34: Ora 17 | B34: 17.28 | C34: Incentivo CER | G34: =Elaborazioni!N11 -> 0 | H34: euro/anno
A35: Ora 18 | B35: 17.28 | C35: Costi di rete evitati | G35: =Elaborazioni!N12 -> 0 | H35: euro/anno
A36: Ora 19 | B36: 17.28 | C36: Energia venduta alla rete | G36: =Elaborazioni!N13 -> 0 | H36: euro/anno
A37: Ora 20 | B37: 17.28 | C37: Risparmio autoconsumo scuola | G37: =Elaborazioni!N14 -> 345.2398125 | H37: euro/anno
A38: Ora 21 | B38: 17.28 | C38: Totale | G38: =Elaborazioni!N15 -> 345.2398125 | H38: euro/anno
A39: Ora 22 | B39: 17.28 | C39: Costo sostenuto per produrre l'energia | G39: =Elaborazioni!$N$17 -> 225.5566775 | H39: euro/anno
A40: Ora 23 | B40: 17.28 | C40: Tempo di ritorno: | G40: ='Flussi cassa'!C12 -> 26 | H40: anni
A41: Ora 24 | B41: 17.28 | C41: Valore attuale netto: | G41: ='Flussi cassa'!C13 -> -141369.0047 | H41: euro

Sheet Data_PVGIS
A1: Produzione PV_GIS_1kW | B1: Orario | C1: Day-1 | D1: Day-2 | E1: Day-3 | F1: Day-4 | G1: Day-5 | H1: Day-6 | I1: Day-7 | J1: Day-8 | K1: Day-9 | L1: Day-10 | M1: Day-11 | N1: Day-12 | O1: Day-13 | P1: Day-14 | Q1: Day-15 | R1: Day-16 | S1: Day-17 | T1: Day-18 | U1: Day-19 | V1: Day-20 | W1: Day-21 | X1: Day-22 | Y1: Day-23 | Z1: Day-24 | AA1: Day-25 | AB1: Day-26 | AC1: Day-27 | AD1: Day-28 | AE1: Day-29 | AF1: Day-30 | AG1: Day-31 | AH1: Day-32 | AI1: Day-33 | AJ1: Day-34 | AK1: Day-35 | AL1: Day-36 | AM1: Day-37 | AN1: Day-38 | AO1: Day-39 | AP1: Day-40 | AQ1: Day-41 | AR1: Day-42 | AS1: Day-43 | AT1: Day-44 | AU1: Day-45 | AV1: Day-46 | AW1: Day-47 | AX1: Day-48 | AY1: Day-49 | AZ1: Day-50 | BA1: Day-51 | BB1: Day-52 | BC1: Day-53 | BD1: Day-54 | BE1: Day-55 | BF1: Day-56 | BG1: Day-57 | BH1: Day-58 | BI1: Day-59 | BJ1: Day-60 | BK1: Day-61 | BL1: Day-62 | BM1: Day-63 | BN1: Day-64 | BO1: Day-65 | BP1: Day-66 | BQ1: Day-67 | BR1: Day-68 | BS1: Day-69 | BT1: Day-70 | BU1: Day-71 | BV1: Day-72 | BW1: Day-73 | BX1: Day-74 | BY1: Day-75 | BZ1: Day-76 | CA1: Day-77 | CB1: Day-78 | CC1: Day-79 | CD1: Day-80 | CE1: Day-81 | CF1: Day-82 | CG1: Day-83 | CH1: Day-84 | CI1: Day-85 | CJ1: Day-86 | CK1: Day-87 | CL1: Day-88 | CM1: Day-89 | CN1: Day-90 | CO1: Day-91 | CP1: Day-92 | CQ1: Day-93 | CR1: Day-94 | CS1: Day-95 | CT1: Day-96 | CU1: Day-97 | CV1: Day-98 | CW1: Day-99 | CX1: Day-100 | CY1: Day-101 | CZ1: Day-102 | DA1: Day-103 | DB1: Day-104 | DC1: Day-105 | DD1: Day-106 | DE1: Day-107 | DF1: Day-108 | DG1: Day-109 | DH1: Day-110 | DI1: Day-111 | DJ1: Day-112 | DK1: Day-113 | DL1: Day-114 | DM1: Day-115 | DN1: Day-116 | DO1: Day-117 | DP1: Day-118 | DQ1: Day-119 | DR1: Day-120 | DS1: Day-121 | DT1: Day-122 | DU1: Day-123 | DV1: Day-124 | DW1: Day-125 | DX1: Day-126 | DY1: Day-127 | DZ1: Day-128 | EA1: Day-129 | EB1: Day-130 | EC1: Day-131 | ED1: Day-132 | EE1: Day-133 | EF1: Day-134 | EG1: Day-135 | EH1: Day-136 | EI1: Day-137 | EJ1: Day-138 | EK1: Day-139 | EL1: Day-140 | EM1: Day-141 | EN1: Day-142 | EO1: Day-143 | EP1: Day-144 | EQ1: Day-145 | ER1: Day-146 | ES1: Day-147 | ET1: Day-148 | EU1: Day-149 | EV1: Day-150 | EW1: Day-151 | EX1: Day-152 | EY1: Day-153 | EZ1: Day-154 | FA1: Day-155 | FB1: Day-156 | FC1: Day-157 | FD1: Day-158 | FE1: Day-159 | FF1: Day-160 | FG1: Day-161 | FH1: Day-162 | FI1: Day-163 | FJ1: Day-164 | FK1: Day-165 | FL1: Day-166 | FM1: Day-167 | FN1: Day-168 | FO1: Day-169 | FP1: Day-170 | FQ1: Day-171 | FR1: Day-172 | FS1: Day-173 | FT1: Day-174 | FU1: Day-175 | FV1: Day-176 | FW1: Day-177 | FX1: Day-178 | FY1: Day-179 | FZ1: Day-180 | GA1: Day-181 | GB1: Day-182 | GC1: Day-183 | GD1: Day-184 | GE1: Day-185 | GF1: Day-186 | GG1: Day-187 | GH1: Day-188 | GI1: Day-189 | GJ1: Day-190 | GK1: Day-191 | GL1: Day-192 | GM1: Day-193 | GN1: Day-194 | GO1: Day-195 | GP1: Day-196 | GQ1: Day-197 | GR1: Day-198 | GS1: Day-199 | GT1: Day-200 | GU1: Day-201 | GV1: Day-202 | GW1: Day-203 | GX1: Day-204 | GY1: Day-205 | GZ1: Day-206 | HA1: Day-207 | HB1: Day-208 | HC1: Day-209 | HD1: Day-210 | HE1: Day-211 | HF1: Day-212 | HG1: Day-213 | HH1: Day-214 | HI1: Day-215 | HJ1: Day-216 | HK1: Day-217 | HL1: Day-218 | HM1: Day-219 | HN1: Day-220 | HO1: Day-221 | HP1: Day-222 | HQ1: Day-223 | HR1: Day-224 | HS1: Day-225 | HT1: Day-226 | HU1: Day-227 | HV1: Day-228 | HW1: Day-229 | HX1: Day-230 | HY1: Day-231 | HZ1: Day-232 | IA1: Day-233 | IB1: Day-234 | IC1: Day-235 | ID1: Day-236 | IE1: Day-237 | IF1: Day-238 | IG1: Day-239 | IH1: Day-240 | II1: Day-241 | IJ1: Day-242 | IK1: Day-243 | IL1: Day-244 | IM1: Day-245 | IN1: Day-246 | IO1: Day-247 | IP1: Day-248 | IQ1: Day-249 | IR1: Day-250 | IS1: Day-251 | IT1: Day-252 | IU1: Day-253 | IV1: Day-254 | IW1: Day-255 | IX1: Day-256 | IY1: Day-257 | IZ1: Day-258 | JA1: Day-259 | JB1: Day-260 | JC1: Day-261 | JD1: Day-262 | JE1: Day-263 | JF1: Day-264 | JG1: Day-265 | JH1: Day-266 | JI1: Day-267 | JJ1: Day-268 | JK1: Day-269 | JL1: Day-270 | JM1: Day-271 | JN1: Day-272 | JO1: Day-273 | JP1: Day-274 | JQ1: Day-275 | JR1: Day-276 | JS1: Day-277 | JT1: Day-278 | JU1: Day-279 | JV1: Day-280 | JW1: Day-281 | JX1: Day-282 | JY1: Day-283 | JZ1: Day-284 | KA1: Day-285 | KB1: Day-286 | KC1: Day-287 | KD1: Day-288 | KE1: Day-289 | KF1: Day-290 | KG1: Day-291 | KH1: Day-292 | KI1: Day-293 | KJ1: Day-294 | KK1: Day-295 | KL1: Day-296 | KM1: Day-297 | KN1: Day-298 | KO1: Day-299 | KP1: Day-300 | KQ1: Day-301 | KR1: Day-302 | KS1: Day-303 | KT1: Day-304 | KU1: Day-305 | KV1: Day-306 | KW1: Day-307 | KX1: Day-308 | KY1: Day-309 | KZ1: Day-310 | LA1: Day-311 | LB1: Day-312 | LC1: Day-313 | LD1: Day-314 | LE1: Day-315 | LF1: Day-316 | LG1: Day-317 | LH1: Day-318 | LI1: Day-319 | LJ1: Day-320 | LK1: Day-321 | LL1: Day-322 | LM1: Day-323 | LN1: Day-324 | LO1: Day-325 | LP1: Day-326 | LQ1: Day-327 | LR1: Day-328 | LS1: Day-329 | LT1: Day-330 | LU1: Day-331 | LV1: Day-332 | LW1: Day-333 | LX1: Day-334 | LY1: Day-335 | LZ1: Day-336 | MA1: Day-337 | MB1: Day-338 | MC1: Day-339 | MD1: Day-340 | ME1: Day-341 | MF1: Day-342 | MG1: Day-343 | MH1: Day-344 | MI1: Day-345 | MJ1: Day-346 | MK1: Day-347 | ML1: Day-348 | MM1: Day-349 | MN1: Day-350 | MO1: Day-351 | MP1: Day-352 | MQ1: Day-353 | MR1: Day-354 | MS1: Day-355 | MT1: Day-356 | MU1: Day-357 | MV1: Day-358 | MW1: Day-359 | MX1: Day-360 | MY1: Day-361 | MZ1: Day-362 | NA1: Day-363 | NB1: Day-364 | NC1: Day-365
A2: 0 | B2: 00:00:00 | C2: 0 | D2: 0 | E2: 0 | F2: 0 | G2: 0 | H2: 0 | I2: 0 | J2: 0 | K2: 0 | L2: 0 | M2: 0 | N2: 0 | O2: 0 | P2: 0 | Q2: 0 | R2: 0 | S2: 0 | T2: 0 | U2: 0 | V2: 0 | W2: 0 | X2: 0 | Y2: 0 | Z2: 0 | AA2: 0 | AB2: 0 | AC2: 0 | AD2: 0 | AE2: 0 | AF2: 0 | AG2: 0 | AH2: 0 | AI2: 0 | AJ2: 0 | AK2: 0 | AL2: 0 | AM2: 0 | AN2: 0 | AO2: 0 | AP2: 0 | AQ2: 0 | AR2: 0 | AS2: 0 | AT2: 0 | AU2: 0 | AV2: 0 | AW2: 0 | AX2: 0 | AY2: 0 | AZ2: 0 | BA2: 0 | BB2: 0 | BC2: 0 | BD2: 0 | BE2: 0 | BF2: 0 | BG2: 0 | BH2: 0 | BI2: 0 | BJ2: 0 | BK2: 0 | BL2: 0 | BM2: 0 | BN2: 0 | BO2: 0 | BP2: 0 | BQ2: 0 | BR2: 0 | BS2: 0 | BT2: 0 | BU2: 0 | BV2: 0 | BW2: 0 | BX2: 0 | BY2: 0 | BZ2: 0 | CA2: 0 | CB2: 0 | CC2: 0 | CD2: 0 | CE2: 0 | CF2: 0 | CG2: 0 | CH2: 0 | CI2: 0 | CJ2: 0 | CK2: 0 | CL2: 0 | CM2: 0 | CN2: 0 | CO2: 0 | CP2: 0 | CQ2: 0 | CR2: 0 | CS2: 0 | CT2: 0 | CU2: 0 | CV2: 0 | CW2: 0 | CX2: 0 | CY2: 0 | CZ2: 0 | DA2: 0 | DB2: 0 | DC2: 0 | DD2: 0 | DE2: 0 | DF2: 0 | DG2: 0 | DH2: 0 | DI2: 0 | DJ2: 0 | DK2: 0 | DL2: 0 | DM2: 0 | DN2: 0 | DO2: 0 | DP2: 0 | DQ2: 0 | DR2: 0 | DS2: 0 | DT2: 0 | DU2: 0 | DV2: 0 | DW2: 0 | DX2: 0 | DY2: 0 | DZ2: 0 | EA2: 0 | EB2: 0 | EC2: 0 | ED2: 0 | EE2: 0 | EF2: 0 | EG2: 0 | EH2: 0 | EI2: 0 | EJ2: 0 | EK2: 0 | EL2: 0 | EM2: 0 | EN2: 0 | EO2: 0 | EP2: 0 | EQ2: 0 | ER2: 0 | ES2: 0 | ET2: 0 | EU2: 0 | EV2: 0 | EW2: 0 | EX2: 0 | EY2: 0 | EZ2: 0 | FA2: 0 | FB2: 0 | FC2: 0 | FD2: 0 | FE2: 0 | FF2: 0 | FG2: 0 | FH2: 0 | FI2: 0 | FJ2: 0 | FK2: 0 | FL2: 0 | FM2: 0 | FN2: 0 | FO2: 0 | FP2: 0 | FQ2: 0 | FR2: 0 | FS2: 0 | FT2: 0 | FU2: 0 | FV2: 0 | FW2: 0 | FX2: 0 | FY2: 0 | FZ2: 0 | GA2: 0 | GB2: 0 | GC2: 0 | GD2: 0 | GE2: 0 | GF2: 0 | GG2: 0 | GH2: 0 | GI2: 0 | GJ2: 0 | GK2: 0 | GL2: 0 | GM2: 0 | GN2: 0 | GO2: 0 | GP2: 0 | GQ2: 0 | GR2: 0 | GS2: 0 | GT2: 0 | GU2: 0 | GV2: 0 | GW2: 0 | GX2: 0 | GY2: 0 | GZ2: 0 | HA2: 0 | HB2: 0 | HC2: 0 | HD2: 0 | HE2: 0 | HF2: 0 | HG2: 0 | HH2: 0 | HI2: 0 | HJ2: 0 | HK2: 0 | HL2: 0 | HM2: 0 | HN2: 0 | HO2: 0 | HP2: 0 | HQ2: 0 | HR2: 0 | HS2: 0 | HT2: 0 | HU2: 0 | HV2: 0 | HW2: 0 | HX2: 0 | HY2: 0 | HZ2: 0 | IA2: 0 | IB2: 0 | IC2: 0 | ID2: 0 | IE2: 0 | IF2: 0 | IG2: 0 | IH2: 0 | II2: 0 | IJ2: 0 | IK2: 0 | IL2: 0 | IM2: 0 | IN2: 0 | IO2: 0 | IP2: 0 | IQ2: 0 | IR2: 0 | IS2: 0 | IT2: 0 | IU2: 0 | IV2: 0 | IW2: 0 | IX2: 0 | IY2: 0 | IZ2: 0 | JA2: 0 | JB2: 0 | JC2: 0 | JD2: 0 | JE2: 0 | JF2: 0 | JG2: 0 | JH2: 0 | JI2: 0 | JJ2: 0 | JK2: 0 | JL2: 0 | JM2: 0 | JN2: 0 | JO2: 0 | JP2: 0 | JQ2: 0 | JR2: 0 | JS2: 0 | JT2: 0 | JU2: 0 | JV2: 0 | JW2: 0 | JX2: 0 | JY2: 0 | JZ2: 0 | KA2: 0 | KB2: 0 | KC2: 0 | KD2: 0 | KE2: 0 | KF2: 0 | KG2: 0 | KH2: 0 | KI2: 0 | KJ2: 0 | KK2: 0 | KL2: 0 | KM2: 0 | KN2: 0 | KO2: 0 | KP2: 0 | KQ2: 0 | KR2: 0 | KS2: 0 | KT2: 0 | KU2: 0 | KV2: 0 | KW2: 0 | KX2: 0 | KY2: 0 | KZ2: 0 | LA2: 0 | LB2: 0 | LC2: 0 | LD2: 0 | LE2: 0 | LF2: 0 | LG2: 0 | LH2: 0 | LI2: 0 | LJ2: 0 | LK2: 0 | LL2: 0 | LM2: 0 | LN2: 0 | LO2: 0 | LP2: 0 | LQ2: 0 | LR2: 0 | LS2: 0 | LT2: 0 | LU2: 0 | LV2: 0 | LW2: 0 | LX2: 0 | LY2: 0 | LZ2: 0 | MA2: 0 | MB2: 0 | MC2: 0 | MD2: 0 | ME2: 0 | MF2: 0 | MG2: 0 | MH2: 0 | MI2: 0 | MJ2: 0 | MK2: 0 | ML2: 0 | MM2: 0 | MN2: 0 | MO2: 0 | MP2: 0 | MQ2: 0 | MR2: 0 | MS2: 0 | MT2: 0 | MU2: 0 | MV2: 0 | MW2: 0 | MX2: 0 | MY2: 0 | MZ2: 0 | NA2: 0 | NB2: 0 | NC2: 0
A3: 0 | B3: 01:00:00 | C3: 0 | D3: 0 | E3: 0 | F3: 0 | G3: 0 | H3: 0 | I3: 0 | J3: 0 | K3: 0 | L3: 0 | M3: 0 | N3: 0 | O3: 0 | P3: 0 | Q3: 0 | R3: 0 | S3: 0 | T3: 0 | U3: 0 | V3: 0 | W3: 0 | X3: 0 | Y3: 0 | Z3: 0 | AA3: 0 | AB3: 0 | AC3: 0 | AD3: 0 | AE3: 0 | AF3: 0 | AG3: 0 | AH3: 0 | AI3: 0 | AJ3: 0 | AK3: 0 | AL3: 0 | AM3: 0 | AN3: 0 | AO3: 0 | AP3: 0 | AQ3: 0 | AR3: 0 | AS3: 0 | AT3: 0 | AU3: 0 | AV3: 0 | AW3: 0 | AX3: 0 | AY3: 0 | AZ3: 0 | BA3: 0 | BB3: 0 | BC3: 0 | BD3: 0 | BE3: 0 | BF3: 0 | BG3: 0 | BH3: 0 | BI3: 0 | BJ3: 0 | BK3: 0 | BL3: 0 | BM3: 0 | BN3: 0 | BO3: 0 | BP3: 0 | BQ3: 0 | BR3: 0 | BS3: 0 | BT3: 0 | BU3: 0 | BV3: 0 | BW3: 0 | BX3: 0 | BY3: 0 | BZ3: 0 | CA3: 0 | CB3: 0 | CC3: 0 | CD3: 0 | CE3: 0 | CF3: 0 | CG3: 0 | CH3: 0 | CI3: 0 | CJ3: 0 | CK3: 0 | CL3: 0 | CM3: 0 | CN3: 0 | CO3: 0 | CP3: 0 | CQ3: 0 | CR3: 0 | CS3: 0 | CT3: 0 | CU3: 0 | CV3: 0 | CW3: 0 | CX3: 0 | CY3: 0 | CZ3: 0 | DA3: 0 | DB3: 0 | DC3: 0 | DD3: 0 | DE3: 0 | DF3: 0 | DG3: 0 | DH3: 0 | DI3: 0 | DJ3: 0 | DK3: 0 | DL3: 0 | DM3: 0 | DN3: 0 | DO3: 0 | DP3: 0 | DQ3: 0 | DR3: 0 | DS3: 0 | DT3: 0 | DU3: 0 | DV3: 0 | DW3: 0 | DX3: 0 | DY3: 0 | DZ3: 0 | EA3: 0 | EB3: 0 | EC3: 0 | ED3: 0 | EE3: 0 | EF3: 0 | EG3: 0 | EH3: 0 | EI3: 0 | EJ3: 0 | EK3: 0 | EL3: 0 | EM3: 0 | EN3: 0 | EO3: 0 | EP3: 0 | EQ3: 0 | ER3: 0 | ES3: 0 | ET3: 0 | EU3: 0 | EV3: 0 | EW3: 0 | EX3: 0 | EY3: 0 | EZ3: 0 | FA3: 0 | FB3: 0 | FC3: 0 | FD3: 0 | FE3: 0 | FF3: 0 | FG3: 0 | FH3: 0 | FI3: 0 | FJ3: 0 | FK3: 0 | FL3: 0 | FM3: 0 | FN3: 0 | FO3: 0 | FP3: 0 | FQ3: 0 | FR3: 0 | FS3: 0 | FT3: 0 | FU3: 0 | FV3: 0 | FW3: 0 | FX3: 0 | FY3: 0 | FZ3: 0 | GA3: 0 | GB3: 0 | GC3: 0 | GD3: 0 | GE3: 0 | GF3: 0 | GG3: 0 | GH3: 0 | GI3: 0 | GJ3: 0 | GK3: 0 | GL3: 0 | GM3: 0 | GN3: 0 | GO3: 0 | GP3: 0 | GQ3: 0 | GR3: 0 | GS3: 0 | GT3: 0 | GU3: 0 | GV3: 0 | GW3: 0 | GX3: 0 | GY3: 0 | GZ3: 0 | HA3: 0 | HB3: 0 | HC3: 0 | HD3: 0 | HE3: 0 | HF3: 0 | HG3: 0 | HH3: 0 | HI3: 0 | HJ3: 0 | HK3: 0 | HL3: 0 | HM3: 0 | HN3: 0 | HO3: 0 | HP3: 0 | HQ3: 0 | HR3: 0 | HS3: 0 | HT3: 0 | HU3: 0 | HV3: 0 | HW3: 0 | HX3: 0 | HY3: 0 | HZ3: 0 | IA3: 0 | IB3: 0 | IC3: 0 | ID3: 0 | IE3: 0 | IF3: 0 | IG3: 0 | IH3: 0 | II3: 0 | IJ3: 0 | IK3: 0 | IL3: 0 | IM3: 0 | IN3: 0 | IO3: 0 | IP3: 0 | IQ3: 0 | IR3: 0 | IS3: 0 | IT3: 0 | IU3: 0 | IV3: 0 | IW3: 0 | IX3: 0 | IY3: 0 | IZ3: 0 | JA3: 0 | JB3: 0 | JC3: 0 | JD3: 0 | JE3: 0 | JF3: 0 | JG3: 0 | JH3: 0 | JI3: 0 | JJ3: 0 | JK3: 0 | JL3: 0 | JM3: 0 | JN3: 0 | JO3: 0 | JP3: 0 | JQ3: 0 | JR3: 0 | JS3: 0 | JT3: 0 | JU3: 0 | JV3: 0 | JW3: 0 | JX3: 0 | JY3: 0 | JZ3: 0 | KA3: 0 | KB3: 0 | KC3: 0 | KD3: 0 | KE3: 0 | KF3: 0 | KG3: 0 | KH3: 0 | KI3: 0 | KJ3: 0 | KK3: 0 | KL3: 0 | KM3: 0 | KN3: 0 | KO3: 0 | KP3: 0 | KQ3: 0 | KR3: 0 | KS3: 0 | KT3: 0 | KU3: 0 | KV3: 0 | KW3: 0 | KX3: 0 | KY3: 0 | KZ3: 0 | LA3: 0 | LB3: 0 | LC3: 0 | LD3: 0 | LE3: 0 | LF3: 0 | LG3: 0 | LH3: 0 | LI3: 0 | LJ3: 0 | LK3: 0 | LL3: 0 | LM3: 0 | LN3: 0 | LO3: 0 | LP3: 0 | LQ3: 0 | LR3: 0 | LS3: 0 | LT3: 0 | LU3: 0 | LV3: 0 | LW3: 0 | LX3: 0 | LY3: 0 | LZ3: 0 | MA3: 0 | MB3: 0 | MC3: 0 | MD3: 0 | ME3: 0 | MF3: 0 | MG3: 0 | MH3: 0 | MI3: 0 | MJ3: 0 | MK3: 0 | ML3: 0 | MM3: 0 | MN3: 0 | MO3: 0 | MP3: 0 | MQ3: 0 | MR3: 0 | MS3: 0 | MT3: 0 | MU3: 0 | MV3: 0 | MW3: 0 | MX3: 0 | MY3: 0 | MZ3: 0 | NA3: 0 | NB3: 0 | NC3: 0
A4: 0 | B4: 02:00:00 | C4: 0 | D4: 0 | E4: 0 | F4: 0 | G4: 0 | H4: 0 | I4: 0 | J4: 0 | K4: 0 | L4: 0 | M4: 0 | N4: 0 | O4: 0 | P4: 0 | Q4: 0 | R4: 0 | S4: 0 | T4: 0 | U4: 0 | V4: 0 | W4: 0 | X4: 0 | Y4: 0 | Z4: 0 | AA4: 0 | AB4: 0 | AC4: 0 | AD4: 0 | AE4: 0 | AF4: 0 | AG4: 0 | AH4: 0 | AI4: 0 | AJ4: 0 | AK4: 0 | AL4: 0 | AM4: 0 | AN4: 0 | AO4: 0 | AP4: 0 | AQ4: 0 | AR4: 0 | AS4: 0 | AT4: 0 | AU4: 0 | AV4: 0 | AW4: 0 | AX4: 0 | AY4: 0 | AZ4: 0 | BA4: 0 | BB4: 0 | BC4: 0 | BD4: 0 | BE4: 0 | BF4: 0 | BG4: 0 | BH4: 0 | BI4: 0 | BJ4: 0 | BK4: 0 | BL4: 0 | BM4: 0 | BN4: 0 | BO4: 0 | BP4: 0 | BQ4: 0 | BR4: 0 | BS4: 0 | BT4: 0 | BU4: 0 | BV4: 0 | BW4: 0 | BX4: 0 | BY4: 0 | BZ4: 0 | CA4: 0 | CB4: 0 | CC4: 0 | CD4: 0 | CE4: 0 | CF4: 0 | CG4: 0 | CH4: 0 | CI4: 0 | CJ4: 0 | CK4: 0 | CL4: 0 | CM4: 0 | CN4: 0 | CO4: 0 | CP4: 0 | CQ4: 0 | CR4: 0 | CS4: 0 | CT4: 0 | CU4: 0 | CV4: 0 | CW4: 0 | CX4: 0 | CY4: 0 | CZ4: 0 | DA4: 0 | DB4: 0 | DC4: 0 | DD4: 0 | DE4: 0 | DF4: 0 | DG4: 0 | DH4: 0 | DI4: 0 | DJ4: 0 | DK4: 0 | DL4: 0 | DM4: 0 | DN4: 0 | DO4: 0 | DP4: 0 | DQ4: 0 | DR4: 0 | DS4: 0 | DT4: 0 | DU4: 0 | DV4: 0 | DW4: 0 | DX4: 0 | DY4: 0 | DZ4: 0 | EA4: 0 | EB4: 0 | EC4: 0 | ED4: 0 | EE4: 0 | EF4: 0 | EG4: 0 | EH4: 0 | EI4: 0 | EJ4: 0 | EK4: 0 | EL4: 0 | EM4: 0 | EN4: 0 | EO4: 0 | EP4: 0 | EQ4: 0 | ER4: 0 | ES4: 0 | ET4: 0 | EU4: 0 | EV4: 0 | EW4: 0 | EX4: 0 | EY4: 0 | EZ4: 0 | FA4: 0 | FB4: 0 | FC4: 0 | FD4: 0 | FE4: 0 | FF4: 0 | FG4: 0 | FH4: 0 | FI4: 0 | FJ4: 0 | FK4: 0 | FL4: 0 | FM4: 0 | FN4: 0 | FO4: 0 | FP4: 0 | FQ4: 0 | FR4: 0 | FS4: 0 | FT4: 0 | FU4: 0 | FV4: 0 | FW4: 0 | FX4: 0 | FY4: 0 | FZ4: 0 | GA4: 0 | GB4: 0 | GC4: 0 | GD4: 0 | GE4: 0 | GF4: 0 | GG4: 0 | GH4: 0 | GI4: 0 | GJ4: 0 | GK4: 0 | GL4: 0 | GM4: 0 | GN4: 0 | GO4: 0 | GP4: 0 | GQ4: 0 | GR4: 0 | GS4: 0 | GT4: 0 | GU4: 0 | GV4: 0 | GW4: 0 | GX4: 0 | GY4: 0 | GZ4: 0 | HA4: 0 | HB4: 0 | HC4: 0 | HD4: 0 | HE4: 0 | HF4: 0 | HG4: 0 | HH4: 0 | HI4: 0 | HJ4: 0 | HK4: 0 | HL4: 0 | HM4: 0 | HN4: 0 | HO4: 0 | HP4: 0 | HQ4: 0 | HR4: 0 | HS4: 0 | HT4: 0 | HU4: 0 | HV4: 0 | HW4: 0 | HX4: 0 | HY4: 0 | HZ4: 0 | IA4: 0 | IB4: 0 | IC4: 0 | ID4: 0 | IE4: 0 | IF4: 0 | IG4: 0 | IH4: 0 | II4: 0 | IJ4: 0 | IK4: 0 | IL4: 0 | IM4: 0 | IN4: 0 | IO4: 0 | IP4: 0 | IQ4: 0 | IR4: 0 | IS4: 0 | IT4: 0 | IU4: 0 | IV4: 0 | IW4: 0 | IX4: 0 | IY4: 0 | IZ4: 0 | JA4: 0 | JB4: 0 | JC4: 0 | JD4: 0 | JE4: 0 | JF4: 0 | JG4: 0 | JH4: 0 | JI4: 0 | JJ4: 0 | JK4: 0 | JL4: 0 | JM4: 0 | JN4: 0 | JO4: 0 | JP4: 0 | JQ4: 0 | JR4: 0 | JS4: 0 | JT4: 0 | JU4: 0 | JV4: 0 | JW4: 0 | JX4: 0 | JY4: 0 | JZ4: 0 | KA4: 0 | KB4: 0 | KC4: 0 | KD4: 0 | KE4: 0 | KF4: 0 | KG4: 0 | KH4: 0 | KI4: 0 | KJ4: 0 | KK4: 0 | KL4: 0 | KM4: 0 | KN4: 0 | KO4: 0 | KP4: 0 | KQ4: 0 | KR4: 0 | KS4: 0 | KT4: 0 | KU4: 0 | KV4: 0 | KW4: 0 | KX4: 0 | KY4: 0 | KZ4: 0 | LA4: 0 | LB4: 0 | LC4: 0 | LD4: 0 | LE4: 0 | LF4: 0 | LG4: 0 | LH4: 0 | LI4: 0 | LJ4: 0 | LK4: 0 | LL4: 0 | LM4: 0 | LN4: 0 | LO4: 0 | LP4: 0 | LQ4: 0 | LR4: 0 | LS4: 0 | LT4: 0 | LU4: 0 | LV4: 0 | LW4: 0 | LX4: 0 | LY4: 0 | LZ4: 0 | MA4: 0 | MB4: 0 | MC4: 0 | MD4: 0 | ME4: 0 | MF4: 0 | MG4: 0 | MH4: 0 | MI4: 0 | MJ4: 0 | MK4: 0 | ML4: 0 | MM4: 0 | MN4: 0 | MO4: 0 | MP4: 0 | MQ4: 0 | MR4: 0 | MS4: 0 | MT4: 0 | MU4: 0 | MV4: 0 | MW4: 0 | MX4: 0 | MY4: 0 | MZ4: 0 | NA4: 0 | NB4: 0 | NC4: 0
A5: 0 | B5: 03:00:00 | C5: 0 | D5: 0 | E5: 0 | F5: 0 | G5: 0 | H5: 0 | I5: 0 | J5: 0 | K5: 0 | L5: 0 | M5: 0 | N5: 0 | O5: 0 | P5: 0 | Q5: 0 | R5: 0 | S5: 0 | T5: 0 | U5: 0 | V5: 0 | W5: 0 | X5: 0 | Y5: 0 | Z5: 0 | AA5: 0 | AB5: 0 | AC5: 0 | AD5: 0 | AE5: 0 | AF5: 0 | AG5: 0 | AH5: 0 | AI5: 0 | AJ5: 0 | AK5: 0 | AL5: 0 | AM5: 0 | AN5: 0 | AO5: 0 | AP5: 0 | AQ5: 0 | AR5: 0 | AS5: 0 | AT5: 0 | AU5: 0 | AV5: 0 | AW5: 0 | AX5: 0 | AY5: 0 | AZ5: 0 | BA5: 0 | BB5: 0 | BC5: 0 | BD5: 0 | BE5: 0 | BF5: 0 | BG5: 0 | BH5: 0 | BI5: 0 | BJ5: 0 | BK5: 0 | BL5: 0 | BM5: 0 | BN5: 0 | BO5: 0 | BP5: 0 | BQ5: 0 | BR5: 0 | BS5: 0 | BT5: 0 | BU5: 0 | BV5: 0 | BW5: 0 | BX5: 0 | BY5: 0 | BZ5: 0 | CA5: 0 | CB5: 0 | CC5: 0 | CD5: 0 | CE5: 0 | CF5: 0 | CG5: 0 | CH5: 0 | CI5: 0 | CJ5: 0 | CK5: 0 | CL5: 0 | CM5: 0 | CN5: 0 | CO5: 0 | CP5: 0 | CQ5: 0 | CR5: 0 | CS5: 0 | CT5: 0 | CU5: 0 | CV5: 0 | CW5: 0 | CX5: 0 | CY5: 0 | CZ5: 0 | DA5: 0 | DB5: 0 | DC5: 0 | DD5: 0 | DE5: 0 | DF5: 0 | DG5: 0 | DH5: 0 | DI5: 0 | DJ5: 0 | DK5: 0 | DL5: 0 | DM5: 0 | DN5: 0 | DO5: 0 | DP5: 0 | DQ5: 0 | DR5: 0 | DS5: 0 | DT5: 0 | DU5: 0 | DV5: 0 | DW5: 0 | DX5: 0 | DY5: 0 | DZ5: 0 | EA5: 0 | EB5: 0 | EC5: 0 | ED5: 0 | EE5: 0 | EF5: 0 | EG5: 0 | EH5: 0 | EI5: 0 | EJ5: 0 | EK5: 0 | EL5: 0 | EM5: 0 | EN5: 0 | EO5: 0 | EP5: 0 | EQ5: 0 | ER5: 0 | ES5: 0 | ET5: 0 | EU5: 0 | EV5: 0 | EW5: 0 | EX5: 0 | EY5: 0 | EZ5: 0 | FA5: 0 | FB5: 0 | FC5: 0 | FD5: 0 | FE5: 0 | FF5: 0 | FG5: 0 | FH5: 0 | FI5: 0 | FJ5: 0 | FK5: 0 | FL5: 0 | FM5: 0 | FN5: 0 | FO5: 0 | FP5: 0 | FQ5: 0 | FR5: 0 | FS5: 0 | FT5: 0 | FU5: 0 | FV5: 0 | FW5: 0 | FX5: 0 | FY5: 0 | FZ5: 0 | GA5: 0 | GB5: 0 | GC5: 0 | GD5: 0 | GE5: 0 | GF5: 0 | GG5: 0 | GH5: 0 | GI5: 0 | GJ5: 0 | GK5: 0 | GL5: 0 | GM5: 0 | GN5: 0 | GO5: 0 | GP5: 0 | GQ5: 0 | GR5: 0 | GS5: 0 | GT5: 0 | GU5: 0 | GV5: 0 | GW5: 0 | GX5: 0 | GY5: 0 | GZ5: 0 | HA5: 0 | HB5: 0 | HC5: 0 | HD5: 0 | HE5: 0 | HF5: 0 | HG5: 0 | HH5: 0 | HI5: 0 | HJ5: 0 | HK5: 0 | HL5: 0 | HM5: 0 | HN5: 0 | HO5: 0 | HP5: 0 | HQ5: 0 | HR5: 0 | HS5: 0 | HT5: 0 | HU5: 0 | HV5: 0 | HW5: 0 | HX5: 0 | HY5: 0 | HZ5: 0 | IA5: 0 | IB5: 0 | IC5: 0 | ID5: 0 | IE5: 0 | IF5: 0 | IG5: 0 | IH5: 0 | II5: 0 | IJ5: 0 | IK5: 0 | IL5: 0 | IM5: 0 | IN5: 0 | IO5: 0 | IP5: 0 | IQ5: 0 | IR5: 0 | IS5: 0 | IT5: 0 | IU5: 0 | IV5: 0 | IW5: 0 | IX5: 0 | IY5: 0 | IZ5: 0 | JA5: 0 | JB5: 0 | JC5: 0 | JD5: 0 | JE5: 0 | JF5: 0 | JG5: 0 | JH5: 0 | JI5: 0 | JJ5: 0 | JK5: 0 | JL5: 0 | JM5: 0 | JN5: 0 | JO5: 0 | JP5: 0 | JQ5: 0 | JR5: 0 | JS5: 0 | JT5: 0 | JU5: 0 | JV5: 0 | JW5: 0 | JX5: 0 | JY5: 0 | JZ5: 0 | KA5: 0 | KB5: 0 | KC5: 0 | KD5: 0 | KE5: 0 | KF5: 0 | KG5: 0 | KH5: 0 | KI5: 0 | KJ5: 0 | KK5: 0 | KL5: 0 | KM5: 0 | KN5: 0 | KO5: 0 | KP5: 0 | KQ5: 0 | KR5: 0 | KS5: 0 | KT5: 0 | KU5: 0 | KV5: 0 | KW5: 0 | KX5: 0 | KY5: 0 | KZ5: 0 | LA5: 0 | LB5: 0 | LC5: 0 | LD5: 0 | LE5: 0 | LF5: 0 | LG5: 0 | LH5: 0 | LI5: 0 | LJ5: 0 | LK5: 0 | LL5: 0 | LM5: 0 | LN5: 0 | LO5: 0 | LP5: 0 | LQ5: 0 | LR5: 0 | LS5: 0 | LT5: 0 | LU5: 0 | LV5: 0 | LW5: 0 | LX5: 0 | LY5: 0 | LZ5: 0 | MA5: 0 | MB5: 0 | MC5: 0 | MD5: 0 | ME5: 0 | MF5: 0 | MG5: 0 | MH5: 0 | MI5: 0 | MJ5: 0 | MK5: 0 | ML5: 0 | MM5: 0 | MN5: 0 | MO5: 0 | MP5: 0 | MQ5: 0 | MR5: 0 | MS5: 0 | MT5: 0 | MU5: 0 | MV5: 0 | MW5: 0 | MX5: 0 | MY5: 0 | MZ5: 0 | NA5: 0 | NB5: 0 | NC5: 0
A6: 0 | B6: 04:00:00 | C6: 0 | D6: 0 | E6: 0 | F6: 0 | G6: 0 | H6: 0 | I6: 0 | J6: 0 | K6: 0 | L6: 0 | M6: 0 | N6: 0 | O6: 0 | P6: 0 | Q6: 0 | R6: 0 | S6: 0 | T6: 0 | U6: 0 | V6: 0 | W6: 0 | X6: 0 | Y6: 0 | Z6: 0 | AA6: 0 | AB6: 0 | AC6: 0 | AD6: 0 | AE6: 0 | AF6: 0 | AG6: 0 | AH6: 0 | AI6: 0 | AJ6: 0 | AK6: 0 | AL6: 0 | AM6: 0 | AN6: 0 | AO6: 0 | AP6: 0 | AQ6: 0 | AR6: 0 | AS6: 0 | AT6: 0 | AU6: 0 | AV6: 0 | AW6: 0 | AX6: 0 | AY6: 0 | AZ6: 0 | BA6: 0 | BB6: 0 | BC6: 0 | BD6: 0 | BE6: 0 | BF6: 0 | BG6: 0 | BH6: 0 | BI6: 0 | BJ6: 0 | BK6: 0 | BL6: 0 | BM6: 0 | BN6: 0 | BO6: 0 | BP6: 0 | BQ6: 0 | BR6: 0 | BS6: 0 | BT6: 0 | BU6: 0 | BV6: 0 | BW6: 0 | BX6: 0 | BY6: 0 | BZ6: 0 | CA6: 0 | CB6: 0 | CC6: 0 | CD6: 0 | CE6: 0 | CF6: 0 | CG6: 0 | CH6: 0 | CI6: 0 | CJ6: 0 | CK6: 0 | CL6: 0 | CM6: 0 | CN6: 0 | CO6: 0 | CP6: 0 | CQ6: 0 | CR6: 0 | CS6: 0 | CT6: 0 | CU6: 0 | CV6: 0 | CW6: 0 | CX6: 0 | CY6: 0 | CZ6: 0 | DA6: 0 | DB6: 0 | DC6: 0 | DD6: 0 | DE6: 0 | DF6: 0 | DG6: 0 | DH6: 0 | DI6: 0 | DJ6: 0 | DK6: 0 | DL6: 0 | DM6: 0 | DN6: 0 | DO6: 0 | DP6: 0 | DQ6: 0 | DR6: 0 | DS6: 0 | DT6: 0 | DU6: 0 | DV6: 0 | DW6: 0 | DX6: 0 | DY6: 0 | DZ6: 0 | EA6: 0 | EB6: 0 | EC6: 0 | ED6: 0 | EE6: 0 | EF6: 0 | EG6: 0 | EH6: 0 | EI6: 0 | EJ6: 0 | EK6: 0 | EL6: 0 | EM6: 0 | EN6: 0 | EO6: 0 | EP6: 0 | EQ6: 0 | ER6: 0 | ES6: 0 | ET6: 0 | EU6: 0 | EV6: 0 | EW6: 0 | EX6: 0 | EY6: 0 | EZ6: 0 | FA6: 0 | FB6: 0 | FC6: 0 | FD6: 0 | FE6: 0 | FF6: 0 | FG6: 0 | FH6: 0 | FI6: 0 | FJ6: 0 | FK6: 0 | FL6: 0 | FM6: 0 | FN6: 0 | FO6: 0 | FP6: 0 | FQ6: 0 | FR6: 0 | FS6: 0 | FT6: 0 | FU6: 0 | FV6: 0 | FW6: 0 | FX6: 0 | FY6: 0 | FZ6: 0 | GA6: 0 | GB6: 0 | GC6: 0 | GD6: 0 | GE6: 0 | GF6: 0 | GG6: 0 | GH6: 0 | GI6: 0 | GJ6: 0 | GK6: 0 | GL6: 0 | GM6: 0 | GN6: 0 | GO6: 0 | GP6: 0 | GQ6: 0 | GR6: 0 | GS6: 0 | GT6: 0 | GU6: 0 | GV6: 0 | GW6: 0 | GX6: 0 | GY6: 0 | GZ6: 0 | HA6: 0 | HB6: 0 | HC6: 0 | HD6: 0 | HE6: 0 | HF6: 0 | HG6: 0 | HH6: 0 | HI6: 0 | HJ6: 0 | HK6: 0 | HL6: 0 | HM6: 0 | HN6: 0 | HO6: 0 | HP6: 0 | HQ6: 0 | HR6: 0 | HS6: 0 | HT6: 0 | HU6: 0 | HV6: 0 | HW6: 0 | HX6: 0 | HY6: 0 | HZ6: 0 | IA6: 0 | IB6: 0 | IC6: 0 | ID6: 0 | IE6: 0 | IF6: 0 | IG6: 0 | IH6: 0 | II6: 0 | IJ6: 0 | IK6: 0 | IL6: 0 | IM6: 0 | IN6: 0 | IO6: 0 | IP6: 0 | IQ6: 0 | IR6: 0 | IS6: 0 | IT6: 0 | IU6: 0 | IV6: 0 | IW6: 0 | IX6: 0 | IY6: 0 | IZ6: 0 | JA6: 0 | JB6: 0 | JC6: 0 | JD6: 0 | JE6: 0 | JF6: 0 | JG6: 0 | JH6: 0 | JI6: 0 | JJ6: 0 | JK6: 0 | JL6: 0 | JM6: 0 | JN6: 0 | JO6: 0 | JP6: 0 | JQ6: 0 | JR6: 0 | JS6: 0 | JT6: 0 | JU6: 0 | JV6: 0 | JW6: 0 | JX6: 0 | JY6: 0 | JZ6: 0 | KA6: 0 | KB6: 0 | KC6: 0 | KD6: 0 | KE6: 0 | KF6: 0 | KG6: 0 | KH6: 0 | KI6: 0 | KJ6: 0 | KK6: 0 | KL6: 0 | KM6: 0 | KN6: 0 | KO6: 0 | KP6: 0 | KQ6: 0 | KR6: 0 | KS6: 0 | KT6: 0 | KU6: 0 | KV6: 0 | KW6: 0 | KX6: 0 | KY6: 0 | KZ6: 0 | LA6: 0 | LB6: 0 | LC6: 0 | LD6: 0 | LE6: 0 | LF6: 0 | LG6: 0 | LH6: 0 | LI6: 0 | LJ6: 0 | LK6: 0 | LL6: 0 | LM6: 0 | LN6: 0 | LO6: 0 | LP6: 0 | LQ6: 0 | LR6: 0 | LS6: 0 | LT6: 0 | LU6: 0 | LV6: 0 | LW6: 0 | LX6: 0 | LY6: 0 | LZ6: 0 | MA6: 0 | MB6: 0 | MC6: 0 | MD6: 0 | ME6: 0 | MF6: 0 | MG6: 0 | MH6: 0 | MI6: 0 | MJ6: 0 | MK6: 0 | ML6: 0 | MM6: 0 | MN6: 0 | MO6: 0 | MP6: 0 | MQ6: 0 | MR6: 0 | MS6: 0 | MT6: 0 | MU6: 0 | MV6: 0 | MW6: 0 | MX6: 0 | MY6: 0 | MZ6: 0 | NA6: 0 | NB6: 0 | NC6: 0
A7: 0 | B7: 05:00:00 | C7: 0 | D7: 0 | E7: 0 | F7: 0 | G7: 0 | H7: 0 | I7: 0 | J7: 0 | K7: 0 | L7: 0 | M7: 0 | N7: 0 | O7: 0 | P7: 0 | Q7: 0 | R7: 0 | S7: 0 | T7: 0 | U7: 0 | V7: 0 | W7: 0 | X7: 0 | Y7: 0 | Z7: 0 | AA7: 0 | AB7: 0 | AC7: 0 | AD7: 0 | AE7: 0 | AF7: 0 | AG7: 0 | AH7: 0 | AI7: 0 | AJ7: 0 | AK7: 0 | AL7: 0 | AM7: 0 | AN7: 0 | AO7: 0 | AP7: 0 | AQ7: 0 | AR7: 0 | AS7: 0 | AT7: 0 | AU7: 0 | AV7: 0 | AW7: 0 | AX7: 0 | AY7: 0 | AZ7: 0 | BA7: 0 | BB7: 0 | BC7: 0 | BD7: 0 | BE7: 0 | BF7: 0 | BG7: 0 | BH7: 0 | BI7: 0 | BJ7: 0 | BK7: 0 | BL7: 0 | BM7: 0 | BN7: 0 | BO7: 0 | BP7: 0 | BQ7: 0 | BR7: 0 | BS7: 0 | BT7: 0 | BU7: 0 | BV7: 0 | BW7: 0 | BX7: 0 | BY7: 0 | BZ7: 0 | CA7: 0 | CB7: 0 | CC7: 0 | CD7: 0 | CE7: 0 | CF7: 0 | CG7: 0 | CH7: 0 | CI7: 0 | CJ7: 0 | CK7: 0 | CL7: 0 | CM7: 0 | CN7: 0 | CO7: 0 | CP7: 0 | CQ7: 0 | CR7: 0 | CS7: 0 | CT7: 0 | CU7: 0 | CV7: 0 | CW7: 0 | CX7: 0 | CY7: 0 | CZ7: 0 | DA7: 0 | DB7: 0 | DC7: 0 | DD7: 0 | DE7: 0 | DF7: 0 | DG7: 2.54 | DH7: 0 | DI7: 4.05 | DJ7: 5 | DK7: 5.52 | DL7: 2.48 | DM7: 0 | DN7: 9.43 | DO7: 9.43 | DP7: 10.99 | DQ7: 0 | DR7: 13.27 | DS7: 13.65 | DT7: 15.13 | DU7: 0 | DV7: 17.54 | DW7: 17.57 | DX7: 20.44 | DY7: 19.03 | DZ7: 19.49 | EA7: 22.64 | EB7: 0.45 | EC7: 23.44 | ED7: 9.82 | EE7: 23.44 | EF7: 9.64 | EG7: 28.73 | EH7: 14.96 | EI7: 7.97 | EJ7: 0.8 | EK7: 29.35 | EL7: 32.16 | EM7: 18.65 | EN7: 7.36 | EO7: 32.12 | EP7: 27.42 | EQ7: 30.37 | ER7: 21.53 | ES7: 36.44 | ET7: 37.05 | EU7: 36.75 | EV7: 35.51 | EW7: 26.36 | EX7: 37.14 | EY7: 36.71 | EZ7: 31.15 | FA7: 36.06 | FB7: 31.02 | FC7: 1.93 | FD7: 40.09 | FE7: 39.31 | FF7: 12.5 | FG7: 29.98 | FH7: 40.3 | FI7: 1.94 | FJ7: 4.2 | FK7: 1.92 | FL7: 22.93 | FM7: 40.59 | FN7: 39.89 | FO7: 38.16 | FP7: 33.86 | FQ7: 35.62 | FR7: 15.6 | FS7: 38.67 | FT7: 38.89 | FU7: 14.19 | FV7: 37.73 | FW7: 33.88 | FX7: 36.41 | FY7: 37.07 | FZ7: 35.74 | GA7: 35.22 | GB7: 32.81 | GC7: 30.36 | GD7: 29.73 | GE7: 25.45 | GF7: 33.61 | GG7: 29.28 | GH7: 25.87 | GI7: 31.27 | GJ7: 12.98 | GK7: 1.14 | GL7: 19.01 | GM7: 31.13 | GN7: 29.56 | GO7: 29.63 | GP7: 29.16 | GQ7: 28.82 | GR7: 27.98 | GS7: 27.07 | GT7: 22.52 | GU7: 25.69 | GV7: 23.8 | GW7: 25.13 | GX7: 23.18 | GY7: 3.2 | GZ7: 22.33 | HA7: 19.87 | HB7: 14.18 | HC7: 17.18 | HD7: 17.65 | HE7: 17.78 | HF7: 11.97 | HG7: 1.48 | HH7: 8.7 | HI7: 15.2 | HJ7: 14.6 | HK7: 14.14 | HL7: 13.47 | HM7: 0.73 | HN7: 11.86 | HO7: 6.23 | HP7: 0 | HQ7: 4.64 | HR7: 6.7 | HS7: 2.77 | HT7: 3.22 | HU7: 5.75 | HV7: 6.37 | HW7: 4.71 | HX7: 1.12 | HY7: 2.34 | HZ7: 0 | IA7: 0 | IB7: 1.16 | IC7: 1.97 | ID7: 0 | IE7: 0 | IF7: 0 | IG7: 0 | IH7: 0 | II7: 0 | IJ7: 0 | IK7: 0 | IL7: 0 | IM7: 0 | IN7: 0 | IO7: 0 | IP7: 0 | IQ7: 0 | IR7: 0 | IS7: 0 | IT7: 0 | IU7: 0 | IV7: 0 | IW7: 0 | IX7: 0 | IY7: 0 | IZ7: 0 | JA7: 0 | JB7: 0 | JC7: 0 | JD7: 0 | JE7: 0 | JF7: 0 | JG7: 0 | JH7: 0 | JI7: 0 | JJ7: 0 | JK7: 0 | JL7: 0 | JM7: 0 | JN7: 0 | JO7: 0 | JP7: 0 | JQ7: 0 | JR7: 0 | JS7: 0 | JT7: 0 | JU7: 0 | JV7: 0 | JW7: 0 | JX7: 0 | JY7: 0 | JZ7: 0 | KA7: 0 | KB7: 0 | KC7: 0 | KD7: 0 | KE7: 0 | KF7: 0 | KG7: 0 | KH7: 0 | KI7: 0 | KJ7: 0 | KK7: 0 | KL7: 0 | KM7: 0 | KN7: 0 | KO7: 0 | KP7: 0 | KQ7: 0 | KR7: 0 | KS7: 0 | KT7: 0 | KU7: 0 | KV7: 0 | KW7: 0 | KX7: 0 | KY7: 0 | KZ7: 0 | LA7: 0 | LB7: 0 | LC7: 0 | LD7: 0 | LE7: 0 | LF7: 0 | LG7: 0 | LH7: 0 | LI7: 0 | LJ7: 0 | LK7: 0 | LL7: 0 | LM7: 0 | LN7: 0 | LO7: 0 | LP7: 0 | LQ7: 0 | LR7: 0 | LS7: 0 | LT7: 0 | LU7: 0 | LV7: 0 | LW7: 0 | LX7: 0 | LY7: 0 | LZ7: 0 | MA7: 0 | MB7: 0 | MC7: 0 | MD7: 0 | ME7: 0 | MF7: 0 | MG7: 0 | MH7: 0 | MI7: 0 | MJ7: 0 | MK7: 0 | ML7: 0 | MM7: 0 | MN7: 0 | MO7: 0 | MP7: 0 | MQ7: 0 | MR7: 0 | MS7: 0 | MT7: 0 | MU7: 0 | MV7: 0 | MW7: 0 | MX7: 0 | MY7: 0 | MZ7: 0 | NA7: 0 | NB7: 0 | NC7: 0
A8: 0 | B8: 06:00:00 | C8: 0 | D8: 0 | E8: 0 | F8: 0 | G8: 0 | H8: 0 | I8: 0 | J8: 0 | K8: 0 | L8: 0 | M8: 0 | N8: 0 | O8: 0 | P8: 0 | Q8: 0 | R8: 0 | S8: 0 | T8: 0 | U8: 0 | V8: 0 | W8: 0 | X8: 0 | Y8: 0 | Z8: 0 | AA8: 0 | AB8: 0 | AC8: 0 | AD8: 0 | AE8: 0 | AF8: 0 | AG8: 0 | AH8: 0 | AI8: 0 | AJ8: 0 | AK8: 0 | AL8: 0 | AM8: 0 | AN8: 0 | AO8: 0 | AP8: 0 | AQ8: 0 | AR8: 0 | AS8: 0 | AT8: 0 | AU8: 0 | AV8: 0 | AW8: 0 | AX8: 0 | AY8: 0 | AZ8: 0 | BA8: 0 | BB8: 0 | BC8: 0 | BD8: 0 | BE8: 0 | BF8: 0 | BG8: 0 | BH8: 0 | BI8: 0 | BJ8: 0 | BK8: 0 | BL8: 0 | BM8: 0 | BN8: 0 | BO8: 0 | BP8: 0 | BQ8: 0 | BR8: 0 | BS8: 0 | BT8: 0 | BU8: 0 | BV8: 0 | BW8: 0 | BX8: 0 | BY8: 0 | BZ8: 3.2 | CA8: 6.03 | CB8: 8.85 | CC8: 9.77 | CD8: 4.91 | CE8: 0 | CF8: 0 | CG8: 8.99 | CH8: 18.39 | CI8: 1.92 | CJ8: 5.01 | CK8: 21.54 | CL8: 24.92 | CM8: 29.21 | CN8: 29.69 | CO8: 8.48 | CP8: 39.99 | CQ8: 43.12 | CR8: 46.21 | CS8: 47.67 | CT8: 48.58 | CU8: 11.63 | CV8: 5.03 | CW8: 3.96 | CX8: 10.52 | CY8: 2.46 | CZ8: 11.08 | DA8: 50.56 | DB8: 62.84 | DC8: 72.27 | DD8: 34.33 | DE8: 10.55 | DF8: 0 | DG8: 54.19 | DH8: 41.22 | DI8: 57.82 | DJ8: 88.87 | DK8: 47.66 | DL8: 13.49 | DM8: 5.56 | DN8: 98.61 | DO8: 99.04 | DP8: 75.43 | DQ8: 95.73 | DR8: 98.97 | DS8: 97.81 | DT8: 99.92 | DU8: 53.11 | DV8: 106.25 | DW8: 108.02 | DX8: 108.91 | DY8: 110.16 | DZ8: 111.45 | EA8: 82.68 | EB8: 9.01 | EC8: 65.83 | ED8: 72.32 | EE8: 83.47 | EF8: 8.85 | EG8: 117.76 | EH8: 46.9 | EI8: 13.17 | EJ8: 30.59 | EK8: 120.85 | EL8: 122.67 | EM8: 122.14 | EN8: 36.95 | EO8: 9.95 | EP8: 125.17 | EQ8: 120.15 | ER8: 122.92 | ES8: 123.43 | ET8: 123.3 | EU8: 122.09 | EV8: 122.55 | EW8: 121.62 | EX8: 61.28 | EY8: 80.86 | EZ8: 119.7 | FA8: 71.71 | FB8: 123.08 | FC8: 117.63 | FD8: 122.65 | FE8: 120.32 | FF8: 125.39 | FG8: 124.68 | FH8: 124.4 | FI8: 123.59 | FJ8: 119.31 | FK8: 10.46 | FL8: 66.83 | FM8: 118.8 | FN8: 119.42 | FO8: 119.24 | FP8: 112.86 | FQ8: 90.98 | FR8: 85.44 | FS8: 113.47 | FT8: 114.69 | FU8: 97.5 | FV8: 116.56 | FW8: 103.93 | FX8: 107.28 | FY8: 106.56 | FZ8: 110.54 | GA8: 103.69 | GB8: 102.77 | GC8: 105.88 | GD8: 102.42 | GE8: 93.1 | GF8: 67.33 | GG8: 110.78 | GH8: 29.43 | GI8: 103.47 | GJ8: 96.77 | GK8: 14.27 | GL8: 80.48 | GM8: 100.51 | GN8: 95.82 | GO8: 99.1 | GP8: 98.35 | GQ8: 102.39 | GR8: 99.88 | GS8: 92.05 | GT8: 93.38 | GU8: 95.93 | GV8: 91.09 | GW8: 96.08 | GX8: 96.07 | GY8: 71.51 | GZ8: 93.27 | HA8: 94.04 | HB8: 90.89 | HC8: 90.4 | HD8: 88.92 | HE8: 86.9 | HF8: 88.53 | HG8: 86.86 | HH8: 84 | HI8: 86.25 | HJ8: 83.94 | HK8: 83.21 | HL8: 76.24 | HM8: 63.46 | HN8: 83.02 | HO8: 83.28 | HP8: 26.94 | HQ8: 74.99 | HR8: 79.46 | HS8: 52.1 | HT8: 38.2 | HU8: 79.34 | HV8: 77.39 | HW8: 76.35 | HX8: 63.91 | HY8: 73.7 | HZ8: 11.02 | IA8: 35.24 | IB8: 73.12 | IC8: 58.34 | ID8: 68.72 | IE8: 51.11 | IF8: 39.2 | IG8: 64.35 | IH8: 11.11 | II8: 49.53 | IJ8: 66.11 | IK8: 52.8 | IL8: 30.68 | IM8: 50.77 | IN8: 55.61 | IO8: 52.63 | IP8: 40.86 | IQ8: 52.01 | IR8: 13.56 | IS8: 46.47 | IT8: 20.52 | IU8: 37.27 | IV8: 32.26 | IW8: 18.48 | IX8: 48.44 | IY8: 43.94 | IZ8: 44.25 | JA8: 27.86 | JB8: 31.8 | JC8: 39.14 | JD8: 25.18 | JE8: 44.15 | JF8: 15.73 | JG8: 16.48 | JH8: 28.62 | JI8: 20.64 | JJ8: 18.84 | JK8: 16.87 | JL8: 14.74 | JM8: 0 | JN8: 0 | JO8: 20.03 | JP8: 24.74 | JQ8: 14.48 | JR8: 6.32 | JS8: 16.57 | JT8: 22.64 | JU8: 0 | JV8: 1.9 | JW8: 2.36 | JX8: 11.44 | JY8: 6.25 | JZ8: 6.67 | KA8: 4.77 | KB8: 0 | KC8: 0 | KD8: 0 | KE8: 0 | KF8: 0 | KG8: 0 | KH8: 0 | KI8: 0 | KJ8: 0 | KK8: 0 | KL8: 0 | KM8: 0 | KN8: 0 | KO8: 0 | KP8: 0 | KQ8: 0 | KR8: 0 | KS8: 0 | KT8: 0 | KU8: 0 | KV8: 0 | KW8: 0 | KX8: 0 | KY8: 0 | KZ8: 0 | LA8: 0 | LB8: 0 | LC8: 0 | LD8: 0 | LE8: 0 | LF8: 0 | LG8: 0 | LH8: 0 | LI8: 0 | LJ8: 0 | LK8: 0 | LL8: 0 | LM8: 0 | LN8: 0 | LO8: 0 | LP8: 0 | LQ8: 0 | LR8: 0 | LS8: 0 | LT8: 0 | LU8: 0 | LV8: 0 | LW8: 0 | LX8: 0 | LY8: 0 | LZ8: 0 | MA8: 0 | MB8: 0 | MC8: 0 | MD8: 0 | ME8: 0 | MF8: 0 | MG8: 0 | MH8: 0 | MI8: 0 | MJ8: 0 | MK8: 0 | ML8: 0 | MM8: 0 | MN8: 0 | MO8: 0 | MP8: 0 | MQ8: 0 | MR8: 0 | MS8: 0 | MT8: 0 | MU8: 0 | MV8: 0 | MW8: 0 | MX8: 0 | MY8: 0 | MZ8: 0 | NA8: 0 | NB8: 0 | NC8: 0
A9: 0 | B9: 07:00:00 | C9: 0 | D9: 0 | E9: 0 | F9: 0 | G9: 0 | H9: 0 | I9: 0 | J9: 0 | K9: 0 | L9: 0 | M9: 0 | N9: 0 | O9: 0 | P9: 0 | Q9: 0 | R9: 0 | S9: 0 | T9: 0 | U9: 0 | V9: 0 | W9: 0 | X9: 0 | Y9: 0 | Z9: 0 | AA9: 0 | AB9: 0 | AC9: 0 | AD9: 0 | AE9: 0 | AF9: 0 | AG9: 0 | AH9: 0 | AI9: 0 | AJ9: 0 | AK9: 0 | AL9: 0 | AM9: 0 | AN9: 0 | AO9: 0 | AP9: 0 | AQ9: 0 | AR9: 0 | AS9: 23.36 | AT9: 30.13 | AU9: 23.74 | AV9: 32.13 | AW9: 26.31 | AX9: 60.05 | AY9: 55.58 | AZ9: 6.57 | BA9: 5.91 | BB9: 9.02 | BC9: 26.67 | BD9: 32.2 | BE9: 89.29 | BF9: 11.69 | BG9: 42.67 | BH9: 61.14 | BI9: 39.09 | BJ9: 90.53 | BK9: 86.57 | BL9: 1.65 | BM9: 38.12 | BN9: 31.08 | BO9: 73.92 | BP9: 82.05 | BQ9: 133.29 | BR9: 151.32 | BS9: 147.49 | BT9: 131.14 | BU9: 9.42 | BV9: 147.06 | BW9: 40.32 | BX9: 159.49 | BY9: 144.85 | BZ9: 142.96 | CA9: 179.68 | CB9: 183.95 | CC9: 144.59 | CD9: 36.19 | CE9: 61.41 | CF9: 85.63 | CG9: 35.37 | CH9: 70.81 | CI9: 49.63 | CJ9: 65.69 | CK9: 223.26 | CL9: 116.3 | CM9: 150.69 | CN9: 142.26 | CO9: 25.79 | CP9: 220.53 | CQ9: 226.39 | CR9: 230.57 | CS9: 228.75 | CT9: 212.41 | CU9: 21.54 | CV9: 13.48 | CW9: 12.9 | CX9: 88.09 | CY9: 43.08 | CZ9: 74.64 | DA9: 153.37 | DB9: 279.95 | DC9: 134.57 | DD9: 135.08 | DE9: 25.46 | DF9: 0 | DG9: 230.32 | DH9: 33.96 | DI9: 215.48 | DJ9: 288.63 | DK9: 141.84 | DL9: 29.29 | DM9: 24.43 | DN9: 307.3 | DO9: 298.35 | DP9: 177.36 | DQ9: 245.41 | DR9: 268.45 | DS9: 265.63 | DT9: 265.7 | DU9: 110.94 | DV9: 38.54 | DW9: 295.91 | DX9: 286.91 | DY9: 300.72 | DZ9: 302.52 | EA9: 160.96 | EB9: 25.6 | EC9: 164.97 | ED9: 313.58 | EE9: 241.97 | EF9: 77.68 | EG9: 294.26 | EH9: 141.03 | EI9: 26.49 | EJ9: 118.78 | EK9: 311.14 | EL9: 307.45 | EM9: 281.69 | EN9: 54.04 | EO9: 157.72 | EP9: 306.32 | EQ9: 306.55 | ER9: 289.14 | ES9: 289.71 | ET9: 286.5 | EU9: 273.14 | EV9: 284.36 | EW9: 302.55 | EX9: 45.99 | EY9: 207.54 | EZ9: 286.38 | FA9: 261.56 | FB9: 284.45 | FC9: 221.78 | FD9: 287.1 | FE9: 303.77 | FF9: 297.36 | FG9: 293.9 | FH9: 294.33 | FI9: 200.55 | FJ9: 283.26 | FK9: 25.62 | FL9: 57.11 | FM9: 257.55 | FN9: 243.31 | FO9: 270.4 | FP9: 281.67 | FQ9: 138.41 | FR9: 218.96 | FS9: 272.04 | FT9: 274.38 | FU9: 252.39 | FV9: 259.16 | FW9: 281.84 | FX9: 270.18 | FY9: 272.2 | FZ9: 255.79 | GA9: 279.4 | GB9: 247.28 | GC9: 277.06 | GD9: 274.11 | GE9: 177.36 | GF9: 65.57 | GG9: 230.72 | GH9: 106.24 | GI9: 265.7 | GJ9: 39.87 | GK9: 54.34 | GL9: 224.26 | GM9: 265.51 | GN9: 249.74 | GO9: 262.32 | GP9: 264.61 | GQ9: 169.17 | GR9: 255.9 | GS9: 224.88 | GT9: 271.41 | GU9: 256.81 | GV9: 259.29 | GW9: 256.83 | GX9: 259.41 | GY9: 148.34 | GZ9: 232.09 | HA9: 239.25 | HB9: 225.24 | HC9: 230.63 | HD9: 233.34 | HE9: 222.89 | HF9: 233.53 | HG9: 251.16 | HH9: 226.38 | HI9: 264.3 | HJ9: 259.69 | HK9: 257.87 | HL9: 196.05 | HM9: 214.33 | HN9: 263.09 | HO9: 252.16 | HP9: 171.41 | HQ9: 31.42 | HR9: 181.74 | HS9: 218.39 | HT9: 101.62 | HU9: 250.09 | HV9: 254.63 | HW9: 252.97 | HX9: 187.91 | HY9: 235.48 | HZ9: 118.39 | IA9: 20.24 | IB9: 244.59 | IC9: 233.19 | ID9: 232.88 | IE9: 75.2 | IF9: 34.15 | IG9: 235.66 | IH9: 46.83 | II9: 239.7 | IJ9: 244.32 | IK9: 205.03 | IL9: 211.57 | IM9: 221.2 | IN9: 227.68 | IO9: 220.22 | IP9: 229.02 | IQ9: 226.14 | IR9: 42.4 | IS9: 229.25 | IT9: 14.12 | IU9: 219.32 | IV9: 138.76 | IW9: 43.02 | IX9: 243.78 | IY9: 240.74 | IZ9: 239.3 | JA9: 103.5 | JB9: 76.9 | JC9: 45.71 | JD9: 95.12 | JE9: 179.12 | JF9: 60.21 | JG9: 67.33 | JH9: 210.15 | JI9: 138.68 | JJ9: 230.34 | JK9: 192.18 | JL9: 160.17 | JM9: 106.7 | JN9: 20.27 | JO9: 217.52 | JP9: 200.66 | JQ9: 47.9 | JR9: 14.14 | JS9: 51.77 | JT9: 169.93 | JU9: 11.43 | JV9: 15.89 | JW9: 47.89 | JX9: 197.88 | JY9: 142.04 | JZ9: 213.52 | KA9: 197.98 | KB9: 178.86 | KC9: 187.5 | KD9: 153.76 | KE9: 146.22 | KF9: 152.64 | KG9: 31.77 | KH9: 45.58 | KI9: 24.55 | KJ9: 30.36 | KK9: 5.52 | KL9: 33.51 | KM9: 49.84 | KN9: 14.61 | KO9: 104.72 | KP9: 51.62 | KQ9: 44.84 | KR9: 70.82 | KS9: 90.22 | KT9: 30.5 | KU9: 27.79 | KV9: 8.4 | KW9: 68 | KX9: 21.78 | KY9: 7.8 | KZ9: 1.91 | LA9: 68.73 | LB9: 47.73 | LC9: 20.84 | LD9: 0.67 | LE9: 29.09 | LF9: 14.9 | LG9: 10.96 | LH9: 0.3 | LI9: 5.04 | LJ9: 1.1 | LK9: 30.31 | LL9: 13.84 | LM9: 19.82 | LN9: 26.87 | LO9: 35.81 | LP9: 1.14 | LQ9: 0 | LR9: 0 | LS9: 0 | LT9: 0 | LU9: 0 | LV9: 0 | LW9: 0 | LX9: 0 | LY9: 0 | LZ9: 0 | MA9: 0 | MB9: 0 | MC9: 0 | MD9: 0 | ME9: 0 | MF9: 0 | MG9: 0 | MH9: 0 | MI9: 0 | MJ9: 0 | MK9: 0 | ML9: 0 | MM9: 0 | MN9: 0 | MO9: 0 | MP9: 0 | MQ9: 0 | MR9: 0 | MS9: 0 | MT9: 0 | MU9: 0 | MV9: 0 | MW9: 0 | MX9: 0 | MY9: 0 | MZ9: 0 | NA9: 0 | NB9: 0 | NC9: 0
A10: 108.39 | B10: 08:00:00 | C10: 182.47 | D10: 181.27 | E10: 143.27 | F10: 219.05 | G10: 40.73 | H10: 146.71 | I10: 117.16 | J10: 90.85 | K10: 67.14 | L10: 33.63 | M10: 52.9 | N10: 40.68 | O10: 13.45 | P10: 45.45 | Q10: 217.03 | R10: 26.35 | S10: 30.25 | T10: 6.6 | U10: 109.93 | V10: 241.78 | W10: 213.09 | X10: 188.26 | Y10: 23.13 | Z10: 238.47 | AA10: 215.79 | AB10: 71 | AC10: 231.23 | AD10: 67.2 | AE10: 91.59 | AF10: 257.1 | AG10: 236.23 | AH10: 236.71 | AI10: 246.31 | AJ10: 254.91 | AK10: 209.84 | AL10: 27.9 | AM10: 231.21 | AN10: 241.24 | AO10: 78.26 | AP10: 236.27 | AQ10: 244.75 | AR10: 117.07 | AS10: 258.37 | AT10: 290.49 | AU10: 255.33 | AV10: 312.62 | AW10: 144.29 | AX10: 336.25 | AY10: 318.29 | AZ10: 82.42 | BA10: 19.8 | BB10: 17.07 | BC10: 54.22 | BD10: 284.2 | BE10: 313.11 | BF10: 98.4 | BG10: 242.97 | BH10: 287.65 | BI10: 220.37 | BJ10: 325.96 | BK10: 317.43 | BL10: 17.86 | BM10: 131.2 | BN10: 86.38 | BO10: 233.98 | BP10: 341.11 | BQ10: 376.24 | BR10: 396.62 | BS10: 382.34 | BT10: 362.63 | BU10: 139.48 | BV10: 375.03 | BW10: 257.8 | BX10: 375.58 | BY10: 352.01 | BZ10: 347.36 | CA10: 389.86 | CB10: 397.99 | CC10: 321.51 | CD10: 71.56 | CE10: 102.15 | CF10: 126.77 | CG10: 75.35 | CH10: 99.49 | CI10: 31.45 | CJ10: 113.26 | CK10: 450.35 | CL10: 248.36 | CM10: 385.12 | CN10: 161.06 | CO10: 108.03 | CP10: 435.46 | CQ10: 436.93 | CR10: 438.3 | CS10: 433.06 | CT10: 400.76 | CU10: 50.45 | CV10: 58.42 | CW10: 36.75 | CX10: 47.98 | CY10: 39.26 | CZ10: 84.38 | DA10: 358.1 | DB10: 478.01 | DC10: 452.86 | DD10: 41.88 | DE10: 56.88 | DF10: 0 | DG10: 456.71 | DH10: 227.28 | DI10: 355.63 | DJ10: 488.12 | DK10: 147.31 | DL10: 40.23 | DM10: 101.37 | DN10: 510.65 | DO10: 495.81 | DP10: 186.62 | DQ10: 331.98 | DR10: 441.25 | DS10: 413.05 | DT10: 455.66 | DU10: 248 | DV10: 493.4 | DW10: 475.5 | DX10: 491.97 | DY10: 477.97 | DZ10: 485.6 | EA10: 289.35 | EB10: 68.14 | EC10: 192.45 | ED10: 480.67 | EE10: 129.73 | EF10: 408.76 | EG10: 465.25 | EH10: 162.81 | EI10: 445.79 | EJ10: 259.07 | EK10: 485.44 | EL10: 484.23 | EM10: 440.66 | EN10: 93.04 | EO10: 184.37 | EP10: 476.01 | EQ10: 473.26 | ER10: 453.89 | ES10: 451.17 | ET10: 448.94 | EU10: 445.89 | EV10: 455.92 | EW10: 468.53 | EX10: 213.71 | EY10: 419.98 | EZ10: 455.93 | FA10: 451.65 | FB10: 434.05 | FC10: 466.05 | FD10: 454.01 | FE10: 451.53 | FF10: 475.56 | FG10: 465.24 | FH10: 458.87 | FI10: 298.62 | FJ10: 256.59 | FK10: 77.11 | FL10: 191.46 | FM10: 410.4 | FN10: 424.77 | FO10: 435.56 | FP10: 446.02 | FQ10: 449.97 | FR10: 440.28 | FS10: 430.53 | FT10: 437.38 | FU10: 432.98 | FV10: 397.89 | FW10: 454.51 | FX10: 425.54 | FY10: 430.26 | FZ10: 408.73 | GA10: 445.69 | GB10: 297.75 | GC10: 444.79 | GD10: 442.18 | GE10: 261.25 | GF10: 159.52 | GG10: 394.57 | GH10: 234.78 | GI10: 432.87 | GJ10: 84.01 | GK10: 105.34 | GL10: 432.48 | GM10: 436.51 | GN10: 421.93 | GO10: 426.17 | GP10: 427.95 | GQ10: 309.94 | GR10: 421.06 | GS10: 388.97 | GT10: 445.44 | GU10: 422.28 | GV10: 433.95 | GW10: 422.24 | GX10: 433.5 | GY10: 274.54 | GZ10: 342.04 | HA10: 393.84 | HB10: 400.06 | HC10: 383.55 | HD10: 391.88 | HE10: 385.66 | HF10: 407.02 | HG10: 400.28 | HH10: 229.61 | HI10: 436.63 | HJ10: 418.71 | HK10: 422.83 | HL10: 156.38 | HM10: 311.17 | HN10: 428.69 | HO10: 54.33 | HP10: 281.65 | HQ10: 56.25 | HR10: 353.27 | HS10: 327.23 | HT10: 220.97 | HU10: 434.56 | HV10: 436.37 | HW10: 414.91 | HX10: 375.76 | HY10: 406.42 | HZ10: 52.24 | IA10: 44.91 | IB10: 398.39 | IC10: 380.23 | ID10: 390.41 | IE10: 156.61 | IF10: 228.97 | IG10: 458.1 | IH10: 161.64 | II10: 418.56 | IJ10: 407.81 | IK10: 353.54 | IL10: 384.98 | IM10: 342.02 | IN10: 414.61 | IO10: 425.98 | IP10: 262.7 | IQ10: 405.91 | IR10: 106.58 | IS10: 402.34 | IT10: 23.88 | IU10: 244.21 | IV10: 174.84 | IW10: 137.29 | IX10: 433 | IY10: 442.64 | IZ10: 439.44 | JA10: 166.56 | JB10: 351.19 | JC10: 44.95 | JD10: 102.43 | JE10: 303.67 | JF10: 151.94 | JG10: 113.81 | JH10: 412.12 | JI10: 252.54 | JJ10: 392.3 | JK10: 382.01 | JL10: 130.7 | JM10: 37.93 | JN10: 122.98 | JO10: 416.65 | JP10: 341.28 | JQ10: 87.94 | JR10: 14.79 | JS10: 324.57 | JT10: 171.57 | JU10: 69.77 | JV10: 198.05 | JW10: 144.16 | JX10: 431.02 | JY10: 142.42 | JZ10: 322.63 | KA10: 406.35 | KB10: 388.49 | KC10: 382.95 | KD10: 350.06 | KE10: 332.21 | KF10: 318.52 | KG10: 44.03 | KH10: 31.61 | KI10: 13.56 | KJ10: 64.75 | KK10: 84.58 | KL10: 11.95 | KM10: 123.6 | KN10: 82.03 | KO10: 300.88 | KP10: 124.76 | KQ10: 99.1 | KR10: 232.04 | KS10: 257.4 | KT10: 60.62 | KU10: 20.79 | KV10: 20.65 | KW10: 73.36 | KX10: 6.6 | KY10: 156.55 | KZ10: 12.73 | LA10: 368.94 | LB10: 165.16 | LC10: 63.72 | LD10: 45.9 | LE10: 124.15 | LF10: 89.47 | LG10: 70.22 | LH10: 47.63 | LI10: 156.89 | LJ10: 242.22 | LK10: 122.08 | LL10: 223.08 | LM10: 324.87 | LN10: 286.14 | LO10: 306.14 | LP10: 236.22 | LQ10: 226.65 | LR10: 144.31 | LS10: 16.34 | LT10: 24.93 | LU10: 220.05 | LV10: 235.19 | LW10: 5.88 | LX10: 76.07 | LY10: 232.18 | LZ10: 5.87 | MA10: 2.08 | MB10: 237.82 | MC10: 40.92 | MD10: 48.89 | ME10: 96.97 | MF10: 52.31 | MG10: 264.59 | MH10: 43.81 | MI10: 213.88 | MJ10: 111.95 | MK10: 45.2 | ML10: 125.6 | MM10: 27 | MN10: 35.27 | MO10: 208.38 | MP10: 206.42 | MQ10: 39.65 | MR10: 227.01 | MS10: 187.38 | MT10: 221.72 | MU10: 179.77 | MV10: 174.55 | MW10: 0.34 | MX10: 18.7 | MY10: 27.55 | MZ10: 3.69 | NA10: 74.56 | NB10: 54.04 | NC10: 100.35
A11: 72.58 | B11: 09:00:00 | C11: 417.99 | D11: 421.67 | E11: 417.89 | F11: 422.26 | G11: 208.34 | H11: 426.67 | I11: 145.38 | J11: 71.46 | K11: 12.65 | L11: 56.26 | M11: 105.21 | N11: 82.22 | O11: 111.48 | P11: 87.56 | Q11: 138.35 | R11: 62.02 | S11: 64.47 | T11: 7.79 | U11: 247.18 | V11: 392.23 | W11: 484.71 | X11: 455.25 | Y11: 19.77 | Z11: 480.98 | AA11: 321.38 | AB11: 357.29 | AC11: 496.57 | AD11: 370.77 | AE11: 154.6 | AF11: 461.25 | AG11: 528.45 | AH11: 478.56 | AI11: 465.58 | AJ11: 489.12 | AK11: 221.46 | AL11: 32.27 | AM11: 453.65 | AN11: 460.76 | AO11: 147.7 | AP11: 476.35 | AQ11: 475.94 | AR11: 263.39 | AS11: 511.81 | AT11: 523.51 | AU11: 416.04 | AV11: 536.73 | AW11: 81.56 | AX11: 498.28 | AY11: 518.99 | AZ11: 132.3 | BA11: 19.02 | BB11: 90.96 | BC11: 128.82 | BD11: 110.65 | BE11: 465.45 | BF11: 141.91 | BG11: 587.58 | BH11: 540.21 | BI11: 343.81 | BJ11: 542.6 | BK11: 534.49 | BL11: 36.52 | BM11: 177.74 | BN11: 181.38 | BO11: 401.43 | BP11: 536.98 | BQ11: 589.39 | BR11: 581.18 | BS11: 572.69 | BT11: 555.61 | BU11: 557.08 | BV11: 549.63 | BW11: 302.47 | BX11: 571.81 | BY11: 553.76 | BZ11: 540.72 | CA11: 573.56 | CB11: 596.02 | CC11: 532.32 | CD11: 102.5 | CE11: 115.05 | CF11: 191.12 | CG11: 149.53 | CH11: 179.14 | CI11: 104.27 | CJ11: 41.77 | CK11: 640.12 | CL11: 230.11 | CM11: 551.82 | CN11: 311.17 | CO11: 84.49 | CP11: 611.62 | CQ11: 617.57 | CR11: 591.91 | CS11: 596.98 | CT11: 547.66 | CU11: 77.52 | CV11: 67.35 | CW11: 117.22 | CX11: 56.66 | CY11: 88.07 | CZ11: 82.38 | DA11: 575.2 | DB11: 637.66 | DC11: 606.28 | DD11: 37.48 | DE11: 81.46 | DF11: 0 | DG11: 455.63 | DH11: 251.09 | DI11: 513.34 | DJ11: 652.35 | DK11: 99.76 | DL11: 72.09 | DM11: 89.38 | DN11: 656.8 | DO11: 639.3 | DP11: 615.88 | DQ11: 444.3 | DR11: 536.71 | DS11: 569.59 | DT11: 594.7 | DU11: 425.63 | DV11: 625.59 | DW11: 606.68 | DX11: 631.01 | DY11: 611.44 | DZ11: 639.78 | EA11: 509.91 | EB11: 69.27 | EC11: 537.38 | ED11: 594.98 | EE11: 289.2 | EF11: 75.47 | EG11: 611.51 | EH11: 338.52 | EI11: 569.76 | EJ11: 321.29 | EK11: 612.31 | EL11: 622.79 | EM11: 580.64 | EN11: 590.97 | EO11: 93.63 | EP11: 617.8 | EQ11: 604.73 | ER11: 593.45 | ES11: 588.87 | ET11: 578.54 | EU11: 576.77 | EV11: 582.32 | EW11: 593 | EX11: 374.92 | EY11: 504.09 | EZ11: 585.7 | FA11: 542.99 | FB11: 543.29 | FC11: 592.98 | FD11: 591.77 | FE11: 558.52 | FF11: 616.05 | FG11: 588.64 | FH11: 580.07 | FI11: 231.12 | FJ11: 214.83 | FK11: 98.36 | FL11: 479.94 | FM11: 569.04 | FN11: 544.4 | FO11: 561.44 | FP11: 579.74 | FQ11: 587.83 | FR11: 570.24 | FS11: 554.11 | FT11: 569.75 | FU11: 543.26 | FV11: 497.74 | FW11: 574.85 | FX11: 546.17 | FY11: 556.54 | FZ11: 521.05 | GA11: 574.84 | GB11: 535.75 | GC11: 574.63 | GD11: 575 | GE11: 421.15 | GF11: 256.96 | GG11: 505.92 | GH11: 373.78 | GI11: 558.52 | GJ11: 201.3 | GK11: 200.56 | GL11: 560.46 | GM11: 567.05 | GN11: 564.1 | GO11: 565.97 | GP11: 575.98 | GQ11: 296.58 | GR11: 554.6 | GS11: 501.21 | GT11: 588.1 | GU11: 563.39 | GV11: 578.32 | GW11: 559.42 | GX11: 572.32 | GY11: 524.35 | GZ11: 492.56 | HA11: 523.61 | HB11: 552.08 | HC11: 526.47 | HD11: 526.53 | HE11: 529.94 | HF11: 519.38 | HG11: 559.04 | HH11: 188.76 | HI11: 588.2 | HJ11: 577.21 | HK11: 558.32 | HL11: 167.78 | HM11: 534.25 | HN11: 570.25 | HO11: 586.63 | HP11: 475.21 | HQ11: 138.81 | HR11: 396.68 | HS11: 506.37 | HT11: 529.3 | HU11: 597.77 | HV11: 588.59 | HW11: 570.78 | HX11: 545.66 | HY11: 552.61 | HZ11: 107.95 | IA11: 60.34 | IB11: 411.36 | IC11: 407.37 | ID11: 557.16 | IE11: 323.87 | IF11: 286.99 | IG11: 416.06 | IH11: 362.07 | II11: 568.54 | IJ11: 563.58 | IK11: 533.56 | IL11: 551.22 | IM11: 371.14 | IN11: 572.96 | IO11: 574.05 | IP11: 474.58 | IQ11: 566.01 | IR11: 89.42 | IS11: 568.04 | IT11: 72.28 | IU11: 265 | IV11: 416.51 | IW11: 165.93 | IX11: 582.64 | IY11: 599.12 | IZ11: 579.12 | JA11: 524.38 | JB11: 430.22 | JC11: 114.82 | JD11: 55.33 | JE11: 353.01 | JF11: 291.05 | JG11: 159.29 | JH11: 556.95 | JI11: 542.55 | JJ11: 536.99 | JK11: 545.96 | JL11: 322.72 | JM11: 235.74 | JN11: 266.88 | JO11: 551.25 | JP11: 323.8 | JQ11: 61.58 | JR11: 421.27 | JS11: 102.61 | JT11: 140.17 | JU11: 50.57 | JV11: 101.13 | JW11: 314.58 | JX11: 588.59 | JY11: 192.23 | JZ11: 329.54 | KA11: 581.02 | KB11: 575.86 | KC11: 560.68 | KD11: 527.31 | KE11: 449.63 | KF11: 511.73 | KG11: 49.91 | KH11: 71.78 | KI11: 30.95 | KJ11: 86.83 | KK11: 183.32 | KL11: 19.1 | KM11: 203.97 | KN11: 61.22 | KO11: 153.43 | KP11: 150.14 | KQ11: 162.92 | KR11: 226.74 | KS11: 500.38 | KT11: 74.2 | KU11: 39.39 | KV11: 35.33 | KW11: 161.37 | KX11: 25.44 | KY11: 13.35 | KZ11: 29.09 | LA11: 501.85 | LB11: 234.84 | LC11: 84.7 | LD11: 60.34 | LE11: 109.22 | LF11: 111.92 | LG11: 71.95 | LH11: 30.97 | LI11: 84.83 | LJ11: 107.18 | LK11: 135.53 | LL11: 490.52 | LM11: 508.18 | LN11: 504.03 | LO11: 500.59 | LP11: 525.83 | LQ11: 429.77 | LR11: 273.25 | LS11: 51.14 | LT11: 82.71 | LU11: 380.41 | LV11: 445.41 | LW11: 14.2 | LX11: 206.79 | LY11: 497.77 | LZ11: 18.99 | MA11: 8.28 | MB11: 226.24 | MC11: 92.05 | MD11: 89.23 | ME11: 206.22 | MF11: 42.51 | MG11: 193.58 | MH11: 233.35 | MI11: 464.68 | MJ11: 23.46 | MK11: 113.78 | ML11: 188.42 | MM11: 140.35 | MN11: 78.46 | MO11: 427.88 | MP11: 465.29 | MQ11: 147.1 | MR11: 298.28 | MS11: 388.57 | MT11: 421.33 | MU11: 416.01 | MV11: 443.51 | MW11: 5.81 | MX11: 46.49 | MY11: 35.39 | MZ11: 16.5 | NA11: 101.51 | NB11: 154.16 | NC11: 29.62
A12: 35.37 | B12: 10:00:00 | C12: 586.64 | D12: 581.4 | E12: 577.6 | F12: 562.55 | G12: 177.09 | H12: 598.38 | I12: 183.36 | J12: 32.63 | K12: 11.8 | L12: 38.33 | M12: 283.33 | N12: 112.69 | O12: 369.21 | P12: 89.63 | Q12: 43.53 | R12: 53.45 | S12: 55.8 | T12: 13.63 | U12: 352.82 | V12: 547.81 | W12: 658.07 | X12: 616.47 | Y12: 14.79 | Z12: 212.19 | AA12: 646 | AB12: 501.79 | AC12: 636.8 | AD12: 491.31 | AE12: 440.84 | AF12: 641.74 | AG12: 645.07 | AH12: 629.55 | AI12: 634.83 | AJ12: 609.38 | AK12: 274.85 | AL12: 22.53 | AM12: 635.47 | AN12: 410.5 | AO12: 181.08 | AP12: 646 | AQ12: 649.07 | AR12: 417.3 | AS12: 623.1 | AT12: 674.33 | AU12: 518.19 | AV12: 692.41 | AW12: 146.29 | AX12: 591.48 | AY12: 656.98 | AZ12: 386.01 | BA12: 25.55 | BB12: 51.12 | BC12: 100.06 | BD12: 90.9 | BE12: 516.11 | BF12: 217.74 | BG12: 673.13 | BH12: 678.31 | BI12: 581.15 | BJ12: 689.02 | BK12: 673.69 | BL12: 26.57 | BM12: 247.21 | BN12: 296.74 | BO12: 506.54 | BP12: 669.94 | BQ12: 728.03 | BR12: 710.76 | BS12: 697.39 | BT12: 698 | BU12: 705.25 | BV12: 686.16 | BW12: 388.71 | BX12: 701.55 | BY12: 673.71 | BZ12: 678.39 | CA12: 706.09 | CB12: 711.95 | CC12: 670.36 | CD12: 99.68 | CE12: 273.02 | CF12: 640.76 | CG12: 179.87 | CH12: 296.78 | CI12: 93.74 | CJ12: 62.88 | CK12: 756.91 | CL12: 200.73 | CM12: 592.36 | CN12: 265.46 | CO12: 542.92 | CP12: 744.59 | CQ12: 734 | CR12: 711.91 | CS12: 709.33 | CT12: 702.92 | CU12: 90.54 | CV12: 138.29 | CW12: 198.05 | CX12: 77.93 | CY12: 47.44 | CZ12: 87.53 | DA12: 735.75 | DB12: 739.73 | DC12: 734.3 | DD12: 58 | DE12: 124.05 | DF12: 0 | DG12: 78.36 | DH12: 288.47 | DI12: 722.39 | DJ12: 724.44 | DK12: 259.26 | DL12: 80.46 | DM12: 79.11 | DN12: 771.19 | DO12: 735.74 | DP12: 709.35 | DQ12: 673.89 | DR12: 665.66 | DS12: 675.02 | DT12: 680.66 | DU12: 268.66 | DV12: 713.72 | DW12: 708.56 | DX12: 732.78 | DY12: 714.95 | DZ12: 735.97 | EA12: 684.87 | EB12: 111.01 | EC12: 569.22 | ED12: 724.51 | EE12: 256.92 | EF12: 44.73 | EG12: 692.45 | EH12: 230.91 | EI12: 168.09 | EJ12: 439.5 | EK12: 706.88 | EL12: 701.01 | EM12: 650.2 | EN12: 679.27 | EO12: 45.09 | EP12: 704.14 | EQ12: 703.01 | ER12: 690.29 | ES12: 674.45 | ET12: 670.89 | EU12: 668.82 | EV12: 677.25 | EW12: 668.65 | EX12: 402.25 | EY12: 680.66 | EZ12: 672.04 | FA12: 634.35 | FB12: 600.1 | FC12: 698.36 | FD12: 686.07 | FE12: 571.42 | FF12: 707.64 | FG12: 685.44 | FH12: 659.85 | FI12: 470.33 | FJ12: 419.03 | FK12: 56.56 | FL12: 413.75 | FM12: 647.88 | FN12: 630.94 | FO12: 650.78 | FP12: 671.56 | FQ12: 674.73 | FR12: 650.23 | FS12: 639.64 | FT12: 656.3 | FU12: 599.07 | FV12: 578.58 | FW12: 664.87 | FX12: 638.12 | FY12: 641.89 | FZ12: 613.3 | GA12: 661.75 | GB12: 438.42 | GC12: 651.6 | GD12: 657.53 | GE12: 643.69 | GF12: 633.27 | GG12: 660.09 | GH12: 540.85 | GI12: 621.67 | GJ12: 385.24 | GK12: 87.33 | GL12: 651.56 | GM12: 649.01 | GN12: 600.73 | GO12: 646.55 | GP12: 646.66 | GQ12: 629.7 | GR12: 634.2 | GS12: 595.31 | GT12: 668.66 | GU12: 634.36 | GV12: 667.84 | GW12: 668.6 | GX12: 663.23 | GY12: 627.95 | GZ12: 482.1 | HA12: 624.2 | HB12: 631.02 | HC12: 606.22 | HD12: 610.88 | HE12: 617.34 | HF12: 578.08 | HG12: 660.31 | HH12: 109.99 | HI12: 693.99 | HJ12: 666.04 | HK12: 653.24 | HL12: 267.18 | HM12: 359.81 | HN12: 662.93 | HO12: 677.31 | HP12: 144.69 | HQ12: 55.29 | HR12: 440.75 | HS12: 609.69 | HT12: 450.32 | HU12: 692.36 | HV12: 677.46 | HW12: 669.64 | HX12: 553.36 | HY12: 657.54 | HZ12: 49.19 | IA12: 124.61 | IB12: 262.17 | IC12: 547.69 | ID12: 621.68 | IE12: 479.92 | IF12: 215.24 | IG12: 327.88 | IH12: 274.42 | II12: 651.83 | IJ12: 647.73 | IK12: 639.01 | IL12: 659.77 | IM12: 500.38 | IN12: 671.06 | IO12: 684.32 | IP12: 686.35 | IQ12: 595.46 | IR12: 406.04 | IS12: 413.61 | IT12: 113.67 | IU12: 597.24 | IV12: 467.55 | IW12: 285.38 | IX12: 682.04 | IY12: 697.75 | IZ12: 672.06 | JA12: 543.87 | JB12: 84.76 | JC12: 56.82 | JD12: 77.89 | JE12: 673.8 | JF12: 648.87 | JG12: 225.73 | JH12: 652.05 | JI12: 528.93 | JJ12: 658.11 | JK12: 640.41 | JL12: 233.71 | JM12: 531.67 | JN12: 203.17 | JO12: 647.47 | JP12: 711.91 | JQ12: 42.76 | JR12: 313.41 | JS12: 168.2 | JT12: 63.48 | JU12: 70.89 | JV12: 206.86 | JW12: 333.33 | JX12: 685.97 | JY12: 117.57 | JZ12: 356.91 | KA12: 683.37 | KB12: 662.36 | KC12: 651.89 | KD12: 628.11 | KE12: 601.82 | KF12: 528.06 | KG12: 66.58 | KH12: 66.99 | KI12: 126.39 | KJ12: 72.57 | KK12: 412.06 | KL12: 43.96 | KM12: 202.55 | KN12: 144.77 | KO12: 345.05 | KP12: 181.54 | KQ12: 208.11 | KR12: 247.28 | KS12: 555.31 | KT12: 110.03 | KU12: 24.87 | KV12: 87.81 | KW12: 521.03 | KX12: 19.16 | KY12: 87.2 | KZ12: 32.63 | LA12: 676.6 | LB12: 248.44 | LC12: 54.24 | LD12: 57.71 | LE12: 108.43 | LF12: 112.85 | LG12: 39.85 | LH12: 72.68 | LI12: 68.63 | LJ12: 127.92 | LK12: 332.78 | LL12: 633.88 | LM12: 640.45 | LN12: 635.92 | LO12: 640.63 | LP12: 575.89 | LQ12: 0 | LR12: 278.33 | LS12: 14.2 | LT12: 22.65 | LU12: 582.6 | LV12: 585.01 | LW12: 31.65 | LX12: 502.54 | LY12: 602.63 | LZ12: 13.43 | MA12: 80.62 | MB12: 303.91 | MC12: 59.18 | MD12: 127.46 | ME12: 495.32 | MF12: 66.72 | MG12: 651.76 | MH12: 610.3 | MI12: 577.03 | MJ12: 256.56 | MK12: 140.34 | ML12: 339.15 | MM12: 81.29 | MN12: 237.84 | MO12: 581.14 | MP12: 560.35 | MQ12: 103.35 | MR12: 379.79 | MS12: 101.73 | MT12: 581.98 | MU12: 491.16 | MV12: 520.26 | MW12: 10.7 | MX12: 78.95 | MY12: 97.33 | MZ12: 17.16 | NA12: 138.7 | NB12: 156.74 | NC12: 11.57
A13: 156.12 | B13: 11:00:00 | C13: 663.49 | D13: 688.11 | E13: 656.2 | F13: 669.54 | G13: 554.87 | H13: 654.6 | I13: 148.5 | J13: 38.39 | K13: 38.71 | L13: 92.07 | M13: 124.31 | N13: 153.94 | O13: 456.54 | P13: 107.39 | Q13: 46.35 | R13: 53.33 | S13: 46.77 | T13: 17.73 | U13: 177.35 | V13: 690.22 | W13: 752.31 | X13: 64.25 | Y13: 40.42 | Z13: 378.29 | AA13: 749.91 | AB13: 422.87 | AC13: 722.35 | AD13: 545.34 | AE13: 595.18 | AF13: 744.18 | AG13: 743.28 | AH13: 711.16 | AI13: 705.5 | AJ13: 689.37 | AK13: 175.49 | AL13: 38.9 | AM13: 722.83 | AN13: 304.32 | AO13: 328.76 | AP13: 729.9 | AQ13: 734.56 | AR13: 549.49 | AS13: 744.86 | AT13: 743.04 | AU13: 408.84 | AV13: 769.22 | AW13: 515.95 | AX13: 711.29 | AY13: 746.67 | AZ13: 327.85 | BA13: 31.49 | BB13: 119.53 | BC13: 95.22 | BD13: 581.02 | BE13: 426.53 | BF13: 404.92 | BG13: 799 | BH13: 683.72 | BI13: 785.93 | BJ13: 691.83 | BK13: 757.73 | BL13: 31.09 | BM13: 278.52 | BN13: 224.93 | BO13: 687.95 | BP13: 769.25 | BQ13: 808.66 | BR13: 775.43 | BS13: 753.3 | BT13: 768.45 | BU13: 729.71 | BV13: 748.86 | BW13: 415.7 | BX13: 759.77 | BY13: 730.71 | BZ13: 763.5 | CA13: 767.52 | CB13: 781.25 | CC13: 773.64 | CD13: 199.11 | CE13: 335.61 | CF13: 691.7 | CG13: 152.57 | CH13: 245.05 | CI13: 207.9 | CJ13: 41.57 | CK13: 809.79 | CL13: 254.44 | CM13: 554.56 | CN13: 580.44 | CO13: 207.41 | CP13: 805.24 | CQ13: 798.49 | CR13: 766.81 | CS13: 751.11 | CT13: 749.32 | CU13: 343.26 | CV13: 82.44 | CW13: 229.15 | CX13: 111.96 | CY13: 93.73 | CZ13: 373.43 | DA13: 816.56 | DB13: 763 | DC13: 667.28 | DD13: 55.62 | DE13: 330.42 | DF13: 0 | DG13: 79.82 | DH13: 359.84 | DI13: 796.44 | DJ13: 701.84 | DK13: 158.24 | DL13: 76.23 | DM13: 408.62 | DN13: 824.57 | DO13: 778.39 | DP13: 763.43 | DQ13: 770.9 | DR13: 724.37 | DS13: 728.02 | DT13: 737 | DU13: 518.38 | DV13: 760.58 | DW13: 739.96 | DX13: 773.36 | DY13: 762.17 | DZ13: 781.32 | EA13: 761.52 | EB13: 91.99 | EC13: 529.67 | ED13: 776.49 | EE13: 474.07 | EF13: 117.87 | EG13: 726.44 | EH13: 279.52 | EI13: 582.53 | EJ13: 237.09 | EK13: 756.34 | EL13: 739.66 | EM13: 663.07 | EN13: 736.15 | EO13: 64.35 | EP13: 746.63 | EQ13: 742.61 | ER13: 744.44 | ES13: 719.82 | ET13: 724.86 | EU13: 725.65 | EV13: 721.73 | EW13: 723.53 | EX13: 495.23 | EY13: 715.98 | EZ13: 709.53 | FA13: 577.4 | FB13: 539.36 | FC13: 715.32 | FD13: 725.43 | FE13: 669.49 | FF13: 746.42 | FG13: 727.89 | FH13: 228.55 | FI13: 671.68 | FJ13: 473.31 | FK13: 124.93 | FL13: 353.45 | FM13: 709.57 | FN13: 644.21 | FO13: 698.74 | FP13: 682.12 | FQ13: 723.06 | FR13: 690.44 | FS13: 681.34 | FT13: 709.75 | FU13: 684.8 | FV13: 627.64 | FW13: 705.61 | FX13: 694.55 | FY13: 689.28 | FZ13: 669.82 | GA13: 714.16 | GB13: 681.75 | GC13: 707.86 | GD13: 715.65 | GE13: 560.67 | GF13: 599.11 | GG13: 708.82 | GH13: 707.69 | GI13: 671.08 | GJ13: 306.64 | GK13: 250.25 | GL13: 709.75 | GM13: 716.24 | GN13: 704.13 | GO13: 707.81 | GP13: 706.86 | GQ13: 696.42 | GR13: 696.75 | GS13: 630.98 | GT13: 719.62 | GU13: 692.01 | GV13: 724.12 | GW13: 694.27 | GX13: 713.31 | GY13: 601.9 | GZ13: 500.36 | HA13: 687.69 | HB13: 681.47 | HC13: 667.73 | HD13: 588.26 | HE13: 673.25 | HF13: 651.53 | HG13: 717.7 | HH13: 60.9 | HI13: 743.99 | HJ13: 724.94 | HK13: 716.02 | HL13: 410.79 | HM13: 509.77 | HN13: 711.06 | HO13: 732.38 | HP13: 148.59 | HQ13: 130.87 | HR13: 704.12 | HS13: 654.79 | HT13: 575.41 | HU13: 744.58 | HV13: 725.4 | HW13: 721.81 | HX13: 625 | HY13: 708.27 | HZ13: 528.99 | IA13: 172.12 | IB13: 148.82 | IC13: 634.4 | ID13: 690.31 | IE13: 472.54 | IF13: 351.43 | IG13: 397.62 | IH13: 257.7 | II13: 714.84 | IJ13: 698.12 | IK13: 686.07 | IL13: 704.32 | IM13: 720.11 | IN13: 720.75 | IO13: 736.82 | IP13: 732.77 | IQ13: 747.55 | IR13: 251.68 | IS13: 636.55 | IT13: 72.88 | IU13: 635.42 | IV13: 566.05 | IW13: 249.98 | IX13: 722.77 | IY13: 731.81 | IZ13: 707.84 | JA13: 349.5 | JB13: 262.39 | JC13: 74.3 | JD13: 192.88 | JE13: 718.76 | JF13: 703.04 | JG13: 296.68 | JH13: 588.58 | JI13: 580.25 | JJ13: 691.84 | JK13: 638.79 | JL13: 317.91 | JM13: 296.59 | JN13: 402.4 | JO13: 653.88 | JP13: 530.32 | JQ13: 32.38 | JR13: 38.43 | JS13: 402.78 | JT13: 45.46 | JU13: 37.24 | JV13: 124 | JW13: 484.13 | JX13: 711.13 | JY13: 190.61 | JZ13: 440.88 | KA13: 749.29 | KB13: 732.88 | KC13: 712.51 | KD13: 729.02 | KE13: 727.48 | KF13: 429.07 | KG13: 99.07 | KH13: 73.08 | KI13: 115.01 | KJ13: 471.16 | KK13: 391.27 | KL13: 29.39 | KM13: 241.42 | KN13: 204.03 | KO13: 668.55 | KP13: 264.85 | KQ13: 562.01 | KR13: 648.49 | KS13: 671.52 | KT13: 100.88 | KU13: 40.75 | KV13: 62.48 | KW13: 720.18 | KX13: 61.4 | KY13: 34.07 | KZ13: 23.41 | LA13: 702.73 | LB13: 251.75 | LC13: 56.33 | LD13: 36.44 | LE13: 134.62 | LF13: 110.49 | LG13: 84.35 | LH13: 85.07 | LI13: 158.77 | LJ13: 144.26 | LK13: 684.79 | LL13: 689.38 | LM13: 661.2 | LN13: 680.58 | LO13: 740.73 | LP13: 680.62 | LQ13: 652.16 | LR13: 679.04 | LS13: 24.84 | LT13: 36.88 | LU13: 635.77 | LV13: 640.51 | LW13: 19.83 | LX13: 283.82 | LY13: 674.73 | LZ13: 44.27 | MA13: 94.38 | MB13: 169.57 | MC13: 31.46 | MD13: 586.03 | ME13: 718.62 | MF13: 52.06 | MG13: 726.49 | MH13: 666.15 | MI13: 657.75 | MJ13: 104.22 | MK13: 112.6 | ML13: 420.5 | MM13: 593.72 | MN13: 60.06 | MO13: 656.47 | MP13: 656.47 | MQ13: 86.68 | MR13: 555.98 | MS13: 216.91 | MT13: 646.54 | MU13: 643.46 | MV13: 645.96 | MW13: 36.34 | MX13: 23.81 | MY13: 36.78 | MZ13: 88.52 | NA13: 131.25 | NB13: 164.26 | NC13: 14.19
A14: 38.2 | B14: 12:00:00 | C14: 701.69 | D14: 700.5 | E14: 671.23 | F14: 682.65 | G14: 211.65 | H14: 700.92 | I14: 127.16 | J14: 41.92 | K14: 36.3 | L14: 95.01 | M14: 539.75 | N14: 183.13 | O14: 699.56 | P14: 95.65 | Q14: 44.69 | R14: 65.12 | S14: 41.16 | T14: 20.51 | U14: 333.25 | V14: 746.66 | W14: 761.11 | X14: 336.11 | Y14: 18.9 | Z14: 612.18 | AA14: 686.72 | AB14: 699.27 | AC14: 760.21 | AD14: 762.3 | AE14: 745.36 | AF14: 763 | AG14: 758.75 | AH14: 706.86 | AI14: 714.43 | AJ14: 693.56 | AK14: 417.51 | AL14: 38.01 | AM14: 772.48 | AN14: 262.24 | AO14: 742.73 | AP14: 784.58 | AQ14: 770.95 | AR14: 795.58 | AS14: 668.54 | AT14: 758.2 | AU14: 493.71 | AV14: 749.71 | AW14: 584.71 | AX14: 749.61 | AY14: 769.62 | AZ14: 224.28 | BA14: 39.88 | BB14: 66.22 | BC14: 243.33 | BD14: 338.62 | BE14: 467.1 | BF14: 487.74 | BG14: 822.92 | BH14: 779.67 | BI14: 883.58 | BJ14: 658.25 | BK14: 760.48 | BL14: 31.84 | BM14: 317.59 | BN14: 268.48 | BO14: 769.48 | BP14: 803.57 | BQ14: 816.09 | BR14: 784.73 | BS14: 736.36 | BT14: 771.49 | BU14: 733.86 | BV14: 759.8 | BW14: 760.88 | BX14: 786.39 | BY14: 774.09 | BZ14: 794.3 | CA14: 777.96 | CB14: 797.29 | CC14: 815.44 | CD14: 235.31 | CE14: 514.6 | CF14: 684.86 | CG14: 265.55 | CH14: 108.67 | CI14: 116.82 | CJ14: 54.64 | CK14: 807.38 | CL14: 450.12 | CM14: 500.42 | CN14: 526.19 | CO14: 271.04 | CP14: 816.53 | CQ14: 795.66 | CR14: 759.92 | CS14: 758.6 | CT14: 738.39 | CU14: 264.45 | CV14: 102.95 | CW14: 207.7 | CX14: 157.8 | CY14: 81.69 | CZ14: 171.4 | DA14: 816.68 | DB14: 738.88 | DC14: 668.2 | DD14: 55.64 | DE14: 777.95 | DF14: 0 | DG14: 60.56 | DH14: 458.8 | DI14: 809.23 | DJ14: 605.46 | DK14: 460.62 | DL14: 60.63 | DM14: 558.12 | DN14: 822.08 | DO14: 795.31 | DP14: 757.23 | DQ14: 774.3 | DR14: 746.09 | DS14: 730.12 | DT14: 734.47 | DU14: 103.99 | DV14: 708.11 | DW14: 753.68 | DX14: 772.55 | DY14: 766.64 | DZ14: 785.76 | EA14: 755.26 | EB14: 60.38 | EC14: 678.95 | ED14: 770.61 | EE14: 747.84 | EF14: 94.64 | EG14: 738.3 | EH14: 341.73 | EI14: 662.75 | EJ14: 297.27 | EK14: 765.12 | EL14: 737.88 | EM14: 582.28 | EN14: 740.62 | EO14: 48.99 | EP14: 749 | EQ14: 752.31 | ER14: 745.79 | ES14: 723.71 | ET14: 721.11 | EU14: 735.92 | EV14: 719.74 | EW14: 623.56 | EX14: 545.55 | EY14: 725.62 | EZ14: 713.49 | FA14: 623.56 | FB14: 480.95 | FC14: 730.95 | FD14: 681.05 | FE14: 699.53 | FF14: 744.77 | FG14: 720.88 | FH14: 274.35 | FI14: 692.75 | FJ14: 229.54 | FK14: 183.33 | FL14: 678.31 | FM14: 704.17 | FN14: 658.38 | FO14: 703.94 | FP14: 712.32 | FQ14: 714.86 | FR14: 687.56 | FS14: 694.99 | FT14: 713.81 | FU14: 698.79 | FV14: 673.42 | FW14: 701.43 | FX14: 703.15 | FY14: 706.95 | FZ14: 693.73 | GA14: 723.5 | GB14: 739.81 | GC14: 707.27 | GD14: 714.66 | GE14: 700.3 | GF14: 721.53 | GG14: 711.8 | GH14: 727.83 | GI14: 672.87 | GJ14: 700.08 | GK14: 734.69 | GL14: 716.34 | GM14: 713.33 | GN14: 721.9 | GO14: 711.07 | GP14: 714.93 | GQ14: 706.23 | GR14: 704.14 | GS14: 72.97 | GT14: 721.02 | GU14: 693.19 | GV14: 722.18 | GW14: 709.94 | GX14: 727.55 | GY14: 267.21 | GZ14: 530.95 | HA14: 692.32 | HB14: 691.9 | HC14: 680.5 | HD14: 169.31 | HE14: 694.25 | HF14: 531.92 | HG14: 724.78 | HH14: 419.23 | HI14: 756.18 | HJ14: 731.12 | HK14: 720.75 | HL14: 544.99 | HM14: 305.87 | HN14: 717.72 | HO14: 735.77 | HP14: 145.86 | HQ14: 187.9 | HR14: 675.49 | HS14: 679.1 | HT14: 306.48 | HU14: 729.16 | HV14: 721.44 | HW14: 727.08 | HX14: 261.65 | HY14: 718.83 | HZ14: 387.64 | IA14: 296.8 | IB14: 65.51 | IC14: 705.95 | ID14: 714.93 | IE14: 554.59 | IF14: 314.57 | IG14: 236.08 | IH14: 287.31 | II14: 713.61 | IJ14: 701.83 | IK14: 698.53 | IL14: 708.87 | IM14: 722.79 | IN14: 754.3 | IO14: 748.79 | IP14: 756.92 | IQ14: 716.2 | IR14: 57.33 | IS14: 597.73 | IT14: 204.18 | IU14: 703.13 | IV14: 42.84 | IW14: 423.69 | IX14: 717.12 | IY14: 735.64 | IZ14: 718.45 | JA14: 485.33 | JB14: 93.4 | JC14: 74.34 | JD14: 112.9 | JE14: 663.27 | JF14: 711.27 | JG14: 588.21 | JH14: 580.97 | JI14: 585.58 | JJ14: 679.06 | JK14: 607.26 | JL14: 467.36 | JM14: 388.53 | JN14: 356.2 | JO14: 552.44 | JP14: 736.07 | JQ14: 31.6 | JR14: 51.75 | JS14: 64.22 | JT14: 72.54 | JU14: 30.06 | JV14: 110.45 | JW14: 566.05 | JX14: 178.57 | JY14: 283.54 | JZ14: 697.89 | KA14: 737.22 | KB14: 721.27 | KC14: 700.3 | KD14: 729.84 | KE14: 723.66 | KF14: 146.55 | KG14: 115.49 | KH14: 53.8 | KI14: 144.81 | KJ14: 302.82 | KK14: 215.34 | KL14: 31.42 | KM14: 528.14 | KN14: 122.05 | KO14: 399.36 | KP14: 326.29 | KQ14: 636.21 | KR14: 690.33 | KS14: 680.56 | KT14: 101.45 | KU14: 22.04 | KV14: 207.69 | KW14: 734.16 | KX14: 56.82 | KY14: 58.58 | KZ14: 19.93 | LA14: 700.24 | LB14: 213.47 | LC14: 44.96 | LD14: 39.07 | LE14: 131.7 | LF14: 118.42 | LG14: 140.79 | LH14: 145.38 | LI14: 25.72 | LJ14: 54.28 | LK14: 732.31 | LL14: 688.37 | LM14: 660.41 | LN14: 662.12 | LO14: 670.35 | LP14: 654.74 | LQ14: 691.82 | LR14: 649.54 | LS14: 19.02 | LT14: 26.27 | LU14: 693.44 | LV14: 644.86 | LW14: 20.53 | LX14: 389.92 | LY14: 691.32 | LZ14: 15.4 | MA14: 233.35 | MB14: 24.59 | MC14: 34.37 | MD14: 660.83 | ME14: 711.11 | MF14: 36.39 | MG14: 725.74 | MH14: 689.28 | MI14: 692.32 | MJ14: 50.48 | MK14: 130.16 | ML14: 469.8 | MM14: 686.02 | MN14: 246.91 | MO14: 692.99 | MP14: 664.82 | MQ14: 99.79 | MR14: 674 | MS14: 265.27 | MT14: 683.69 | MU14: 627.42 | MV14: 686.61 | MW14: 42.35 | MX14: 42.36 | MY14: 16.18 | MZ14: 50.74 | NA14: 148.49 | NB14: 204.18 | NC14: 27.8
A15: 100.05 | B15: 13:00:00 | C15: 640.66 | D15: 633.66 | E15: 643.48 | F15: 654.19 | G15: 386.38 | H15: 639.28 | I15: 187.73 | J15: 379.77 | K15: 128.66 | L15: 87.37 | M15: 657.37 | N15: 450.63 | O15: 673.2 | P15: 69.86 | Q15: 33.21 | R15: 49.3 | S15: 52.68 | T15: 14.86 | U15: 419.77 | V15: 731.6 | W15: 722.95 | X15: 700.67 | Y15: 27.54 | Z15: 717.79 | AA15: 722.58 | AB15: 733.67 | AC15: 728.72 | AD15: 750.15 | AE15: 735.64 | AF15: 734.05 | AG15: 728.07 | AH15: 683.04 | AI15: 681.47 | AJ15: 657.31 | AK15: 642.61 | AL15: 34.93 | AM15: 718.4 | AN15: 233.39 | AO15: 707.72 | AP15: 735.6 | AQ15: 720.48 | AR15: 730.06 | AS15: 429.95 | AT15: 730.35 | AU15: 630.88 | AV15: 741.15 | AW15: 395.63 | AX15: 714.51 | AY15: 742.74 | AZ15: 197.16 | BA15: 55.54 | BB15: 68.67 | BC15: 315.52 | BD15: 187.8 | BE15: 102.92 | BF15: 423.99 | BG15: 749.32 | BH15: 830.8 | BI15: 855.66 | BJ15: 640.63 | BK15: 716.84 | BL15: 28.75 | BM15: 364.78 | BN15: 278.14 | BO15: 740.75 | BP15: 768.46 | BQ15: 767.83 | BR15: 744.54 | BS15: 716.41 | BT15: 746.22 | BU15: 351.27 | BV15: 728.22 | BW15: 693.06 | BX15: 739.49 | BY15: 729.22 | BZ15: 739.03 | CA15: 731.25 | CB15: 771.5 | CC15: 755.26 | CD15: 272.98 | CE15: 471.53 | CF15: 665.51 | CG15: 115.25 | CH15: 223 | CI15: 183.57 | CJ15: 51 | CK15: 750.07 | CL15: 121.09 | CM15: 445.87 | CN15: 612.54 | CO15: 219.34 | CP15: 757.67 | CQ15: 747.73 | CR15: 715.96 | CS15: 709.42 | CT15: 694.96 | CU15: 79.11 | CV15: 105.75 | CW15: 38.81 | CX15: 204.45 | CY15: 60.63 | CZ15: 39.88 | DA15: 764.55 | DB15: 699.36 | DC15: 350.62 | DD15: 54.75 | DE15: 651.14 | DF15: 758.6 | DG15: 127.51 | DH15: 281.02 | DI15: 761.85 | DJ15: 546.89 | DK15: 493.36 | DL15: 64.32 | DM15: 531.15 | DN15: 759.87 | DO15: 743.2 | DP15: 715.43 | DQ15: 731.32 | DR15: 701.67 | DS15: 693 | DT15: 663.99 | DU15: 704.79 | DV15: 667.54 | DW15: 698.15 | DX15: 732.52 | DY15: 719 | DZ15: 718.82 | EA15: 573.01 | EB15: 70.06 | EC15: 648.48 | ED15: 690.74 | EE15: 712.87 | EF15: 233.43 | EG15: 691.63 | EH15: 137.7 | EI15: 103.87 | EJ15: 373.95 | EK15: 717.77 | EL15: 673.3 | EM15: 579.05 | EN15: 694.74 | EO15: 45.46 | EP15: 707.52 | EQ15: 697.08 | ER15: 693.69 | ES15: 685.06 | ET15: 682.47 | EU15: 692.69 | EV15: 329.01 | EW15: 655.68 | EX15: 695.78 | EY15: 682.2 | EZ15: 662.43 | FA15: 549.23 | FB15: 508.79 | FC15: 664.07 | FD15: 575.73 | FE15: 679.88 | FF15: 688.49 | FG15: 686.77 | FH15: 627.02 | FI15: 587.09 | FJ15: 288.82 | FK15: 146.79 | FL15: 607.54 | FM15: 635.12 | FN15: 509.65 | FO15: 664.26 | FP15: 667.82 | FQ15: 665.85 | FR15: 651.7 | FS15: 647.42 | FT15: 663.97 | FU15: 654.25 | FV15: 596.37 | FW15: 667.34 | FX15: 665.34 | FY15: 670.59 | FZ15: 649.58 | GA15: 676.72 | GB15: 677.28 | GC15: 661.17 | GD15: 661.78 | GE15: 359.19 | GF15: 688.93 | GG15: 713.19 | GH15: 658.17 | GI15: 670.74 | GJ15: 664.73 | GK15: 706.54 | GL15: 673.69 | GM15: 664.82 | GN15: 654.27 | GO15: 667.88 | GP15: 668.02 | GQ15: 572.48 | GR15: 661.85 | GS15: 231.87 | GT15: 678.03 | GU15: 651.93 | GV15: 680.68 | GW15: 657.12 | GX15: 467.86 | GY15: 594.12 | GZ15: 497.32 | HA15: 644.89 | HB15: 642.19 | HC15: 629.76 | HD15: 124.02 | HE15: 648.5 | HF15: 629.38 | HG15: 686.4 | HH15: 141.16 | HI15: 714.22 | HJ15: 686.16 | HK15: 679.17 | HL15: 216.14 | HM15: 547.32 | HN15: 673.44 | HO15: 681.37 | HP15: 201.36 | HQ15: 383.92 | HR15: 674.63 | HS15: 679.19 | HT15: 649.61 | HU15: 672.77 | HV15: 682.68 | HW15: 682.22 | HX15: 52.35 | HY15: 671.12 | HZ15: 478.26 | IA15: 350.78 | IB15: 154.52 | IC15: 688.04 | ID15: 674.91 | IE15: 319.66 | IF15: 478.8 | IG15: 278.93 | IH15: 317.86 | II15: 677.24 | IJ15: 670.51 | IK15: 667.95 | IL15: 676.41 | IM15: 674.09 | IN15: 699.44 | IO15: 696.4 | IP15: 705.79 | IQ15: 656.7 | IR15: 81.06 | IS15: 318.95 | IT15: 403.2 | IU15: 694.57 | IV15: 205.83 | IW15: 595.01 | IX15: 675.15 | IY15: 690.44 | IZ15: 666.03 | JA15: 75.33 | JB15: 75.65 | JC15: 140.18 | JD15: 236.69 | JE15: 635.26 | JF15: 589.54 | JG15: 661.21 | JH15: 421.5 | JI15: 557.27 | JJ15: 652.7 | JK15: 602.77 | JL15: 512.95 | JM15: 543.22 | JN15: 254.92 | JO15: 630.23 | JP15: 691.75 | JQ15: 27.3 | JR15: 32.37 | JS15: 430.2 | JT15: 414.63 | JU15: 110.14 | JV15: 110.94 | JW15: 660.08 | JX15: 253.34 | JY15: 426.56 | JZ15: 656.32 | KA15: 682.72 | KB15: 659 | KC15: 646.43 | KD15: 652.11 | KE15: 661.78 | KF15: 433.27 | KG15: 141.81 | KH15: 97.42 | KI15: 151.79 | KJ15: 82.64 | KK15: 133.75 | KL15: 45.86 | KM15: 619.12 | KN15: 200.03 | KO15: 628.26 | KP15: 594.52 | KQ15: 573.68 | KR15: 608.47 | KS15: 621.07 | KT15: 144.8 | KU15: 28.35 | KV15: 393.34 | KW15: 672.23 | KX15: 70.48 | KY15: 26.85 | KZ15: 28.28 | LA15: 605.01 | LB15: 121.48 | LC15: 46.3 | LD15: 54.47 | LE15: 134.54 | LF15: 152.39 | LG15: 226.03 | LH15: 180.9 | LI15: 143.86 | LJ15: 51.02 | LK15: 645.62 | LL15: 393.95 | LM15: 622.61 | LN15: 595.86 | LO15: 627.4 | LP15: 612.66 | LQ15: 531.54 | LR15: 607.45 | LS15: 12.78 | LT15: 16.2 | LU15: 624.18 | LV15: 522.17 | LW15: 12.21 | LX15: 391.07 | LY15: 648.49 | LZ15: 114.85 | MA15: 469.94 | MB15: 11.35 | MC15: 33.56 | MD15: 550 | ME15: 677.54 | MF15: 31.07 | MG15: 601.01 | MH15: 626.6 | MI15: 639.09 | MJ15: 36.46 | MK15: 116.42 | ML15: 482.51 | MM15: 655.54 | MN15: 484.72 | MO15: 641.66 | MP15: 597.46 | MQ15: 11.97 | MR15: 584.26 | MS15: 380.55 | MT15: 628.63 | MU15: 663.81 | MV15: 639.91 | MW15: 29.48 | MX15: 30.23 | MY15: 11.45 | MZ15: 22.16 | NA15: 148.29 | NB15: 153.52 | NC15: 21.16
A16: 21.57 | B16: 14:00:00 | C16: 540.91 | D16: 542.38 | E16: 551.83 | F16: 520.29 | G16: 563.24 | H16: 539.18 | I16: 126.5 | J16: 432.29 | K16: 63.06 | L16: 93.11 | M16: 567.84 | N16: 545.36 | O16: 555.04 | P16: 67.19 | Q16: 62.39 | R16: 105.43 | S16: 113.49 | T16: 22.67 | U16: 372.99 | V16: 649.45 | W16: 636.5 | X16: 594.84 | Y16: 12.03 | Z16: 436.98 | AA16: 295.46 | AB16: 608.9 | AC16: 443.62 | AD16: 568.81 | AE16: 657.99 | AF16: 649.19 | AG16: 647.03 | AH16: 605.92 | AI16: 604.6 | AJ16: 565.69 | AK16: 525.49 | AL16: 30.4 | AM16: 618.68 | AN16: 172.77 | AO16: 509.11 | AP16: 617.09 | AQ16: 623.32 | AR16: 630.92 | AS16: 172.34 | AT16: 652.99 | AU16: 559.91 | AV16: 657.18 | AW16: 315.35 | AX16: 662.09 | AY16: 683.72 | AZ16: 174.04 | BA16: 35.9 | BB16: 58.25 | BC16: 110.05 | BD16: 622.17 | BE16: 171.86 | BF16: 528.85 | BG16: 609.49 | BH16: 667.89 | BI16: 726.29 | BJ16: 550.14 | BK16: 637 | BL16: 22.79 | BM16: 329.04 | BN16: 229.34 | BO16: 642.94 | BP16: 671.08 | BQ16: 647.4 | BR16: 662.53 | BS16: 651.51 | BT16: 668.96 | BU16: 584.88 | BV16: 640.73 | BW16: 603.86 | BX16: 646.5 | BY16: 629.2 | BZ16: 647.28 | CA16: 640.89 | CB16: 666.64 | CC16: 649.98 | CD16: 406.45 | CE16: 227.57 | CF16: 282.26 | CG16: 184.49 | CH16: 231.77 | CI16: 70.2 | CJ16: 46.58 | CK16: 657.76 | CL16: 131.61 | CM16: 460.41 | CN16: 603.13 | CO16: 609.93 | CP16: 667.06 | CQ16: 652.12 | CR16: 627.47 | CS16: 571.26 | CT16: 556.81 | CU16: 57.12 | CV16: 66.79 | CW16: 31.8 | CX16: 135.12 | CY16: 50.54 | CZ16: 145.99 | DA16: 660.43 | DB16: 585.13 | DC16: 140.08 | DD16: 148.16 | DE16: 629.71 | DF16: 667.45 | DG16: 73.73 | DH16: 491.9 | DI16: 664.21 | DJ16: 628.1 | DK16: 57.6 | DL16: 65.08 | DM16: 241.37 | DN16: 664.1 | DO16: 645.15 | DP16: 550.98 | DQ16: 604.07 | DR16: 615.91 | DS16: 604.27 | DT16: 556.49 | DU16: 563.56 | DV16: 569.98 | DW16: 599.99 | DX16: 515.61 | DY16: 626.1 | DZ16: 626.17 | EA16: 446.21 | EB16: 84.26 | EC16: 598.21 | ED16: 609.9 | EE16: 615.64 | EF16: 133.57 | EG16: 584.02 | EH16: 92.83 | EI16: 79.35 | EJ16: 439.13 | EK16: 638.06 | EL16: 608.78 | EM16: 534.36 | EN16: 584.36 | EO16: 38.25 | EP16: 623.54 | EQ16: 616.71 | ER16: 604.2 | ES16: 599.19 | ET16: 599.57 | EU16: 606.21 | EV16: 492.35 | EW16: 580.34 | EX16: 597.64 | EY16: 585.98 | EZ16: 571.67 | FA16: 443.75 | FB16: 91 | FC16: 605.09 | FD16: 527.77 | FE16: 607.82 | FF16: 564.19 | FG16: 604.69 | FH16: 525.4 | FI16: 588.43 | FJ16: 355.16 | FK16: 48.1 | FL16: 560.23 | FM16: 557.38 | FN16: 301.77 | FO16: 582.15 | FP16: 587.68 | FQ16: 588.67 | FR16: 581.47 | FS16: 578.12 | FT16: 589.5 | FU16: 553.43 | FV16: 573.09 | FW16: 587.15 | FX16: 591.13 | FY16: 588.82 | FZ16: 563.64 | GA16: 601.43 | GB16: 600.51 | GC16: 591.26 | GD16: 596.72 | GE16: 518.8 | GF16: 507.67 | GG16: 585.58 | GH16: 592.35 | GI16: 601.32 | GJ16: 342.91 | GK16: 605.72 | GL16: 608.03 | GM16: 594.19 | GN16: 563.89 | GO16: 595.42 | GP16: 596.62 | GQ16: 538.16 | GR16: 588.09 | GS16: 314.94 | GT16: 609.77 | GU16: 580.61 | GV16: 598.83 | GW16: 585.9 | GX16: 268.72 | GY16: 501.48 | GZ16: 544.1 | HA16: 577.03 | HB16: 574.36 | HC16: 564.08 | HD16: 68.59 | HE16: 611.21 | HF16: 565.03 | HG16: 605.65 | HH16: 492.7 | HI16: 616.13 | HJ16: 607.03 | HK16: 601.47 | HL16: 239.86 | HM16: 502.21 | HN16: 599.76 | HO16: 593.36 | HP16: 512.21 | HQ16: 461.42 | HR16: 598.3 | HS16: 591.44 | HT16: 217.52 | HU16: 582.31 | HV16: 609.71 | HW16: 598.77 | HX16: 351.6 | HY16: 584.67 | HZ16: 180.26 | IA16: 303.48 | IB16: 88.99 | IC16: 598.11 | ID16: 588.66 | IE16: 433.06 | IF16: 351.21 | IG16: 350.27 | IH16: 562.13 | II16: 596.1 | IJ16: 584.01 | IK16: 562.48 | IL16: 593.99 | IM16: 579.19 | IN16: 602.84 | IO16: 611.99 | IP16: 608.9 | IQ16: 516.35 | IR16: 90.76 | IS16: 294.54 | IT16: 159.94 | IU16: 594.69 | IV16: 390.25 | IW16: 557.22 | IX16: 580.9 | IY16: 592.78 | IZ16: 569.46 | JA16: 356.11 | JB16: 79.18 | JC16: 129.03 | JD16: 340.3 | JE16: 581.31 | JF16: 509.69 | JG16: 558.64 | JH16: 469.81 | JI16: 525.71 | JJ16: 547.6 | JK16: 472.13 | JL16: 411.4 | JM16: 110.91 | JN16: 231.25 | JO16: 545.58 | JP16: 608.01 | JQ16: 20.4 | JR16: 48.53 | JS16: 250.05 | JT16: 405.94 | JU16: 133.76 | JV16: 144.38 | JW16: 253.95 | JX16: 538 | JY16: 574.79 | JZ16: 178.42 | KA16: 557.5 | KB16: 540.01 | KC16: 516.59 | KD16: 510.18 | KE16: 535.8 | KF16: 289.43 | KG16: 135.89 | KH16: 96.82 | KI16: 104.59 | KJ16: 104.59 | KK16: 113.56 | KL16: 58.45 | KM16: 474.83 | KN16: 110.6 | KO16: 502.05 | KP16: 490.09 | KQ16: 488.25 | KR16: 503.07 | KS16: 493.39 | KT16: 68.12 | KU16: 20.65 | KV16: 439.55 | KW16: 557.65 | KX16: 67.51 | KY16: 17.19 | KZ16: 9.54 | LA16: 554.87 | LB16: 176.81 | LC16: 44.8 | LD16: 200 | LE16: 291.63 | LF16: 162.34 | LG16: 48.41 | LH16: 112.97 | LI16: 138.41 | LJ16: 195.1 | LK16: 523.24 | LL16: 492.86 | LM16: 511.23 | LN16: 468.36 | LO16: 500.79 | LP16: 492.26 | LQ16: 528.65 | LR16: 484.53 | LS16: 6.42 | LT16: 20.43 | LU16: 502.34 | LV16: 458.59 | LW16: 14.23 | LX16: 494.69 | LY16: 525.94 | LZ16: 19 | MA16: 366.5 | MB16: 8.18 | MC16: 23.36 | MD16: 560.1 | ME16: 554.14 | MF16: 26.64 | MG16: 543.13 | MH16: 496.78 | MI16: 508.29 | MJ16: 23.86 | MK16: 537.74 | ML16: 245.35 | MM16: 420.03 | MN16: 504.99 | MO16: 15.68 | MP16: 507.83 | MQ16: 69.99 | MR16: 463.03 | MS16: 294.92 | MT16: 427.84 | MU16: 515.84 | MV16: 523.64 | MW16: 18.68 | MX16: 11.25 | MY16: 21.13 | MZ16: 15.73 | NA16: 139.83 | NB16: 396.26 | NC16: 12.83
A17: 18.68 | B17: 15:00:00 | C17: 314.23 | D17: 323.43 | E17: 335.27 | F17: 347.72 | G17: 358.81 | H17: 372.87 | I17: 74.66 | J17: 164.5 | K17: 12.33 | L17: 36.15 | M17: 385.88 | N17: 400.4 | O17: 357.68 | P17: 65.48 | Q17: 76.86 | R17: 350.05 | S17: 5.77 | T17: 4.17 | U17: 239.83 | V17: 456.18 | W17: 462.95 | X17: 464.15 | Y17: 33.48 | Z17: 236.75 | AA17: 518.78 | AB17: 524.2 | AC17: 175.79 | AD17: 486.28 | AE17: 488.59 | AF17: 504.17 | AG17: 472.38 | AH17: 428.01 | AI17: 431.86 | AJ17: 469.03 | AK17: 392.92 | AL17: 22.34 | AM17: 454.5 | AN17: 20.97 | AO17: 470.98 | AP17: 476.73 | AQ17: 512.71 | AR17: 239.44 | AS17: 39.58 | AT17: 508.64 | AU17: 478.36 | AV17: 513.19 | AW17: 482.77 | AX17: 525.75 | AY17: 457.34 | AZ17: 99.04 | BA17: 10.76 | BB17: 36.18 | BC17: 48.32 | BD17: 443.84 | BE17: 11.96 | BF17: 521.59 | BG17: 504.66 | BH17: 412.48 | BI17: 547.53 | BJ17: 474.66 | BK17: 495.04 | BL17: 20.63 | BM17: 269.73 | BN17: 215.64 | BO17: 507.51 | BP17: 512.44 | BQ17: 263.31 | BR17: 518.97 | BS17: 504.97 | BT17: 502.85 | BU17: 511.02 | BV17: 499.55 | BW17: 457.63 | BX17: 480.85 | BY17: 480.51 | BZ17: 485.98 | CA17: 501.13 | CB17: 505.43 | CC17: 496.12 | CD17: 466.94 | CE17: 123.91 | CF17: 18.13 | CG17: 49.85 | CH17: 367.12 | CI17: 266.68 | CJ17: 31.06 | CK17: 507.66 | CL17: 45.06 | CM17: 272.64 | CN17: 462.2 | CO17: 525.73 | CP17: 490.63 | CQ17: 490.86 | CR17: 482.11 | CS17: 471.02 | CT17: 496.49 | CU17: 26.52 | CV17: 39.5 | CW17: 43.67 | CX17: 85.14 | CY17: 48.06 | CZ17: 187.69 | DA17: 502.09 | DB17: 494.73 | DC17: 152.72 | DD17: 147.08 | DE17: 471.49 | DF17: 495.81 | DG17: 63.03 | DH17: 61.1 | DI17: 491.81 | DJ17: 403.94 | DK17: 56.16 | DL17: 41.16 | DM17: 505.08 | DN17: 506.18 | DO17: 455.39 | DP17: 450.57 | DQ17: 470.42 | DR17: 480.22 | DS17: 456.42 | DT17: 447.03 | DU17: 398.98 | DV17: 465.2 | DW17: 413.68 | DX17: 465.53 | DY17: 479.5 | DZ17: 478.78 | EA17: 344.81 | EB17: 106.97 | EC17: 463.19 | ED17: 474.16 | EE17: 379.56 | EF17: 82.52 | EG17: 453.91 | EH17: 172.49 | EI17: 28.25 | EJ17: 405.79 | EK17: 481.3 | EL17: 475.25 | EM17: 351.68 | EN17: 465.23 | EO17: 427.29 | EP17: 482.06 | EQ17: 470.09 | ER17: 460.87 | ES17: 464.78 | ET17: 465.47 | EU17: 468.16 | EV17: 178.55 | EW17: 457.42 | EX17: 462.65 | EY17: 451.35 | EZ17: 445.44 | FA17: 311.75 | FB17: 263.91 | FC17: 459.33 | FD17: 456.49 | FE17: 467.94 | FF17: 459.46 | FG17: 468.98 | FH17: 460.99 | FI17: 489.57 | FJ17: 401.93 | FK17: 47.86 | FL17: 439.82 | FM17: 453.98 | FN17: 306.77 | FO17: 457.89 | FP17: 462.41 | FQ17: 454.64 | FR17: 447.26 | FS17: 448.89 | FT17: 453.57 | FU17: 398.29 | FV17: 246.37 | FW17: 457.26 | FX17: 447.46 | FY17: 457.8 | FZ17: 451.78 | GA17: 466.49 | GB17: 470.56 | GC17: 463.73 | GD17: 467.87 | GE17: 174.49 | GF17: 443.2 | GG17: 457.94 | GH17: 272.82 | GI17: 477.23 | GJ17: 99.45 | GK17: 397.81 | GL17: 476.39 | GM17: 466.14 | GN17: 472.37 | GO17: 468.25 | GP17: 468.77 | GQ17: 221.07 | GR17: 463.07 | GS17: 369.63 | GT17: 481.72 | GU17: 463.71 | GV17: 479.97 | GW17: 466.58 | GX17: 121.01 | GY17: 456.55 | GZ17: 445.56 | HA17: 449.79 | HB17: 465.3 | HC17: 442.9 | HD17: 262.76 | HE17: 75.03 | HF17: 266.88 | HG17: 476.46 | HH17: 489.16 | HI17: 439.41 | HJ17: 480.54 | HK17: 479.55 | HL17: 194.41 | HM17: 196.91 | HN17: 479.7 | HO17: 472.27 | HP17: 136.18 | HQ17: 350.91 | HR17: 479.59 | HS17: 453.32 | HT17: 425.98 | HU17: 46.52 | HV17: 478.05 | HW17: 464.72 | HX17: 87.22 | HY17: 458.61 | HZ17: 64.88 | IA17: 429.16 | IB17: 64.04 | IC17: 460.08 | ID17: 459.86 | IE17: 390.33 | IF17: 341.6 | IG17: 29.63 | IH17: 454.94 | II17: 454.99 | IJ17: 460.11 | IK17: 436.22 | IL17: 304.62 | IM17: 301.1 | IN17: 303.58 | IO17: 285.39 | IP17: 294.06 | IQ17: 275.83 | IR17: 80.18 | IS17: 49.4 | IT17: 116.5 | IU17: 296.27 | IV17: 251.18 | IW17: 265.78 | IX17: 290 | IY17: 261.6 | IZ17: 269.73 | JA17: 246.85 | JB17: 36.61 | JC17: 99.98 | JD17: 430.48 | JE17: 264.69 | JF17: 244.05 | JG17: 183.95 | JH17: 222.98 | JI17: 259.41 | JJ17: 244.68 | JK17: 231.4 | JL17: 150.04 | JM17: 203.53 | JN17: 182.37 | JO17: 230.26 | JP17: 406.85 | JQ17: 11.91 | JR17: 19.83 | JS17: 284.95 | JT17: 329.23 | JU17: 85.97 | JV17: 93.19 | JW17: 352.12 | JX17: 392.13 | JY17: 410.1 | JZ17: 185.07 | KA17: 392.07 | KB17: 378.95 | KC17: 272.3 | KD17: 325.36 | KE17: 373.72 | KF17: 173.29 | KG17: 106.18 | KH17: 48.6 | KI17: 91.09 | KJ17: 223.45 | KK17: 23.6 | KL17: 57.83 | KM17: 256.23 | KN17: 274.62 | KO17: 285.81 | KP17: 179.72 | KQ17: 319.05 | KR17: 311.03 | KS17: 329.92 | KT17: 88.44 | KU17: 11.41 | KV17: 311.01 | KW17: 394.25 | KX17: 21.88 | KY17: 2.83 | KZ17: 4.92 | LA17: 369.22 | LB17: 278.87 | LC17: 70.8 | LD17: 297.01 | LE17: 375.11 | LF17: 320.49 | LG17: 82.48 | LH17: 12.13 | LI17: 20.15 | LJ17: 52.69 | LK17: 308.58 | LL17: 357.07 | LM17: 343.62 | LN17: 331.57 | LO17: 326.63 | LP17: 313.4 | LQ17: 309.21 | LR17: 297.31 | LS17: 0.73 | LT17: 6.44 | LU17: 273.05 | LV17: 328.54 | LW17: 7.09 | LX17: 20.78 | LY17: 395.2 | LZ17: 3.07 | MA17: 4.69 | MB17: 4.65 | MC17: 55.52 | MD17: 280.21 | ME17: 366.77 | MF17: 5.78 | MG17: 132.14 | MH17: 352.66 | MI17: 360.03 | MJ17: 4.67 | MK17: 350.63 | ML17: 124.52 | MM17: 268.1 | MN17: 356.62 | MO17: 74.08 | MP17: 367.58 | MQ17: 48.09 | MR17: 90 | MS17: 146.7 | MT17: 300.9 | MU17: 388.72 | MV17: 234.16 | MW17: 2.03 | MX17: 4.06 | MY17: 4.7 | MZ17: 5.94 | NA17: 102.59 | NB17: 304.37 | NC17: 2.09
A18: 0 | B18: 16:00:00 | C18: 0 | D18: 0 | E18: 0 | F18: 0 | G18: 0 | H18: 0 | I18: 0 | J18: 0 | K18: 0 | L18: 0 | M18: 0 | N18: 0 | O18: 0 | P18: 0 | Q18: 0 | R18: 0 | S18: 0 | T18: 0 | U18: 0 | V18: 0 | W18: 0 | X18: 0 | Y18: 0 | Z18: 0 | AA18: 0 | AB18: 0 | AC18: 0 | AD18: 0 | AE18: 0 | AF18: 0 | AG18: 0 | AH18: 12.37 | AI18: 13.13 | AJ18: 208.49 | AK18: 15.56 | AL18: 18.93 | AM18: 150.61 | AN18: 7.62 | AO18: 185 | AP18: 198.26 | AQ18: 171.18 | AR18: 273.56 | AS18: 6.11 | AT18: 210.65 | AU18: 272.94 | AV18: 286.66 | AW18: 330.78 | AX18: 279.75 | AY18: 291.91 | AZ18: 9.38 | BA18: 38.61 | BB18: 19.82 | BC18: 83.88 | BD18: 218.71 | BE18: 46.5 | BF18: 290.55 | BG18: 328.75 | BH18: 317.12 | BI18: 244.59 | BJ18: 255.65 | BK18: 285.9 | BL18: 41.75 | BM18: 152.64 | BN18: 113.74 | BO18: 262.71 | BP18: 249.36 | BQ18: 293.37 | BR18: 295.03 | BS18: 298.61 | BT18: 287.46 | BU18: 254.39 | BV18: 294.88 | BW18: 264.01 | BX18: 279.38 | BY18: 280.31 | BZ18: 284.04 | CA18: 300.05 | CB18: 303.56 | CC18: 287.83 | CD18: 276.74 | CE18: 65.76 | CF18: 56.75 | CG18: 23.52 | CH18: 198.61 | CI18: 35.25 | CJ18: 45.62 | CK18: 311.12 | CL18: 216.69 | CM18: 242.48 | CN18: 259.4 | CO18: 297.21 | CP18: 287.23 | CQ18: 299.14 | CR18: 287.51 | CS18: 277.39 | CT18: 214.78 | CU18: 11.25 | CV18: 27.15 | CW18: 285.74 | CX18: 46.58 | CY18: 35.41 | CZ18: 75.95 | DA18: 302.84 | DB18: 286.3 | DC18: 154.87 | DD18: 115.3 | DE18: 227.43 | DF18: 298.34 | DG18: 44.46 | DH18: 113.56 | DI18: 284.78 | DJ18: 294.49 | DK18: 27.54 | DL18: 21.98 | DM18: 175.27 | DN18: 296.55 | DO18: 219.15 | DP18: 293.92 | DQ18: 285.75 | DR18: 284.33 | DS18: 199.15 | DT18: 195.61 | DU18: 228.66 | DV18: 214.87 | DW18: 15.86 | DX18: 231.13 | DY18: 214.57 | DZ18: 213.01 | EA18: 203.55 | EB18: 57.55 | EC18: 203.4 | ED18: 212.42 | EE18: 153.69 | EF18: 19.16 | EG18: 282.27 | EH18: 71.24 | EI18: 18.13 | EJ18: 216.81 | EK18: 210.2 | EL18: 218.7 | EM18: 153.85 | EN18: 143.25 | EO18: 180 | EP18: 229.42 | EQ18: 229.47 | ER18: 212.53 | ES18: 221.11 | ET18: 226.64 | EU18: 223.71 | EV18: 145.6 | EW18: 204.63 | EX18: 279.81 | EY18: 277.87 | EZ18: 272.26 | FA18: 231.86 | FB18: 231.28 | FC18: 288.97 | FD18: 290.25 | FE18: 283.37 | FF18: 294.29 | FG18: 284.2 | FH18: 293.56 | FI18: 283.17 | FJ18: 243.5 | FK18: 33.57 | FL18: 255.69 | FM18: 284.59 | FN18: 233.36 | FO18: 286.39 | FP18: 289.14 | FQ18: 287.17 | FR18: 276.56 | FS18: 261.11 | FT18: 284.31 | FU18: 259.07 | FV18: 175.48 | FW18: 289.76 | FX18: 287.89 | FY18: 287.65 | FZ18: 283.7 | GA18: 296.37 | GB18: 295.7 | GC18: 292.71 | GD18: 293.5 | GE18: 23.33 | GF18: 309.32 | GG18: 125.5 | GH18: 246.38 | GI18: 300.07 | GJ18: 222.86 | GK18: 69.79 | GL18: 147.86 | GM18: 283.32 | GN18: 301.25 | GO18: 294.45 | GP18: 298.23 | GQ18: 292.27 | GR18: 291.37 | GS18: 108.91 | GT18: 301.9 | GU18: 291.95 | GV18: 299.87 | GW18: 309.69 | GX18: 134.83 | GY18: 266.42 | GZ18: 265.66 | HA18: 280.17 | HB18: 286.33 | HC18: 276.92 | HD18: 274.95 | HE18: 43.46 | HF18: 170.88 | HG18: 286.54 | HH18: 256.98 | HI18: 312.04 | HJ18: 303.51 | HK18: 306.03 | HL18: 116.05 | HM18: 199.82 | HN18: 303.5 | HO18: 295.79 | HP18: 99.68 | HQ18: 179.48 | HR18: 297.52 | HS18: 178.26 | HT18: 26.94 | HU18: 211.54 | HV18: 297.4 | HW18: 280.2 | HX18: 90.34 | HY18: 279.65 | HZ18: 47.05 | IA18: 227.97 | IB18: 127.46 | IC18: 275.98 | ID18: 283.06 | IE18: 270.75 | IF18: 193.07 | IG18: 33.24 | IH18: 272.33 | II18: 269.17 | IJ18: 265.59 | IK18: 255.94 | IL18: 260.98 | IM18: 265.75 | IN18: 255.75 | IO18: 264.23 | IP18: 229.69 | IQ18: 257.92 | IR18: 104.87 | IS18: 87.37 | IT18: 9.18 | IU18: 254.2 | IV18: 262.89 | IW18: 228.52 | IX18: 247.4 | IY18: 214.34 | IZ18: 235.6 | JA18: 224.17 | JB18: 24.11 | JC18: 97.75 | JD18: 161.8 | JE18: 226.83 | JF18: 166.83 | JG18: 216.83 | JH18: 195.58 | JI18: 155.27 | JJ18: 194.68 | JK18: 139.76 | JL18: 170.55 | JM18: 187.05 | JN18: 182.02 | JO18: 192.43 | JP18: 222.91 | JQ18: 2.81 | JR18: 13.26 | JS18: 62.86 | JT18: 149.76 | JU18: 4.81 | JV18: 9.37 | JW18: 177.21 | JX18: 169.78 | JY18: 148.93 | JZ18: 102.92 | KA18: 131.64 | KB18: 123.11 | KC18: 59.76 | KD18: 104.83 | KE18: 167.05 | KF18: 50.65 | KG18: 78.14 | KH18: 48.82 | KI18: 27.95 | KJ18: 0 | KK18: 5.72 | KL18: 10.09 | KM18: 9.45 | KN18: 5.72 | KO18: 6.69 | KP18: 6.2 | KQ18: 5.21 | KR18: 0 | KS18: 0 | KT18: 0 | KU18: 0 | KV18: 0 | KW18: 0 | KX18: 0 | KY18: 0 | KZ18: 0 | LA18: 0 | LB18: 0 | LC18: 0 | LD18: 0 | LE18: 0 | LF18: 0 | LG18: 0 | LH18: 0 | LI18: 0 | LJ18: 0 | LK18: 0 | LL18: 0 | LM18: 0 | LN18: 0 | LO18: 0 | LP18: 0 | LQ18: 0 | LR18: 0 | LS18: 0 | LT18: 0 | LU18: 0 | LV18: 0 | LW18: 0 | LX18: 0 | LY18: 0 | LZ18: 0 | MA18: 0 | MB18: 0 | MC18: 0 | MD18: 0 | ME18: 0 | MF18: 0 | MG18: 0 | MH18: 0 | MI18: 0 | MJ18: 0 | MK18: 0 | ML18: 0 | MM18: 0 | MN18: 0 | MO18: 0 | MP18: 0 | MQ18: 0 | MR18: 0 | MS18: 0 | MT18: 0 | MU18: 0 | MV18: 0 | MW18: 0 | MX18: 0 | MY18: 0 | MZ18: 0 | NA18: 0 | NB18: 0 | NC18: 0
A19: 0 | B19: 17:00:00 | C19: 0 | D19: 0 | E19: 0 | F19: 0 | G19: 0 | H19: 0 | I19: 0 | J19: 0 | K19: 0 | L19: 0 | M19: 0 | N19: 0 | O19: 0 | P19: 0 | Q19: 0 | R19: 0 | S19: 0 | T19: 0 | U19: 0 | V19: 0 | W19: 0 | X19: 0 | Y19: 0 | Z19: 0 | AA19: 0 | AB19: 0 | AC19: 0 | AD19: 0 | AE19: 0 | AF19: 0 | AG19: 0 | AH19: 0 | AI19: 0 | AJ19: 0 | AK19: 0 | AL19: 0 | AM19: 0 | AN19: 0 | AO19: 0 | AP19: 0 | AQ19: 0 | AR19: 0 | AS19: 0 | AT19: 0 | AU19: 0 | AV19: 0 | AW19: 0 | AX19: 0 | AY19: 0 | AZ19: 0 | BA19: 0 | BB19: 0 | BC19: 0 | BD19: 0 | BE19: 0 | BF19: 0 | BG19: 0 | BH19: 0 | BI19: 0 | BJ19: 0 | BK19: 0 | BL19: 0 | BM19: 0 | BN19: 0 | BO19: 2.09 | BP19: 5.6 | BQ19: 6.54 | BR19: 7.53 | BS19: 8.7 | BT19: 9.25 | BU19: 9.75 | BV19: 11.52 | BW19: 10.87 | BX19: 50.98 | BY19: 53.94 | BZ19: 64.63 | CA19: 57.49 | CB19: 59.52 | CC19: 54.86 | CD19: 49.03 | CE19: 15.43 | CF19: 22.19 | CG19: 0.61 | CH19: 55.92 | CI19: 26.08 | CJ19: 1.45 | CK19: 58.29 | CL19: 30.25 | CM19: 39.73 | CN19: 37.47 | CO19: 70.56 | CP19: 74.73 | CQ19: 71.86 | CR19: 69.1 | CS19: 70.03 | CT19: 62.36 | CU19: 29.27 | CV19: 4.97 | CW19: 74.32 | CX19: 11 | CY19: 44.75 | CZ19: 39.97 | DA19: 72.08 | DB19: 73.62 | DC19: 7.56 | DD19: 9.07 | DE19: 74.72 | DF19: 73.99 | DG19: 45.65 | DH19: 55.77 | DI19: 41.55 | DJ19: 75.44 | DK19: 13.96 | DL19: 9.56 | DM19: 15.14 | DN19: 71.21 | DO19: 71.69 | DP19: 74.68 | DQ19: 77.61 | DR19: 75.83 | DS19: 78.4 | DT19: 77.54 | DU19: 62.42 | DV19: 72.42 | DW19: 14.87 | DX19: 78.67 | DY19: 82.04 | DZ19: 81.07 | EA19: 87.85 | EB19: 67.64 | EC19: 89.98 | ED19: 90.87 | EE19: 67.77 | EF19: 73.13 | EG19: 92.37 | EH19: 16.63 | EI19: 8.15 | EJ19: 93.21 | EK19: 92.32 | EL19: 93.56 | EM19: 86.12 | EN19: 67.57 | EO19: 99.55 | EP19: 87.32 | EQ19: 95.72 | ER19: 97.75 | ES19: 93.98 | ET19: 89.65 | EU19: 92.84 | EV19: 34.12 | EW19: 37 | EX19: 99.89 | EY19: 93.39 | EZ19: 95.47 | FA19: 92.01 | FB19: 98.5 | FC19: 94.73 | FD19: 96.32 | FE19: 110.14 | FF19: 98.56 | FG19: 97.86 | FH19: 101.82 | FI19: 102.58 | FJ19: 107.8 | FK19: 14.09 | FL19: 107.82 | FM19: 109.22 | FN19: 100.01 | FO19: 97.72 | FP19: 102.71 | FQ19: 101.94 | FR19: 112 | FS19: 102.26 | FT19: 97.47 | FU19: 116.77 | FV19: 99.92 | FW19: 97.98 | FX19: 101.37 | FY19: 114.23 | FZ19: 42.73 | GA19: 102.4 | GB19: 104.81 | GC19: 105.58 | GD19: 107.21 | GE19: 70.26 | GF19: 107.71 | GG19: 86.33 | GH19: 14.58 | GI19: 97.41 | GJ19: 113 | GK19: 40.53 | GL19: 110.34 | GM19: 12.87 | GN19: 110.56 | GO19: 107.2 | GP19: 108.68 | GQ19: 110 | GR19: 108.52 | GS19: 95.37 | GT19: 108.31 | GU19: 107.93 | GV19: 107.8 | GW19: 98.57 | GX19: 114.79 | GY19: 113.66 | GZ19: 109.41 | HA19: 108.97 | HB19: 107.29 | HC19: 106.48 | HD19: 107.25 | HE19: 13.19 | HF19: 47.53 | HG19: 103 | HH19: 103.91 | HI19: 102.2 | HJ19: 102.37 | HK19: 101.82 | HL19: 42.73 | HM19: 103.62 | HN19: 100.91 | HO19: 98.69 | HP19: 75.38 | HQ19: 23.73 | HR19: 96.78 | HS19: 95.43 | HT19: 96.94 | HU19: 92.84 | HV19: 90.64 | HW19: 84.6 | HX19: 83.02 | HY19: 85.82 | HZ19: 30.19 | IA19: 85.35 | IB19: 4.7 | IC19: 80.61 | ID19: 78.76 | IE19: 70.9 | IF19: 60.08 | IG19: 9.12 | IH19: 55.1 | II19: 70.69 | IJ19: 68.03 | IK19: 65.23 | IL19: 64.33 | IM19: 62.78 | IN19: 60.99 | IO19: 60.56 | IP19: 58.6 | IQ19: 55.66 | IR19: 35.8 | IS19: 41.66 | IT19: 13.45 | IU19: 37.19 | IV19: 29.61 | IW19: 35.01 | IX19: 32.78 | IY19: 30.92 | IZ19: 28.12 | JA19: 27.28 | JB19: 8.12 | JC19: 15.69 | JD19: 15.56 | JE19: 12.15 | JF19: 11.06 | JG19: 9.91 | JH19: 8.18 | JI19: 6.58 | JJ19: 5.57 | JK19: 0 | JL19: 0 | JM19: 0 | JN19: 0 | JO19: 0 | JP19: 0 | JQ19: 0 | JR19: 0 | JS19: 0 | JT19: 0 | JU19: 0 | JV19: 0 | JW19: 0 | JX19: 0 | JY19: 0 | JZ19: 0 | KA19: 0 | KB19: 0 | KC19: 0 | KD19: 0 | KE19: 0 | KF19: 0 | KG19: 0 | KH19: 0 | KI19: 0 | KJ19: 0 | KK19: 0 | KL19: 0 | KM19: 0 | KN19: 0 | KO19: 0 | KP19: 0 | KQ19: 0 | KR19: 0 | KS19: 0 | KT19: 0 | KU19: 0 | KV19: 0 | KW19: 0 | KX19: 0 | KY19: 0 | KZ19: 0 | LA19: 0 | LB19: 0 | LC19: 0 | LD19: 0 | LE19: 0 | LF19: 0 | LG19: 0 | LH19: 0 | LI19: 0 | LJ19: 0 | LK19: 0 | LL19: 0 | LM19: 0 | LN19: 0 | LO19: 0 | LP19: 0 | LQ19: 0 | LR19: 0 | LS19: 0 | LT19: 0 | LU19: 0 | LV19: 0 | LW19: 0 | LX19: 0 | LY19: 0 | LZ19: 0 | MA19: 0 | MB19: 0 | MC19: 0 | MD19: 0 | ME19: 0 | MF19: 0 | MG19: 0 | MH19: 0 | MI19: 0 | MJ19: 0 | MK19: 0 | ML19: 0 | MM19: 0 | MN19: 0 | MO19: 0 | MP19: 0 | MQ19: 0 | MR19: 0 | MS19: 0 | MT19: 0 | MU19: 0 | MV19: 0 | MW19: 0 | MX19: 0 | MY19: 0 | MZ19: 0 | NA19: 0 | NB19: 0 | NC19: 0
A20: 0 | B20: 18:00:00 | C20: 0 | D20: 0 | E20: 0 | F20: 0 | G20: 0 | H20: 0 | I20: 0 | J20: 0 | K20: 0 | L20: 0 | M20: 0 | N20: 0 | O20: 0 | P20: 0 | Q20: 0 | R20: 0 | S20: 0 | T20: 0 | U20: 0 | V20: 0 | W20: 0 | X20: 0 | Y20: 0 | Z20: 0 | AA20: 0 | AB20: 0 | AC20: 0 | AD20: 0 | AE20: 0 | AF20: 0 | AG20: 0 | AH20: 0 | AI20: 0 | AJ20: 0 | AK20: 0 | AL20: 0 | AM20: 0 | AN20: 0 | AO20: 0 | AP20: 0 | AQ20: 0 | AR20: 0 | AS20: 0 | AT20: 0 | AU20: 0 | AV20: 0 | AW20: 0 | AX20: 0 | AY20: 0 | AZ20: 0 | BA20: 0 | BB20: 0 | BC20: 0 | BD20: 0 | BE20: 0 | BF20: 0 | BG20: 0 | BH20: 0 | BI20: 0 | BJ20: 0 | BK20: 0 | BL20: 0 | BM20: 0 | BN20: 0 | BO20: 0 | BP20: 0 | BQ20: 0 | BR20: 0 | BS20: 0 | BT20: 0 | BU20: 0 | BV20: 0 | BW20: 0 | BX20: 0 | BY20: 0 | BZ20: 0 | CA20: 0 | CB20: 0 | CC20: 0 | CD20: 0 | CE20: 0 | CF20: 0 | CG20: 0 | CH20: 0 | CI20: 0 | CJ20: 0 | CK20: 0 | CL20: 0 | CM20: 0 | CN20: 0 | CO20: 0 | CP20: 0 | CQ20: 0 | CR20: 0 | CS20: 0 | CT20: 0 | CU20: 0 | CV20: 0 | CW20: 0 | CX20: 0 | CY20: 0 | CZ20: 0 | DA20: 0 | DB20: 0 | DC20: 0 | DD20: 0 | DE20: 0 | DF20: 0 | DG20: 0 | DH20: 0 | DI20: 1.96 | DJ20: 4.3 | DK20: 0 | DL20: 2.44 | DM20: 4.79 | DN20: 7.21 | DO20: 7.7 | DP20: 0 | DQ20: 9.26 | DR20: 10.87 | DS20: 9.69 | DT20: 11.95 | DU20: 13.2 | DV20: 6.11 | DW20: 4.21 | DX20: 15.02 | DY20: 14.97 | DZ20: 15.73 | EA20: 17.68 | EB20: 10.04 | EC20: 19.54 | ED20: 15.76 | EE20: 19.26 | EF20: 6.15 | EG20: 22.12 | EH20: 9.38 | EI20: 0.42 | EJ20: 20.62 | EK20: 23.55 | EL20: 25.88 | EM20: 20.12 | EN20: 27.71 | EO20: 27.69 | EP20: 24.56 | EQ20: 29.42 | ER20: 26.77 | ES20: 29.05 | ET20: 28.8 | EU20: 27.02 | EV20: 6.31 | EW20: 34.68 | EX20: 31.48 | EY20: 31.3 | EZ20: 31.01 | FA20: 34.26 | FB20: 35.61 | FC20: 30.75 | FD20: 32.19 | FE20: 31.04 | FF20: 33.35 | FG20: 32.99 | FH20: 29.85 | FI20: 35.55 | FJ20: 37.18 | FK20: 35.44 | FL20: 6.92 | FM20: 34.69 | FN20: 37.78 | FO20: 31.63 | FP20: 35.03 | FQ20: 7.23 | FR20: 35.24 | FS20: 34.62 | FT20: 31.38 | FU20: 32.72 | FV20: 30.76 | FW20: 29.42 | FX20: 31.11 | FY20: 40.55 | FZ20: 42.53 | GA20: 31.77 | GB20: 31.6 | GC20: 31.75 | GD20: 31.27 | GE20: 41.58 | GF20: 35.78 | GG20: 11.8 | GH20: 3.66 | GI20: 39.93 | GJ20: 42.53 | GK20: 6.5 | GL20: 35.16 | GM20: 9.5 | GN20: 31.86 | GO20: 31.16 | GP20: 31.18 | GQ20: 33.59 | GR20: 30.12 | GS20: 16.68 | GT20: 31.19 | GU20: 27.25 | GV20: 27.9 | GW20: 20.35 | GX20: 28.4 | GY20: 30.23 | GZ20: 31.85 | HA20: 29.16 | HB20: 26.64 | HC20: 28.12 | HD20: 27.7 | HE20: 27.19 | HF20: 28.03 | HG20: 22.66 | HH20: 27.51 | HI20: 22.3 | HJ20: 22.27 | HK20: 21.6 | HL20: 8.3 | HM20: 21.41 | HN20: 20.71 | HO20: 19.91 | HP20: 10.5 | HQ20: 18 | HR20: 17.03 | HS20: 15.82 | HT20: 15.65 | HU20: 14.31 | HV20: 12.98 | HW20: 12.27 | HX20: 4.91 | HY20: 9.99 | HZ20: 0.08 | IA20: 8.82 | IB20: 7.19 | IC20: 5.97 | ID20: 5.46 | IE20: 0 | IF20: 0 | IG20: 0 | IH20: 0 | II20: 0 | IJ20: 0 | IK20: 0 | IL20: 0 | IM20: 0 | IN20: 0 | IO20: 0 | IP20: 0 | IQ20: 0 | IR20: 0 | IS20: 0 | IT20: 0 | IU20: 0 | IV20: 0 | IW20: 0 | IX20: 0 | IY20: 0 | IZ20: 0 | JA20: 0 | JB20: 0 | JC20: 0 | JD20: 0 | JE20: 0 | JF20: 0 | JG20: 0 | JH20: 0 | JI20: 0 | JJ20: 0 | JK20: 0 | JL20: 0 | JM20: 0 | JN20: 0 | JO20: 0 | JP20: 0 | JQ20: 0 | JR20: 0 | JS20: 0 | JT20: 0 | JU20: 0 | JV20: 0 | JW20: 0 | JX20: 0 | JY20: 0 | JZ20: 0 | KA20: 0 | KB20: 0 | KC20: 0 | KD20: 0 | KE20: 0 | KF20: 0 | KG20: 0 | KH20: 0 | KI20: 0 | KJ20: 0 | KK20: 0 | KL20: 0 | KM20: 0 | KN20: 0 | KO20: 0 | KP20: 0 | KQ20: 0 | KR20: 0 | KS20: 0 | KT20: 0 | KU20: 0 | KV20: 0 | KW20: 0 | KX20: 0 | KY20: 0 | KZ20: 0 | LA20: 0 | LB20: 0 | LC20: 0 | LD20: 0 | LE20: 0 | LF20: 0 | LG20: 0 | LH20: 0 | LI20: 0 | LJ20: 0 | LK20: 0 | LL20: 0 | LM20: 0 | LN20: 0 | LO20: 0 | LP20: 0 | LQ20: 0 | LR20: 0 | LS20: 0 | LT20: 0 | LU20: 0 | LV20: 0 | LW20: 0 | LX20: 0 | LY20: 0 | LZ20: 0 | MA20: 0 | MB20: 0 | MC20: 0 | MD20: 0 | ME20: 0 | MF20: 0 | MG20: 0 | MH20: 0 | MI20: 0 | MJ20: 0 | MK20: 0 | ML20: 0 | MM20: 0 | MN20: 0 | MO20: 0 | MP20: 0 | MQ20: 0 | MR20: 0 | MS20: 0 | MT20: 0 | MU20: 0 | MV20: 0 | MW20: 0 | MX20: 0 | MY20: 0 | MZ20: 0 | NA20: 0 | NB20: 0 | NC20: 0
A21: 0 | B21: 19:00:00 | C21: 0 | D21: 0 | E21: 0 | F21: 0 | G21: 0 | H21: 0 | I21: 0 | J21: 0 | K21: 0 | L21: 0 | M21: 0 | N21: 0 | O21: 0 | P21: 0 | Q21: 0 | R21: 0 | S21: 0 | T21: 0 | U21: 0 | V21: 0 | W21: 0 | X21: 0 | Y21: 0 | Z21: 0 | AA21: 0 | AB21: 0 | AC21: 0 | AD21: 0 | AE21: 0 | AF21: 0 | AG21: 0 | AH21: 0 | AI21: 0 | AJ21: 0 | AK21: 0 | AL21: 0 | AM21: 0 | AN21: 0 | AO21: 0 | AP21: 0 | AQ21: 0 | AR21: 0 | AS21: 0 | AT21: 0 | AU21: 0 | AV21: 0 | AW21: 0 | AX21: 0 | AY21: 0 | AZ21: 0 | BA21: 0 | BB21: 0 | BC21: 0 | BD21: 0 | BE21: 0 | BF21: 0 | BG21: 0 | BH21: 0 | BI21: 0 | BJ21: 0 | BK21: 0 | BL21: 0 | BM21: 0 | BN21: 0 | BO21: 0 | BP21: 0 | BQ21: 0 | BR21: 0 | BS21: 0 | BT21: 0 | BU21: 0 | BV21: 0 | BW21: 0 | BX21: 0 | BY21: 0 | BZ21: 0 | CA21: 0 | CB21: 0 | CC21: 0 | CD21: 0 | CE21: 0 | CF21: 0 | CG21: 0 | CH21: 0 | CI21: 0 | CJ21: 0 | CK21: 0 | CL21: 0 | CM21: 0 | CN21: 0 | CO21: 0 | CP21: 0 | CQ21: 0 | CR21: 0 | CS21: 0 | CT21: 0 | CU21: 0 | CV21: 0 | CW21: 0 | CX21: 0 | CY21: 0 | CZ21: 0 | DA21: 0 | DB21: 0 | DC21: 0 | DD21: 0 | DE21: 0 | DF21: 0 | DG21: 0 | DH21: 0 | DI21: 0 | DJ21: 0 | DK21: 0 | DL21: 0 | DM21: 0 | DN21: 0 | DO21: 0 | DP21: 0 | DQ21: 0 | DR21: 0 | DS21: 0 | DT21: 0 | DU21: 0 | DV21: 0 | DW21: 0 | DX21: 0 | DY21: 0 | DZ21: 0 | EA21: 0 | EB21: 0 | EC21: 0 | ED21: 0 | EE21: 0 | EF21: 0 | EG21: 0 | EH21: 0 | EI21: 0 | EJ21: 0 | EK21: 0 | EL21: 0 | EM21: 0 | EN21: 0 | EO21: 0 | EP21: 0 | EQ21: 0 | ER21: 0 | ES21: 0 | ET21: 0 | EU21: 0 | EV21: 0 | EW21: 0 | EX21: 0 | EY21: 0 | EZ21: 0 | FA21: 0 | FB21: 0 | FC21: 0 | FD21: 0 | FE21: 0 | FF21: 0 | FG21: 0 | FH21: 0 | FI21: 0 | FJ21: 0 | FK21: 0 | FL21: 0 | FM21: 0 | FN21: 0 | FO21: 0 | FP21: 0 | FQ21: 0 | FR21: 0 | FS21: 0 | FT21: 0 | FU21: 0 | FV21: 0 | FW21: 0 | FX21: 0 | FY21: 0 | FZ21: 0 | GA21: 0 | GB21: 0 | GC21: 0 | GD21: 0 | GE21: 0 | GF21: 0 | GG21: 0 | GH21: 0 | GI21: 0 | GJ21: 0 | GK21: 0 | GL21: 0 | GM21: 0 | GN21: 0 | GO21: 0 | GP21: 0 | GQ21: 0 | GR21: 0 | GS21: 0 | GT21: 0 | GU21: 0 | GV21: 0 | GW21: 0 | GX21: 0 | GY21: 0 | GZ21: 0 | HA21: 0 | HB21: 0 | HC21: 0 | HD21: 0 | HE21: 0 | HF21: 0 | HG21: 0 | HH21: 0 | HI21: 0 | HJ21: 0 | HK21: 0 | HL21: 0 | HM21: 0 | HN21: 0 | HO21: 0 | HP21: 0 | HQ21: 0 | HR21: 0 | HS21: 0 | HT21: 0 | HU21: 0 | HV21: 0 | HW21: 0 | HX21: 0 | HY21: 0 | HZ21: 0 | IA21: 0 | IB21: 0 | IC21: 0 | ID21: 0 | IE21: 0 | IF21: 0 | IG21: 0 | IH21: 0 | II21: 0 | IJ21: 0 | IK21: 0 | IL21: 0 | IM21: 0 | IN21: 0 | IO21: 0 | IP21: 0 | IQ21: 0 | IR21: 0 | IS21: 0 | IT21: 0 | IU21: 0 | IV21: 0 | IW21: 0 | IX21: 0 | IY21: 0 | IZ21: 0 | JA21: 0 | JB21: 0 | JC21: 0 | JD21: 0 | JE21: 0 | JF21: 0 | JG21: 0 | JH21: 0 | JI21: 0 | JJ21: 0 | JK21: 0 | JL21: 0 | JM21: 0 | JN21: 0 | JO21: 0 | JP21: 0 | JQ21: 0 | JR21: 0 | JS21: 0 | JT21: 0 | JU21: 0 | JV21: 0 | JW21: 0 | JX21: 0 | JY21: 0 | JZ21: 0 | KA21: 0 | KB21: 0 | KC21: 0 | KD21: 0 | KE21: 0 | KF21: 0 | KG21: 0 | KH21: 0 | KI21: 0 | KJ21: 0 | KK21: 0 | KL21: 0 | KM21: 0 | KN21: 0 | KO21: 0 | KP21: 0 | KQ21: 0 | KR21: 0 | KS21: 0 | KT21: 0 | KU21: 0 | KV21: 0 | KW21: 0 | KX21: 0 | KY21: 0 | KZ21: 0 | LA21: 0 | LB21: 0 | LC21: 0 | LD21: 0 | LE21: 0 | LF21: 0 | LG21: 0 | LH21: 0 | LI21: 0 | LJ21: 0 | LK21: 0 | LL21: 0 | LM21: 0 | LN21: 0 | LO21: 0 | LP21: 0 | LQ21: 0 | LR21: 0 | LS21: 0 | LT21: 0 | LU21: 0 | LV21: 0 | LW21: 0 | LX21: 0 | LY21: 0 | LZ21: 0 | MA21: 0 | MB21: 0 | MC21: 0 | MD21: 0 | ME21: 0 | MF21: 0 | MG21: 0 | MH21: 0 | MI21: 0 | MJ21: 0 | MK21: 0 | ML21: 0 | MM21: 0 | MN21: 0 | MO21: 0 | MP21: 0 | MQ21: 0 | MR21: 0 | MS21: 0 | MT21: 0 | MU21: 0 | MV21: 0 | MW21: 0 | MX21: 0 | MY21: 0 | MZ21: 0 | NA21: 0 | NB21: 0 | NC21: 0
A22: 0 | B22: 20:00:00 | C22: 0 | D22: 0 | E22: 0 | F22: 0 | G22: 0 | H22: 0 | I22: 0 | J22: 0 | K22: 0 | L22: 0 | M22: 0 | N22: 0 | O22: 0 | P22: 0 | Q22: 0 | R22: 0 | S22: 0 | T22: 0 | U22: 0 | V22: 0 | W22: 0 | X22: 0 | Y22: 0 | Z22: 0 | AA22: 0 | AB22: 0 | AC22: 0 | AD22: 0 | AE22: 0 | AF22: 0 | AG22: 0 | AH22: 0 | AI22: 0 | AJ22: 0 | AK22: 0 | AL22: 0 | AM22: 0 | AN22: 0 | AO22: 0 | AP22: 0 | AQ22: 0 | AR22: 0 | AS22: 0 | AT22: 0 | AU22: 0 | AV22: 0 | AW22: 0 | AX22: 0 | AY22: 0 | AZ22: 0 | BA22: 0 | BB22: 0 | BC22: 0 | BD22: 0 | BE22: 0 | BF22: 0 | BG22: 0 | BH22: 0 | BI22: 0 | BJ22: 0 | BK22: 0 | BL22: 0 | BM22: 0 | BN22: 0 | BO22: 0 | BP22: 0 | BQ22: 0 | BR22: 0 | BS22: 0 | BT22: 0 | BU22: 0 | BV22: 0 | BW22: 0 | BX22: 0 | BY22: 0 | BZ22: 0 | CA22: 0 | CB22: 0 | CC22: 0 | CD22: 0 | CE22: 0 | CF22: 0 | CG22: 0 | CH22: 0 | CI22: 0 | CJ22: 0 | CK22: 0 | CL22: 0 | CM22: 0 | CN22: 0 | CO22: 0 | CP22: 0 | CQ22: 0 | CR22: 0 | CS22: 0 | CT22: 0 | CU22: 0 | CV22: 0 | CW22: 0 | CX22: 0 | CY22: 0 | CZ22: 0 | DA22: 0 | DB22: 0 | DC22: 0 | DD22: 0 | DE22: 0 | DF22: 0 | DG22: 0 | DH22: 0 | DI22: 0 | DJ22: 0 | DK22: 0 | DL22: 0 | DM22: 0 | DN22: 0 | DO22: 0 | DP22: 0 | DQ22: 0 | DR22: 0 | DS22: 0 | DT22: 0 | DU22: 0 | DV22: 0 | DW22: 0 | DX22: 0 | DY22: 0 | DZ22: 0 | EA22: 0 | EB22: 0 | EC22: 0 | ED22: 0 | EE22: 0 | EF22: 0 | EG22: 0 | EH22: 0 | EI22: 0 | EJ22: 0 | EK22: 0 | EL22: 0 | EM22: 0 | EN22: 0 | EO22: 0 | EP22: 0 | EQ22: 0 | ER22: 0 | ES22: 0 | ET22: 0 | EU22: 0 | EV22: 0 | EW22: 0 | EX22: 0 | EY22: 0 | EZ22: 0 | FA22: 0 | FB22: 0 | FC22: 0 | FD22: 0 | FE22: 0 | FF22: 0 | FG22: 0 | FH22: 0 | FI22: 0 | FJ22: 0 | FK22: 0 | FL22: 0 | FM22: 0 | FN22: 0 | FO22: 0 | FP22: 0 | FQ22: 0 | FR22: 0 | FS22: 0 | FT22: 0 | FU22: 0 | FV22: 0 | FW22: 0 | FX22: 0 | FY22: 0 | FZ22: 0 | GA22: 0 | GB22: 0 | GC22: 0 | GD22: 0 | GE22: 0 | GF22: 0 | GG22: 0 | GH22: 0 | GI22: 0 | GJ22: 0 | GK22: 0 | GL22: 0 | GM22: 0 | GN22: 0 | GO22: 0 | GP22: 0 | GQ22: 0 | GR22: 0 | GS22: 0 | GT22: 0 | GU22: 0 | GV22: 0 | GW22: 0 | GX22: 0 | GY22: 0 | GZ22: 0 | HA22: 0 | HB22: 0 | HC22: 0 | HD22: 0 | HE22: 0 | HF22: 0 | HG22: 0 | HH22: 0 | HI22: 0 | HJ22: 0 | HK22: 0 | HL22: 0 | HM22: 0 | HN22: 0 | HO22: 0 | HP22: 0 | HQ22: 0 | HR22: 0 | HS22: 0 | HT22: 0 | HU22: 0 | HV22: 0 | HW22: 0 | HX22: 0 | HY22: 0 | HZ22: 0 | IA22: 0 | IB22: 0 | IC22: 0 | ID22: 0 | IE22: 0 | IF22: 0 | IG22: 0 | IH22: 0 | II22: 0 | IJ22: 0 | IK22: 0 | IL22: 0 | IM22: 0 | IN22: 0 | IO22: 0 | IP22: 0 | IQ22: 0 | IR22: 0 | IS22: 0 | IT22: 0 | IU22: 0 | IV22: 0 | IW22: 0 | IX22: 0 | IY22: 0 | IZ22: 0 | JA22: 0 | JB22: 0 | JC22: 0 | JD22: 0 | JE22: 0 | JF22: 0 | JG22: 0 | JH22: 0 | JI22: 0 | JJ22: 0 | JK22: 0 | JL22: 0 | JM22: 0 | JN22: 0 | JO22: 0 | JP22: 0 | JQ22: 0 | JR22: 0 | JS22: 0 | JT22: 0 | JU22: 0 | JV22: 0 | JW22: 0 | JX22: 0 | JY22: 0 | JZ22: 0 | KA22: 0 | KB22: 0 | KC22: 0 | KD22: 0 | KE22: 0 | KF22: 0 | KG22: 0 | KH22: 0 | KI22: 0 | KJ22: 0 | KK22: 0 | KL22: 0 | KM22: 0 | KN22: 0 | KO22: 0 | KP22: 0 | KQ22: 0 | KR22: 0 | KS22: 0 | KT22: 0 | KU22: 0 | KV22: 0 | KW22: 0 | KX22: 0 | KY22: 0 | KZ22: 0 | LA22: 0 | LB22: 0 | LC22: 0 | LD22: 0 | LE22: 0 | LF22: 0 | LG22: 0 | LH22: 0 | LI22: 0 | LJ22: 0 | LK22: 0 | LL22: 0 | LM22: 0 | LN22: 0 | LO22: 0 | LP22: 0 | LQ22: 0 | LR22: 0 | LS22: 0 | LT22: 0 | LU22: 0 | LV22: 0 | LW22: 0 | LX22: 0 | LY22: 0 | LZ22: 0 | MA22: 0 | MB22: 0 | MC22: 0 | MD22: 0 | ME22: 0 | MF22: 0 | MG22: 0 | MH22: 0 | MI22: 0 | MJ22: 0 | MK22: 0 | ML22: 0 | MM22: 0 | MN22: 0 | MO22: 0 | MP22: 0 | MQ22: 0 | MR22: 0 | MS22: 0 | MT22: 0 | MU22: 0 | MV22: 0 | MW22: 0 | MX22: 0 | MY22: 0 | MZ22: 0 | NA22: 0 | NB22: 0 | NC22: 0
A23: 0 | B23: 21:00:00 | C23: 0 | D23: 0 | E23: 0 | F23: 0 | G23: 0 | H23: 0 | I23: 0 | J23: 0 | K23: 0 | L23: 0 | M23: 0 | N23: 0 | O23: 0 | P23: 0 | Q23: 0 | R23: 0 | S23: 0 | T23: 0 | U23: 0 | V23: 0 | W23: 0 | X23: 0 | Y23: 0 | Z23: 0 | AA23: 0 | AB23: 0 | AC23: 0 | AD23: 0 | AE23: 0 | AF23: 0 | AG23: 0 | AH23: 0 | AI23: 0 | AJ23: 0 | AK23: 0 | AL23: 0 | AM23: 0 | AN23: 0 | AO23: 0 | AP23: 0 | AQ23: 0 | AR23: 0 | AS23: 0 | AT23: 0 | AU23: 0 | AV23: 0 | AW23: 0 | AX23: 0 | AY23: 0 | AZ23: 0 | BA23: 0 | BB23: 0 | BC23: 0 | BD23: 0 | BE23: 0 | BF23: 0 | BG23: 0 | BH23: 0 | BI23: 0 | BJ23: 0 | BK23: 0 | BL23: 0 | BM23: 0 | BN23: 0 | BO23: 0 | BP23: 0 | BQ23: 0 | BR23: 0 | BS23: 0 | BT23: 0 | BU23: 0 | BV23: 0 | BW23: 0 | BX23: 0 | BY23: 0 | BZ23: 0 | CA23: 0 | CB23: 0 | CC23: 0 | CD23: 0 | CE23: 0 | CF23: 0 | CG23: 0 | CH23: 0 | CI23: 0 | CJ23: 0 | CK23: 0 | CL23: 0 | CM23: 0 | CN23: 0 | CO23: 0 | CP23: 0 | CQ23: 0 | CR23: 0 | CS23: 0 | CT23: 0 | CU23: 0 | CV23: 0 | CW23: 0 | CX23: 0 | CY23: 0 | CZ23: 0 | DA23: 0 | DB23: 0 | DC23: 0 | DD23: 0 | DE23: 0 | DF23: 0 | DG23: 0 | DH23: 0 | DI23: 0 | DJ23: 0 | DK23: 0 | DL23: 0 | DM23: 0 | DN23: 0 | DO23: 0 | DP23: 0 | DQ23: 0 | DR23: 0 | DS23: 0 | DT23: 0 | DU23: 0 | DV23: 0 | DW23: 0 | DX23: 0 | DY23: 0 | DZ23: 0 | EA23: 0 | EB23: 0 | EC23: 0 | ED23: 0 | EE23: 0 | EF23: 0 | EG23: 0 | EH23: 0 | EI23: 0 | EJ23: 0 | EK23: 0 | EL23: 0 | EM23: 0 | EN23: 0 | EO23: 0 | EP23: 0 | EQ23: 0 | ER23: 0 | ES23: 0 | ET23: 0 | EU23: 0 | EV23: 0 | EW23: 0 | EX23: 0 | EY23: 0 | EZ23: 0 | FA23: 0 | FB23: 0 | FC23: 0 | FD23: 0 | FE23: 0 | FF23: 0 | FG23: 0 | FH23: 0 | FI23: 0 | FJ23: 0 | FK23: 0 | FL23: 0 | FM23: 0 | FN23: 0 | FO23: 0 | FP23: 0 | FQ23: 0 | FR23: 0 | FS23: 0 | FT23: 0 | FU23: 0 | FV23: 0 | FW23: 0 | FX23: 0 | FY23: 0 | FZ23: 0 | GA23: 0 | GB23: 0 | GC23: 0 | GD23: 0 | GE23: 0 | GF23: 0 | GG23: 0 | GH23: 0 | GI23: 0 | GJ23: 0 | GK23: 0 | GL23: 0 | GM23: 0 | GN23: 0 | GO23: 0 | GP23: 0 | GQ23: 0 | GR23: 0 | GS23: 0 | GT23: 0 | GU23: 0 | GV23: 0 | GW23: 0 | GX23: 0 | GY23: 0 | GZ23: 0 | HA23: 0 | HB23: 0 | HC23: 0 | HD23: 0 | HE23: 0 | HF23: 0 | HG23: 0 | HH23: 0 | HI23: 0 | HJ23: 0 | HK23: 0 | HL23: 0 | HM23: 0 | HN23: 0 | HO23: 0 | HP23: 0 | HQ23: 0 | HR23: 0 | HS23: 0 | HT23: 0 | HU23: 0 | HV23: 0 | HW23: 0 | HX23: 0 | HY23: 0 | HZ23: 0 | IA23: 0 | IB23: 0 | IC23: 0 | ID23: 0 | IE23: 0 | IF23: 0 | IG23: 0 | IH23: 0 | II23: 0 | IJ23: 0 | IK23: 0 | IL23: 0 | IM23: 0 | IN23: 0 | IO23: 0 | IP23: 0 | IQ23: 0 | IR23: 0 | IS23: 0 | IT23: 0 | IU23: 0 | IV23: 0 | IW23: 0 | IX23: 0 | IY23: 0 | IZ23: 0 | JA23: 0 | JB23: 0 | JC23: 0 | JD23: 0 | JE23: 0 | JF23: 0 | JG23: 0 | JH23: 0 | JI23: 0 | JJ23: 0 | JK23: 0 | JL23: 0 | JM23: 0 | JN23: 0 | JO23: 0 | JP23: 0 | JQ23: 0 | JR23: 0 | JS23: 0 | JT23: 0 | JU23: 0 | JV23: 0 | JW23: 0 | JX23: 0 | JY23: 0 | JZ23: 0 | KA23: 0 | KB23: 0 | KC23: 0 | KD23: 0 | KE23: 0 | KF23: 0 | KG23: 0 | KH23: 0 | KI23: 0 | KJ23: 0 | KK23: 0 | KL23: 0 | KM23: 0 | KN23: 0 | KO23: 0 | KP23: 0 | KQ23: 0 | KR23: 0 | KS23: 0 | KT23: 0 | KU23: 0 | KV23: 0 | KW23: 0 | KX23: 0 | KY23: 0 | KZ23: 0 | LA23: 0 | LB23: 0 | LC23: 0 | LD23: 0 | LE23: 0 | LF23: 0 | LG23: 0 | LH23: 0 | LI23: 0 | LJ23: 0 | LK23: 0 | LL23: 0 | LM23: 0 | LN23: 0 | LO23: 0 | LP23: 0 | LQ23: 0 | LR23: 0 | LS23: 0 | LT23: 0 | LU23: 0 | LV23: 0 | LW23: 0 | LX23: 0 | LY23: 0 | LZ23: 0 | MA23: 0 | MB23: 0 | MC23: 0 | MD23: 0 | ME23: 0 | MF23: 0 | MG23: 0 | MH23: 0 | MI23: 0 | MJ23: 0 | MK23: 0 | ML23: 0 | MM23: 0 | MN23: 0 | MO23: 0 | MP23: 0 | MQ23: 0 | MR23: 0 | MS23: 0 | MT23: 0 | MU23: 0 | MV23: 0 | MW23: 0 | MX23: 0 | MY23: 0 | MZ23: 0 | NA23: 0 | NB23: 0 | NC23: 0
A24: 0 | B24: 22:00:00 | C24: 0 | D24: 0 | E24: 0 | F24: 0 | G24: 0 | H24: 0 | I24: 0 | J24: 0 | K24: 0 | L24: 0 | M24: 0 | N24: 0 | O24: 0 | P24: 0 | Q24: 0 | R24: 0 | S24: 0 | T24: 0 | U24: 0 | V24: 0 | W24: 0 | X24: 0 | Y24: 0 | Z24: 0 | AA24: 0 | AB24: 0 | AC24: 0 | AD24: 0 | AE24: 0 | AF24: 0 | AG24: 0 | AH24: 0 | AI24: 0 | AJ24: 0 | AK24: 0 | AL24: 0 | AM24: 0 | AN24: 0 | AO24: 0 | AP24: 0 | AQ24: 0 | AR24: 0 | AS24: 0 | AT24: 0 | AU24: 0 | AV24: 0 | AW24: 0 | AX24: 0 | AY24: 0 | AZ24: 0 | BA24: 0 | BB24: 0 | BC24: 0 | BD24: 0 | BE24: 0 | BF24: 0 | BG24: 0 | BH24: 0 | BI24: 0 | BJ24: 0 | BK24: 0 | BL24: 0 | BM24: 0 | BN24: 0 | BO24: 0 | BP24: 0 | BQ24: 0 | BR24: 0 | BS24: 0 | BT24: 0 | BU24: 0 | BV24: 0 | BW24: 0 | BX24: 0 | BY24: 0 | BZ24: 0 | CA24: 0 | CB24: 0 | CC24: 0 | CD24: 0 | CE24: 0 | CF24: 0 | CG24: 0 | CH24: 0 | CI24: 0 | CJ24: 0 | CK24: 0 | CL24: 0 | CM24: 0 | CN24: 0 | CO24: 0 | CP24: 0 | CQ24: 0 | CR24: 0 | CS24: 0 | CT24: 0 | CU24: 0 | CV24: 0 | CW24: 0 | CX24: 0 | CY24: 0 | CZ24: 0 | DA24: 0 | DB24: 0 | DC24: 0 | DD24: 0 | DE24: 0 | DF24: 0 | DG24: 0 | DH24: 0 | DI24: 0 | DJ24: 0 | DK24: 0 | DL24: 0 | DM24: 0 | DN24: 0 | DO24: 0 | DP24: 0 | DQ24: 0 | DR24: 0 | DS24: 0 | DT24: 0 | DU24: 0 | DV24: 0 | DW24: 0 | DX24: 0 | DY24: 0 | DZ24: 0 | EA24: 0 | EB24: 0 | EC24: 0 | ED24: 0 | EE24: 0 | EF24: 0 | EG24: 0 | EH24: 0 | EI24: 0 | EJ24: 0 | EK24: 0 | EL24: 0 | EM24: 0 | EN24: 0 | EO24: 0 | EP24: 0 | EQ24: 0 | ER24: 0 | ES24: 0 | ET24: 0 | EU24: 0 | EV24: 0 | EW24: 0 | EX24: 0 | EY24: 0 | EZ24: 0 | FA24: 0 | FB24: 0 | FC24: 0 | FD24: 0 | FE24: 0 | FF24: 0 | FG24: 0 | FH24: 0 | FI24: 0 | FJ24: 0 | FK24: 0 | FL24: 0 | FM24: 0 | FN24: 0 | FO24: 0 | FP24: 0 | FQ24: 0 | FR24: 0 | FS24: 0 | FT24: 0 | FU24: 0 | FV24: 0 | FW24: 0 | FX24: 0 | FY24: 0 | FZ24: 0 | GA24: 0 | GB24: 0 | GC24: 0 | GD24: 0 | GE24: 0 | GF24: 0 | GG24: 0 | GH24: 0 | GI24: 0 | GJ24: 0 | GK24: 0 | GL24: 0 | GM24: 0 | GN24: 0 | GO24: 0 | GP24: 0 | GQ24: 0 | GR24: 0 | GS24: 0 | GT24: 0 | GU24: 0 | GV24: 0 | GW24: 0 | GX24: 0 | GY24: 0 | GZ24: 0 | HA24: 0 | HB24: 0 | HC24: 0 | HD24: 0 | HE24: 0 | HF24: 0 | HG24: 0 | HH24: 0 | HI24: 0 | HJ24: 0 | HK24: 0 | HL24: 0 | HM24: 0 | HN24: 0 | HO24: 0 | HP24: 0 | HQ24: 0 | HR24: 0 | HS24: 0 | HT24: 0 | HU24: 0 | HV24: 0 | HW24: 0 | HX24: 0 | HY24: 0 | HZ24: 0 | IA24: 0 | IB24: 0 | IC24: 0 | ID24: 0 | IE24: 0 | IF24: 0 | IG24: 0 | IH24: 0 | II24: 0 | IJ24: 0 | IK24: 0 | IL24: 0 | IM24: 0 | IN24: 0 | IO24: 0 | IP24: 0 | IQ24: 0 | IR24: 0 | IS24: 0 | IT24: 0 | IU24: 0 | IV24: 0 | IW24: 0 | IX24: 0 | IY24: 0 | IZ24: 0 | JA24: 0 | JB24: 0 | JC24: 0 | JD24: 0 | JE24: 0 | JF24: 0 | JG24: 0 | JH24: 0 | JI24: 0 | JJ24: 0 | JK24: 0 | JL24: 0 | JM24: 0 | JN24: 0 | JO24: 0 | JP24: 0 | JQ24: 0 | JR24: 0 | JS24: 0 | JT24: 0 | JU24: 0 | JV24: 0 | JW24: 0 | JX24: 0 | JY24: 0 | JZ24: 0 | KA24: 0 | KB24: 0 | KC24: 0 | KD24: 0 | KE24: 0 | KF24: 0 | KG24: 0 | KH24: 0 | KI24: 0 | KJ24: 0 | KK24: 0 | KL24: 0 | KM24: 0 | KN24: 0 | KO24: 0 | KP24: 0 | KQ24: 0 | KR24: 0 | KS24: 0 | KT24: 0 | KU24: 0 | KV24: 0 | KW24: 0 | KX24: 0 | KY24: 0 | KZ24: 0 | LA24: 0 | LB24: 0 | LC24: 0 | LD24: 0 | LE24: 0 | LF24: 0 | LG24: 0 | LH24: 0 | LI24: 0 | LJ24: 0 | LK24: 0 | LL24: 0 | LM24: 0 | LN24: 0 | LO24: 0 | LP24: 0 | LQ24: 0 | LR24: 0 | LS24: 0 | LT24: 0 | LU24: 0 | LV24: 0 | LW24: 0 | LX24: 0 | LY24: 0 | LZ24: 0 | MA24: 0 | MB24: 0 | MC24: 0 | MD24: 0 | ME24: 0 | MF24: 0 | MG24: 0 | MH24: 0 | MI24: 0 | MJ24: 0 | MK24: 0 | ML24: 0 | MM24: 0 | MN24: 0 | MO24: 0 | MP24: 0 | MQ24: 0 | MR24: 0 | MS24: 0 | MT24: 0 | MU24: 0 | MV24: 0 | MW24: 0 | MX24: 0 | MY24: 0 | MZ24: 0 | NA24: 0 | NB24: 0 | NC24: 0
A25: 0 | B25: 23:00:00 | C25: 0 | D25: 0 | E25: 0 | F25: 0 | G25: 0 | H25: 0 | I25: 0 | J25: 0 | K25: 0 | L25: 0 | M25: 0 | N25: 0 | O25: 0 | P25: 0 | Q25: 0 | R25: 0 | S25: 0 | T25: 0 | U25: 0 | V25: 0 | W25: 0 | X25: 0 | Y25: 0 | Z25: 0 | AA25: 0 | AB25: 0 | AC25: 0 | AD25: 0 | AE25: 0 | AF25: 0 | AG25: 0 | AH25: 0 | AI25: 0 | AJ25: 0 | AK25: 0 | AL25: 0 | AM25: 0 | AN25: 0 | AO25: 0 | AP25: 0 | AQ25: 0 | AR25: 0 | AS25: 0 | AT25: 0 | AU25: 0 | AV25: 0 | AW25: 0 | AX25: 0 | AY25: 0 | AZ25: 0 | BA25: 0 | BB25: 0 | BC25: 0 | BD25: 0 | BE25: 0 | BF25: 0 | BG25: 0 | BH25: 0 | BI25: 0 | BJ25: 0 | BK25: 0 | BL25: 0 | BM25: 0 | BN25: 0 | BO25: 0 | BP25: 0 | BQ25: 0 | BR25: 0 | BS25: 0 | BT25: 0 | BU25: 0 | BV25: 0 | BW25: 0 | BX25: 0 | BY25: 0 | BZ25: 0 | CA25: 0 | CB25: 0 | CC25: 0 | CD25: 0 | CE25: 0 | CF25: 0 | CG25: 0 | CH25: 0 | CI25: 0 | CJ25: 0 | CK25: 0 | CL25: 0 | CM25: 0 | CN25: 0 | CO25: 0 | CP25: 0 | CQ25: 0 | CR25: 0 | CS25: 0 | CT25: 0 | CU25: 0 | CV25: 0 | CW25: 0 | CX25: 0 | CY25: 0 | CZ25: 0 | DA25: 0 | DB25: 0 | DC25: 0 | DD25: 0 | DE25: 0 | DF25: 0 | DG25: 0 | DH25: 0 | DI25: 0 | DJ25: 0 | DK25: 0 | DL25: 0 | DM25: 0 | DN25: 0 | DO25: 0 | DP25: 0 | DQ25: 0 | DR25: 0 | DS25: 0 | DT25: 0 | DU25: 0 | DV25: 0 | DW25: 0 | DX25: 0 | DY25: 0 | DZ25: 0 | EA25: 0 | EB25: 0 | EC25: 0 | ED25: 0 | EE25: 0 | EF25: 0 | EG25: 0 | EH25: 0 | EI25: 0 | EJ25: 0 | EK25: 0 | EL25: 0 | EM25: 0 | EN25: 0 | EO25: 0 | EP25: 0 | EQ25: 0 | ER25: 0 | ES25: 0 | ET25: 0 | EU25: 0 | EV25: 0 | EW25: 0 | EX25: 0 | EY25: 0 | EZ25: 0 | FA25: 0 | FB25: 0 | FC25: 0 | FD25: 0 | FE25: 0 | FF25: 0 | FG25: 0 | FH25: 0 | FI25: 0 | FJ25: 0 | FK25: 0 | FL25: 0 | FM25: 0 | FN25: 0 | FO25: 0 | FP25: 0 | FQ25: 0 | FR25: 0 | FS25: 0 | FT25: 0 | FU25: 0 | FV25: 0 | FW25: 0 | FX25: 0 | FY25: 0 | FZ25: 0 | GA25: 0 | GB25: 0 | GC25: 0 | GD25: 0 | GE25: 0 | GF25: 0 | GG25: 0 | GH25: 0 | GI25: 0 | GJ25: 0 | GK25: 0 | GL25: 0 | GM25: 0 | GN25: 0 | GO25: 0 | GP25: 0 | GQ25: 0 | GR25: 0 | GS25: 0 | GT25: 0 | GU25: 0 | GV25: 0 | GW25: 0 | GX25: 0 | GY25: 0 | GZ25: 0 | HA25: 0 | HB25: 0 | HC25: 0 | HD25: 0 | HE25: 0 | HF25: 0 | HG25: 0 | HH25: 0 | HI25: 0 | HJ25: 0 | HK25: 0 | HL25: 0 | HM25: 0 | HN25: 0 | HO25: 0 | HP25: 0 | HQ25: 0 | HR25: 0 | HS25: 0 | HT25: 0 | HU25: 0 | HV25: 0 | HW25: 0 | HX25: 0 | HY25: 0 | HZ25: 0 | IA25: 0 | IB25: 0 | IC25: 0 | ID25: 0 | IE25: 0 | IF25: 0 | IG25: 0 | IH25: 0 | II25: 0 | IJ25: 0 | IK25: 0 | IL25: 0 | IM25: 0 | IN25: 0 | IO25: 0 | IP25: 0 | IQ25: 0 | IR25: 0 | IS25: 0 | IT25: 0 | IU25: 0 | IV25: 0 | IW25: 0 | IX25: 0 | IY25: 0 | IZ25: 0 | JA25: 0 | JB25: 0 | JC25: 0 | JD25: 0 | JE25: 0 | JF25: 0 | JG25: 0 | JH25: 0 | JI25: 0 | JJ25: 0 | JK25: 0 | JL25: 0 | JM25: 0 | JN25: 0 | JO25: 0 | JP25: 0 | JQ25: 0 | JR25: 0 | JS25: 0 | JT25: 0 | JU25: 0 | JV25: 0 | JW25: 0 | JX25: 0 | JY25: 0 | JZ25: 0 | KA25: 0 | KB25: 0 | KC25: 0 | KD25: 0 | KE25: 0 | KF25: 0 | KG25: 0 | KH25: 0 | KI25: 0 | KJ25: 0 | KK25: 0 | KL25: 0 | KM25: 0 | KN25: 0 | KO25: 0 | KP25: 0 | KQ25: 0 | KR25: 0 | KS25: 0 | KT25: 0 | KU25: 0 | KV25: 0 | KW25: 0 | KX25: 0 | KY25: 0 | KZ25: 0 | LA25: 0 | LB25: 0 | LC25: 0 | LD25: 0 | LE25: 0 | LF25: 0 | LG25: 0 | LH25: 0 | LI25: 0 | LJ25: 0 | LK25: 0 | LL25: 0 | LM25: 0 | LN25: 0 | LO25: 0 | LP25: 0 | LQ25: 0 | LR25: 0 | LS25: 0 | LT25: 0 | LU25: 0 | LV25: 0 | LW25: 0 | LX25: 0 | LY25: 0 | LZ25: 0 | MA25: 0 | MB25: 0 | MC25: 0 | MD25: 0 | ME25: 0 | MF25: 0 | MG25: 0 | MH25: 0 | MI25: 0 | MJ25: 0 | MK25: 0 | ML25: 0 | MM25: 0 | MN25: 0 | MO25: 0 | MP25: 0 | MQ25: 0 | MR25: 0 | MS25: 0 | MT25: 0 | MU25: 0 | MV25: 0 | MW25: 0 | MX25: 0 | MY25: 0 | MZ25: 0 | NA25: 0 | NB25: 0 | NC25: 0
A26: 0
A27: 0
A28: 0
A29: 0
A30: 0
A31: 0
A32: 0
A33: 0
A34: 24.22
A35: 58.76
A36: 41.87
A37: 51.59
A38: 25.72
A39: 40.24
A40: 46.48
A41: 13.59
A42: 0
A43: 0
A44: 0
A45: 0
A46: 0
A47: 0
A48: 0
A49: 0
A50: 0
A51: 0
A52: 0
A53: 0
A54: 0
A55: 0
A56: 0
A57: 0
A58: 37.72
A59: 31.61
A60: 94.39
A61: 70.87
A62: 21.53
A63: 27.86
A64: 42.61
A65: 12.15
A66: 0
A67: 0
A68: 0
A69: 0
A70: 0
A71: 0
A72: 0
A73: 0
A74: 0
A75: 0
A76: 0
A77: 0
A78: 0
A79: 0
A80: 0
A81: 0
A82: 156.9
A83: 300.71
A84: 307.27
A85: 130
A86: 59.16
A87: 47.63
A88: 47.83
A89: 66.44
A90: 0
A91: 0
A92: 0
A93: 0
A94: 0
A95: 0
A96: 0
A97: 0
A98: 0
A99: 0
A100: 0
A101: 0
A102: 0
A103: 0
A104: 0
A105: 0
A106: 83.11
A107: 158.1
A108: 612.3
A109: 687.39
A110: 674.79
A111: 583.81
A112: 439.16
A113: 157.62
A114: 0
A115: 0
A116: 0
A117: 0
A118: 0
A119: 0
A120: 0
A121: 0
A122: 0
A123: 0
A124: 0
A125: 0
A126: 0
A127: 0
A128: 0
A129: 0
A130: 43.45
A131: 59.32
A132: 47.05
A133: 63.81
A134: 42.14
A135: 41.28
A136: 28.01
A137: 9.71
A138: 0
A139: 0
A140: 0
A141: 0
A142: 0
A143: 0
A144: 0
A145: 0
A146: 0
A147: 0
A148: 0
A149: 0
A150: 0
A151: 0
A152: 0
A153: 0
A154: 38.17
A155: 39.73
A156: 34.32
A157: 30.55
A158: 40.13
A159: 32.59
A160: 24.61
A161: 6.75
A162: 0
A163: 0
A164: 0
A165: 0
A166: 0
A167: 0
A168: 0
A169: 0
A170: 0
A171: 0
A172: 0
A173: 0
A174: 0
A175: 0
A176: 0
A177: 0
A178: 6.22
A179: 73.58
A180: 47.06
A181: 31.23
A182: 41.64
A183: 25.4
A184: 28.98
A185: 22.72
A186: 0
A187: 0
A188: 0
A189: 0
A190: 0
A191: 0
A192: 0
A193: 0
A194: 0
A195: 0
A196: 0
A197: 0
A198: 0
A199: 0
A200: 0
... 8561 more rows

Sheet Elaborazioni (hidden)
A1: PV[W] | B1: PREL [kW] | C1: Prel_scuola[kW] | F1: Tot_PV [kW] | G1: ToT PREL [kW] | H1: AUT [kW] | I1: IMM [kW] | J1: Econd [kW] | Q1: Tariffa fissa | R1: Tariffa variabile | S1: TOT | T1: Corr.Geog | U1: Totale | W1: =Prelievi_Utenti!V23 -> 7
A2: 0 | B2: 0.1727333333 | C2: 22.54 | E2: 0 | F2: =(A2*Simulatore_Scuola!$E$16)/1000 -> 0 | G2: =Simulatore_Scuola!$E$17*Elaborazioni!B2 -> 0.5182 | H2: =MIN(F2,C2) -> 0 | I2: =MAX(0,F2-H2) -> 0 | J2: =MIN(I2,G2) -> 0 | K2: 00:00:00 | M2: Potenza Fotovoltaica | N2: =Simulatore_Scuola!E16 -> 1 | O2: kWp | V2: 1 | W2: Abruzzo | X2: 4
A3: 0 | B3: 0.1468 | C3: 22.54 | E3: =E2+1 -> 1 | F3: =(A3*Simulatore_Scuola!$E$16)/1000 -> 0 | G3: =Simulatore_Scuola!$E$17*Elaborazioni!B3 -> 0.4404 | H3: =MIN(F3,C3) -> 0 | I3: =MAX(0,F3-H3) -> 0 | J3: =MIN(I3,G3) -> 0 | K3: 01:00:00 | M3: Energia prodotta dall'impianto fotovoltaico | N3: =365*F26 -> 2301.59875 | O3: kWh/anno | Q3: =IF(N2<=200,80,0) -> 80 | R3: =IF(Q3=0,0,MAX(0,180-Simulatore_Scuola!$E$20)) -> 80 | S3: =MIN(120,Q3+R3) -> 120 | T3: =IF(Q3=0,0,$W$22) -> 4 | U3: =S3+T3 -> 124 | V3: 2 | W3: Basilicata | X3: 0
A4: 0 | B4: 0.1305666667 | C4: 22.54 | E4: =E3+1 -> 2 | F4: =(A4*Simulatore_Scuola!$E$16)/1000 -> 0 | G4: =Simulatore_Scuola!$E$17*Elaborazioni!B4 -> 0.3917 | H4: 0 | I4: 0 | J4: 0 | K4: 02:00:00 | M4: Energia prelevata dalla scuola | N4: =365*B26 -> 1782.222 | O4: kWh/anno | Q4: =IF(AND(N2>200,N2<=600),70,0) -> 0 | R4: =IF(Q4=0,0,MAX(0,180-Simulatore_Scuola!$E$20)) -> 0 | S4: =MIN(110,Q4+R4) -> 0 | T4: =IF(Q4=0,0,$W$22) -> 0 | U4: =S4+T4 -> 0 | V4: 3 | W4: Calabria | X4: 0
A5: 0 | B5: 0.1231666667 | C5: 22.54 | E5: 3 | F5: =(A5*Simulatore_Scuola!$E$16)/1000 -> 0 | G5: =Simulatore_Scuola!$E$17*Elaborazioni!B5 -> 0.3695 | H5: 0 | I5: 0 | J5: 0 | K5: 03:00:00 | M5: Energia prelevata dagli utenti domestici | N5: =G26*365 -> 5346.666 | O5: kWh/anno | Q5: =IF(N2>600,60,0) -> 0 | R5: =IF(Q5=0,0,MAX(0,180-Simulatore_Scuola!$E$20)) -> 0 | S5: =MIN(100,Q5+R5) -> 0 | T5: 0 | U5: 0 | V5: 4 | W5: Campania | X5: 0
A6: 0 | B6: 0.1203333333 | C6: 22.54 | E6: 4 | F6: =(A6*Simulatore_Scuola!$E$16)/1000 -> 0 | G6: =Simulatore_Scuola!$E$17*Elaborazioni!B6 -> 0.361 | H6: 0 | I6: 0 | J6: 0 | K6: 04:00:00 | M6: Energia autoconsumata dalla scuola | N6: =H26*365 -> 2301.59875 | O6: kWh/anno | U6: =SUM(U3:U5) -> 124 | V6: 5 | W6: Emilia-Romagna | X6: 10
A7: 9.43 | B7: 0.1248333333 | C7: 22.54 | E7: 5 | F7: =(A7*Simulatore_Scuola!$E$16)/1000 -> 0.00943 | G7: =Simulatore_Scuola!$E$17*Elaborazioni!B7 -> 0.3745 | H7: 0.00943 | I7: 0 | J7: 0 | K7: 05:00:00 | M7: Energia immessa in rete dall'impianto | N7: =365*I26 -> 0 | O7: kWh/anno | V7: 6 | W7: Friuli-Venezia Giulia | X7: 10
A8: 98.61 | B8: 0.1394333333 | C8: 22.54 | E8: 6 | F8: =(A8*Simulatore_Scuola!$E$16)/1000 -> 0.09861 | G8: =Simulatore_Scuola!$E$17*Elaborazioni!B8 -> 0.4183 | H8: 0.09861 | I8: 0 | J8: 0 | K8: 06:00:00 | M8: Energia condivisa nella CER | N8: =J26*365 -> 0 | O8: kWh/anno | V8: 7 | W8: Lazio | X8: 4
A9: 307.3 | B9: 0.1675666667 | C9: 22.54 | E9: 7 | F9: =(A9*Simulatore_Scuola!$E$16)/1000 -> 0.3073 | G9: =Simulatore_Scuola!$E$17*Elaborazioni!B9 -> 0.5027 | H9: 0.3073 | I9: 0 | J9: 0 | K9: 07:00:00 | V9: 8 | W9: Liguria | X9: 10
A10: 510.65 | B10: 0.1893333333 | C10: 32.75 | E10: 8 | F10: =(A10*Simulatore_Scuola!$E$16)/1000 -> 0.51065 | G10: =Simulatore_Scuola!$E$17*Elaborazioni!B10 -> 0.568 | H10: 0.51065 | I10: 0 | J10: 0 | K10: 08:00:00 | V10: 9 | W10: Lombardia | X10: 10
A11: 656.8 | B11: 0.2046 | C11: 78.53625 | E11: 9 | F11: =(A11*Simulatore_Scuola!$E$16)/1000 -> 0.6568 | G11: =Simulatore_Scuola!$E$17*Elaborazioni!B11 -> 0.6138 | H11: 0.6568 | I11: =MAX(0,F11-H11) -> 0 | J11: 0 | K11: 09:00:00 | M11: Incentivo CER | N11: =(U6/1000)*N8 -> 0 | O11: euro/anno | V11: 10 | W11: Marche | X11: 4
A12: 771.19 | B12: 0.2089333333 | C12: 85.9025 | E12: 10 | F12: =(A12*Simulatore_Scuola!$E$16)/1000 -> 0.77119 | G12: =Simulatore_Scuola!$E$17*Elaborazioni!B12 -> 0.6268 | H12: 0.77119 | I12: 0 | J12: 0 | K12: 10:00:00 | M12: Costi di rete evitati | N12: =(Simulatore_Scuola!$E$22/1000)*Elaborazioni!N8 -> 0 | O12: euro/anno | V12: 11 | W12: Molise | X12: 0
A13: 824.57 | B13: 0.2137333333 | C13: 85.06625 | E13: 11 | F13: =(A13*Simulatore_Scuola!$E$16)/1000 -> 0.82457 | G13: =Simulatore_Scuola!$E$17*Elaborazioni!B13 -> 0.6412 | H13: =MIN(F13,C13) -> 0.82457 | I13: 0 | J13: 0 | K13: 11:00:00 | M13: Energia venduta alla rete | N13: =(Simulatore_Scuola!$E$20/1000)*Elaborazioni!N7 -> 0 | O13: euro/anno | V13: 12 | W13: Piemonte | X13: 10
A14: 822.08 | B14: 0.2280333333 | C14: 84.23 | E14: 12 | F14: =(A14*Simulatore_Scuola!$E$16)/1000 -> 0.82208 | G14: =Simulatore_Scuola!$E$17*Elaborazioni!B14 -> 0.6841 | H14: 0.82208 | I14: 0 | J14: 0 | K14: 12:00:00 | M14: Risparmio autoconsumo scuola | N14: =(Simulatore_Scuola!$E$21/1000)*Elaborazioni!N6 -> 345.2398125 | O14: euro/anno | V14: 13 | W14: Puglia | X14: 0
A15: 759.87 | B15: 0.2300666667 | C15: 79.75166667 | E15: 13 | F15: =(A15*Simulatore_Scuola!$E$16)/1000 -> 0.75987 | G15: =Simulatore_Scuola!$E$17*Elaborazioni!B15 -> 0.6902 | H15: 0.75987 | I15: 0 | J15: 0 | K15: 13:00:00 | M15: Totale | N15: =SUM(N11:N14) -> 345.2398125 | V15: 14 | W15: Sardegna | X15: 0
A16: 664.1 | B16: 0.2276333333 | C16: 69.18333333 | E16: 14 | F16: =(A16*Simulatore_Scuola!$E$16)/1000 -> 0.6641 | G16: =Simulatore_Scuola!$E$17*Elaborazioni!B16 -> 0.6829 | H16: 0.6641 | I16: 0 | J16: 0 | K16: 14:00:00 | V16: 15 | W16: Sicilia | X16: 0
A17: 506.18 | B17: 0.2221 | C17: 47.85856383 | E17: 15 | F17: =(A17*Simulatore_Scuola!$E$16)/1000 -> 0.50618 | G17: =Simulatore_Scuola!$E$17*Elaborazioni!B17 -> 0.6663 | H17: 0.50618 | I17: 0 | J17: 0 | K17: 15:00:00 | M17: Costo sostenuto per produrre l'energia | N17: =N3*Simulatore_Scuola!$G$23 -> 225.5566775 | V17: 16 | W17: Toscana | X17: 4
A18: 296.55 | B18: 0.2191666667 | C18: 17.28 | E18: 16 | F18: =(A18*Simulatore_Scuola!$E$16)/1000 -> 0.29655 | G18: =Simulatore_Scuola!$E$17*Elaborazioni!B18 -> 0.6575 | H18: =MIN(F18,C18) -> 0.29655 | I18: 0 | J18: 0 | K18: 16:00:00 | M18: saldo | N18: =N15-N17 -> 119.683135 | V18: 17 | W18: Trentino-Alto Adige | X18: 10
A19: 71.21 | B19: 0.2297333333 | C19: 17.28 | E19: 17 | F19: =(A19*Simulatore_Scuola!$E$16)/1000 -> 0.07121 | G19: =Simulatore_Scuola!$E$17*Elaborazioni!B19 -> 0.6892 | H19: 0.07121 | I19: 0 | J19: 0 | K19: 17:00:00 | V19: 18 | W19: Umbria | X19: 4
A20: 7.21 | B20: 0.2535333333 | C20: 17.28 | E20: 18 | F20: =(A20*Simulatore_Scuola!$E$16)/1000 -> 0.00721 | G20: =Simulatore_Scuola!$E$17*Elaborazioni!B20 -> 0.7606 | H20: 0.00721 | I20: =MAX(0,F20-H20) -> 0 | J20: 0 | K20: 18:00:00 | V20: 19 | W20: Valle-D'Aosta | X20: 10
A21: 0 | B21: 0.2954333333 | C21: 17.28 | E21: 19 | F21: =(A21*Simulatore_Scuola!$E$16)/1000 -> 0 | G21: =Simulatore_Scuola!$E$17*Elaborazioni!B21 -> 0.8863 | H21: 0 | I21: 0 | J21: 0 | K21: 19:00:00 | V21: 20 | W21: Veneto | X21: 10
A22: 0 | B22: 0.3004 | C22: 17.28 | E22: 20 | F22: =(A22*Simulatore_Scuola!$E$16)/1000 -> 0 | G22: =Simulatore_Scuola!$E$17*Elaborazioni!B22 -> 0.9012 | H22: 0 | I22: 0 | J22: 0 | K22: 20:00:00 | W22: =VLOOKUP(W1, V2:X21,3,FALSE) -> 4
A23: 0 | B23: 0.2804666667 | C23: 17.28 | E23: 21 | F23: =(A23*Simulatore_Scuola!$E$16)/1000 -> 0 | G23: =Simulatore_Scuola!$E$17*Elaborazioni!B23 -> 0.8414 | H23: 0 | I23: 0 | J23: 0 | K23: 21:00:00
A24: 0 | B24: 0.2474333333 | C24: 17.28 | E24: 22 | F24: =(A24*Simulatore_Scuola!$E$16)/1000 -> 0 | G24: =Simulatore_Scuola!$E$17*Elaborazioni!B24 -> 0.7423 | H24: 0 | I24: 0 | J24: 0 | K24: 22:00:00
A25: 0 | B25: 0.2067666667 | C25: 17.28 | E25: 23 | F25: =(A25*Simulatore_Scuola!$E$16)/1000 -> 0 | G25: =Simulatore_Scuola!$E$17*Elaborazioni!B25 -> 0.6203 | H25: 0 | I25: 0 | J25: 0 | K25: 23:00:00
B26: =SUM(B2:B25) -> 4.8828 | F26: =SUM(F2:F25) -> 6.30575 | G26: =SUM(G2:G25) -> 14.6484 | H26: 6.30575 | I26: 0 | J26: 0

Sheet Flussi cassa (hidden)
A2: ANNO | B2: 0 | C2: =B2+1 -> 1 | D2: =C2+1 -> 2 | E2: 3 | F2: 4 | G2: 5 | H2: 6 | I2: 7 | J2: 8 | K2: 9 | L2: 10 | M2: 11 | N2: 12 | O2: 13 | P2: 14 | Q2: 15 | R2: 16 | S2: =R2+1 -> 17 | T2: 18 | U2: 19 | V2: 20 | W2: 21 | X2: 22 | Y2: =X2+1 -> 23 | Z2: 24 | AA2: 25
A3: Costo installazione | B3: =Simulatore_Scuola!E18 -> 150000 | C3: =$B$10 -> 15000 | D3: 15000 | E3: 15000 | F3: 15000 | G3: 15000 | H3: 15000 | I3: 15000 | J3: 15000 | K3: 15000 | L3: 15000 | M3: 0 | N3: 0 | O3: 0 | P3: 0 | Q3: 0 | R3: 0 | S3: 0 | T3: 0 | U3: 0 | V3: 0 | W3: 0 | X3: 0 | Y3: 0 | Z3: 0 | AA3: 0
A4: Interessi | B4: =Simulatore_Scuola!E19/100 -> 0.04 | C4: =$B$4*C3 -> 600 | D4: =$B$4*D3 -> 600 | E4: 600 | F4: 600 | G4: 600 | H4: 600 | I4: 600 | J4: 600 | K4: 600 | L4: 600 | M4: 0 | N4: 0 | O4: 0 | P4: 0 | Q4: 0 | R4: 0 | S4: 0 | T4: 0 | U4: 0 | V4: 0 | W4: 0 | X4: 0 | Y4: 0 | Z4: 0 | AA4: 0
A5: Costo manutenzione | B5: =2/100 -> 0.02 | C5: =B3*B5 -> 3000 | D5: =$C$5 -> 3000 | E5: 3000 | F5: 3000 | G5: 3000 | H5: 3000 | I5: 3000 | J5: 3000 | K5: 3000 | L5: 3000 | M5: 3000 | N5: 3000 | O5: 3000 | P5: 3000 | Q5: 3000 | R5: 3000 | S5: 3000 | T5: 3000 | U5: 3000 | V5: 3000 | W5: 3000 | X5: 3000 | Y5: 3000 | Z5: 3000 | AA5: 3000
A6: Int+man | C6: =C4+C5 -> 3600 | D6: =D4+D5 -> 3600 | E6: 3600 | F6: 3600 | G6: 3600 | H6: 3600 | I6: 3600 | J6: 3600 | K6: 3600 | L6: 3600 | M6: 3000 | N6: 3000 | O6: 3000 | P6: 3000 | Q6: 3000 | R6: 3000 | S6: 3000 | T6: 3000 | U6: 3000 | V6: 3000 | W6: 3000 | X6: 3000 | Y6: 3000 | Z6: 3000 | AA6: 3000
A7: Ricavi | B7: =Elaborazioni!N15 -> 345.2398125 | C7: =$B$7 -> 345.2398125 | D7: 345.2398125 | E7: 345.2398125 | F7: 345.2398125 | G7: 345.2398125 | H7: 345.2398125 | I7: 345.2398125 | J7: 345.2398125 | K7: 345.2398125 | L7: 345.2398125 | M7: 345.2398125 | N7: 345.2398125 | O7: 345.2398125 | P7: 345.2398125 | Q7: 345.2398125 | R7: 345.2398125 | S7: 345.2398125 | T7: 345.2398125 | U7: 345.2398125 | V7: 345.2398125 | W7: 345.2398125 | X7: 345.2398125 | Y7: 345.2398125 | Z7: 345.2398125 | AA7: 345.2398125
A8: Cumulata | B8: =-B3 -> -150000 | C8: =B8+C7 -> -149654.7602 | D8: =C8+D7 -> -149309.5204 | E8: =D8+E7 -> -148964.2806 | F8: =E8+F7 -> -148619.0408 | G8: -148273.8009 | H8: -147928.5611 | I8: -147583.3213 | J8: -147238.0815 | K8: -146892.8417 | L8: -146547.6019 | M8: -146202.3621 | N8: -145857.1223 | O8: -145511.8824 | P8: -145166.6426 | Q8: -144821.4028 | R8: -144476.163 | S8: -144130.9232 | T8: -143785.6834 | U8: -143440.4436 | V8: -143095.2038 | W8: -142749.9639 | X8: -142404.7241 | Y8: -142059.4843 | Z8: -141714.2445 | AA8: -141369.0047
A10: Quota ammortamento | B10: =B3/10 -> 15000
B12: PBT | C12: =COUNTIF(C8:AA8, "<0")+1 -> 26
B13: VAN | C13: =AA8 -> -141369.0047

Sheet Prelievi_Utenti (hidden)
A1: Abruzzo | B1: Basilicata | C1: Calabria | D1: Campania | E1: Emilia-Romagna | F1: Friuli-Venezia Giulia | G1: Lazio | H1: Liguria | I1: Lombardia | J1: Marche | K1: Molise | L1: Piemonte | M1: Puglia | N1: Sardegna | O1: Sicilia | P1: Toscana | Q1: Trentino-Alto Adige | R1: Umbria | S1: Valle-D'Aosta | T1: Veneto | V1: Elenco Regioni | W1: Potenza prelievo
A2: 0.02586666667 | B2: 0.0266 | C2: 0.04566666667 | D2: 0.05323333333 | E2: 0.0336 | F2: 0.03053333333 | G2: 0.0356 | H2: 0.0259 | I2: 0.03266666667 | J2: 0.027 | K2: 0.0279 | L2: 0.02543333333 | M2: 0.0397 | N2: 0.04316666667 | O2: 0.0572 | P2: 0.0346 | Q2: 0.0429 | R2: 0.02363333333 | S2: 0.03206666667 | T2: 0.03490877193 | U2: 1 | V2: Abruzzo | W2: 1,5kW | X2: 1
A3: 0.02323333333 | B3: 0.02466666667 | C3: 0.04133333333 | D3: 0.04793333333 | E3: 0.03103333333 | F3: 0.0274 | G3: 0.0323 | H3: 0.0231 | I3: 0.0303 | J3: 0.02496666667 | K3: 0.0258 | L3: 0.02286666667 | M3: 0.03596666667 | N3: 0.0389 | O3: 0.05143333333 | P3: 0.031 | Q3: 0.04076666667 | R3: 0.02136666667 | S3: 0.0283 | T3: 0.03171929825 | U3: =U2+1 -> 2 | V3: Basilicata | W3: 3kW | X3: =X2+1 -> 2
A4: 0.0215 | B4: 0.02346666667 | C4: 0.0385 | D4: 0.0444 | E4: 0.02926666667 | F4: 0.025 | G4: 0.0303 | H4: 0.02143333333 | I4: 0.02876666667 | J4: 0.02373333333 | K4: 0.0245 | L4: 0.02143333333 | M4: 0.0336 | N4: 0.03616666667 | O4: 0.04713333333 | P4: 0.02883333333 | Q4: 0.0399 | R4: 0.02023333333 | S4: 0.02593333333 | T4: 0.02968947368 | U4: =U3+1 -> 3 | V4: Calabria | W4: 4,5kW | X4: =X3+1 -> 3
A5: 0.02093333333 | B5: 0.02303333333 | C5: 0.03736666667 | D5: 0.04276666667 | E5: 0.02863333333 | F5: 0.0235 | G5: 0.0295 | H5: 0.02063333333 | I5: 0.0283 | J5: 0.02326666667 | K5: 0.0238 | L5: 0.02086666667 | M5: 0.0325 | N5: 0.03503333333 | O5: 0.0452 | P5: 0.0278 | Q5: 0.039 | R5: 0.0197 | S5: 0.02486666667 | T5: 0.02877368421 | U5: 4 | V5: Campania | W5: 6kW | X5: 4
A6: 0.02076666667 | B6: 0.0231 | C6: 0.03756666667 | D6: 0.04253333333 | E6: 0.0282 | F6: 0.02266666667 | G6: 0.02973333333 | H6: 0.02023333333 | I6: 0.02813333333 | J6: 0.02286666667 | K6: 0.02363333333 | L6: 0.02073333333 | M6: 0.0325 | N6: 0.0352 | O6: 0.04476666667 | P6: 0.02733333333 | Q6: 0.04083333333 | R6: 0.01963333333 | S6: 0.0243 | T6: 0.02867017544 | U6: 5 | V6: Emilia-Romagna
A7: 0.02153333333 | B7: 0.02403333333 | C7: 0.04023333333 | D7: 0.04396666667 | E7: 0.02816666667 | F7: 0.0228 | G7: 0.03103333333 | H7: 0.02066666667 | I7: 0.02843333333 | J7: 0.023 | K7: 0.02426666667 | L7: 0.0216 | M7: 0.03393333333 | N7: 0.0369 | O7: 0.04753333333 | P7: 0.02776666667 | Q7: 0.04176666667 | R7: 0.02006666667 | S7: 0.02413333333 | T7: 0.02957017544 | U7: 6 | V7: Friuli-Venezia Giulia
A8: 0.0233 | B8: 0.02623333333 | C8: 0.04696666667 | D8: 0.04816666667 | E8: 0.0285 | F8: 0.0246 | G8: 0.0338 | H8: 0.0223 | I8: 0.02866666667 | J8: 0.024 | K8: 0.02616666667 | L8: 0.02363333333 | M8: 0.0377 | N8: 0.0419 | O8: 0.0535 | P8: 0.03006666667 | Q8: 0.0464 | R8: 0.02173333333 | S8: 0.02513333333 | T8: 0.03225087719 | U8: 7 | V8: Lazio
A9: 0.0267 | B9: 0.0299 | C9: 0.05566666667 | D9: 0.0548 | E9: 0.02943333333 | F9: 0.02803333333 | G9: 0.03803333333 | H9: 0.02493333333 | I9: 0.02963333333 | J9: 0.0261 | K9: 0.02983333333 | L9: 0.0259 | M9: 0.04433333333 | N9: 0.05066666667 | O9: 0.06333333333 | P9: 0.0337 | Q9: 0.04943333333 | R9: 0.02416666667 | S9: 0.02813333333 | T9: 0.03645964912 | U9: 8 | V9: Liguria
A10: 0.0294 | B10: 0.03336666667 | C10: 0.06043333333 | D10: 0.05923333333 | E10: 0.0308 | F10: 0.03163333333 | G10: 0.0411 | H10: 0.0281 | I10: 0.03123333333 | J10: 0.0287 | K10: 0.0328 | L10: 0.02833333333 | M10: 0.04853333333 | N10: 0.05616666667 | O10: 0.07023333333 | P10: 0.03706666667 | Q10: 0.0467 | R10: 0.0262 | S10: 0.03233333333 | T10: 0.03959824561 | U10: 9 | V10: Lombardia
A11: 0.031 | B11: 0.0345 | C11: 0.0613 | D11: 0.061 | E11: 0.0324 | F11: 0.0346 | G11: 0.0429 | H11: 0.03003333333 | I11: 0.0329 | J11: 0.0303 | K11: 0.03403333333 | L11: 0.0297 | M11: 0.0497 | N11: 0.0566 | O11: 0.07303333333 | P11: 0.0395 | Q11: 0.04906666667 | R11: 0.0282 | S11: 0.03516666667 | T11: 0.04136491228 | U11: 10 | V11: Marche
A12: 0.03113333333 | B12: 0.03436666667 | C12: 0.0601 | D12: 0.06123333333 | E12: 0.03306666667 | F12: 0.03383333333 | G12: 0.043 | H12: 0.02986666667 | I12: 0.03346666667 | J12: 0.03076666667 | K12: 0.0339 | L12: 0.0298 | M12: 0.04956666667 | N12: 0.05526666667 | O12: 0.07286666667 | P12: 0.0404 | Q12: 0.0517 | R12: 0.02933333333 | S12: 0.03456666667 | T12: 0.04148596491 | U12: 11 | V12: Molise
A13: 0.03093333333 | B13: 0.03413333333 | C13: 0.05956666667 | D13: 0.0612 | E13: 0.03326666667 | F13: 0.0326 | G13: 0.0432 | H13: 0.02976666667 | I13: 0.0342 | J13: 0.0309 | K13: 0.03373333333 | L13: 0.0299 | M13: 0.0503 | N13: 0.05466666667 | O13: 0.07273333333 | P13: 0.0407 | Q13: 0.04923333333 | R13: 0.0297 | S13: 0.03333333333 | T13: 0.04126666667 | U13: 12 | V13: Piemonte
A14: 0.03136666667 | B14: 0.03446666667 | C14: 0.06096666667 | D14: 0.06256666667 | E14: 0.034 | F14: 0.03373333333 | G14: 0.0441 | H14: 0.0306 | I14: 0.03436666667 | J14: 0.03106666667 | K14: 0.03496666667 | L14: 0.03043333333 | M14: 0.0524 | N14: 0.05543333333 | O14: 0.0744 | P14: 0.04163333333 | Q14: 0.05116666667 | R14: 0.0294 | S14: 0.0348 | T14: 0.04220350877 | U14: 13 | V14: Puglia
A15: 0.0315 | B15: 0.03353333333 | C15: 0.06213333333 | D15: 0.06336666667 | E15: 0.03423333333 | F15: 0.03613333333 | G15: 0.0439 | H15: 0.03096666667 | I15: 0.03383333333 | J15: 0.03033333333 | K15: 0.03533333333 | L15: 0.0299 | M15: 0.05293333333 | N15: 0.0555 | O15: 0.0755 | P15: 0.04103333333 | Q15: 0.04783333333 | R15: 0.0277 | S15: 0.03666666667 | T15: 0.04222807018 | U15: 14 | V15: Sardegna
A16: 0.03093333333 | B16: 0.03306666667 | C16: 0.06116666667 | D16: 0.0622 | E16: 0.03343333333 | F16: 0.03573333333 | G16: 0.04266666667 | H16: 0.03003333333 | I16: 0.0331 | J16: 0.0298 | K16: 0.03416666667 | L16: 0.029 | M16: 0.0515 | N16: 0.0543 | O16: 0.07426666667 | P16: 0.03983333333 | Q16: 0.05106666667 | R16: 0.02666666667 | S16: 0.03606666667 | T16: 0.04152631579 | U16: 15 | V16: Sicilia
A17: 0.03023333333 | B17: 0.03266666667 | C17: 0.0597 | D17: 0.06083333333 | E17: 0.03323333333 | F17: 0.0346 | G17: 0.04186666667 | H17: 0.02936666667 | I17: 0.0328 | J17: 0.03003333333 | K17: 0.0333 | L17: 0.0285 | M17: 0.05046666667 | N17: 0.05343333333 | O17: 0.07246666667 | P17: 0.03936666667 | Q17: 0.0502 | R17: 0.02646666667 | S17: 0.03476666667 | T17: 0.04075263158 | U17: 16 | V17: Toscana
A18: 0.03063333333 | B18: 0.03366666667 | C18: 0.0608 | D18: 0.0617 | E18: 0.0341 | F18: 0.0345 | G18: 0.04276666667 | H18: 0.0297 | I18: 0.0335 | J18: 0.0313 | K18: 0.0341 | L18: 0.0289 | M18: 0.05176666667 | N18: 0.0543 | O18: 0.0731 | P18: 0.04016666667 | Q18: 0.05553333333 | R18: 0.02753333333 | S18: 0.0351 | T18: 0.04174561404 | U18: 17 | V18: Trentino-Alto Adige
A19: 0.03246666667 | B19: 0.03536666667 | C19: 0.06396666667 | D19: 0.06633333333 | E19: 0.03673333333 | F19: 0.0358 | G19: 0.04566666667 | H19: 0.03163333333 | I19: 0.03643333333 | J19: 0.03373333333 | K19: 0.0357 | L19: 0.03123333333 | M19: 0.0542 | N19: 0.05676666667 | O19: 0.07613333333 | P19: 0.0428 | Q19: 0.05903333333 | R19: 0.03026666667 | S19: 0.03726666667 | T19: 0.04429122807 | U19: 18 | V19: Umbria
A20: 0.03416666667 | B20: 0.03666666667 | C20: 0.06633333333 | D20: 0.0706 | E20: 0.03983333333 | F20: 0.03826666667 | G20: 0.0489 | H20: 0.03433333333 | I20: 0.03973333333 | J20: 0.0359 | K20: 0.03683333333 | L20: 0.03406666667 | M20: 0.05623333333 | N20: 0.05913333333 | O20: 0.07816666667 | P20: 0.04623333333 | Q20: 0.05866666667 | R20: 0.03293333333 | S20: 0.04096666667 | T20: 0.04673508772 | U20: 19 | V20: Valle-D'Aosta
A21: 0.03656666667 | B21: 0.03773333333 | C21: 0.06953333333 | D21: 0.0747 | E21: 0.04356666667 | F21: 0.0436 | G21: 0.05203333333 | H21: 0.03773333333 | I21: 0.04216666667 | J21: 0.03783333333 | K21: 0.0386 | L21: 0.03653333333 | M21: 0.05823333333 | N21: 0.06156666667 | O21: 0.08123333333 | P21: 0.05023333333 | Q21: 0.0554 | R21: 0.03413333333 | S21: 0.0466 | T21: 0.04936842105 | U21: 20 | V21: Veneto
A22: 0.0378 | B22: 0.03773333333 | C22: 0.07233333333 | D22: 0.07733333333 | E22: 0.045 | F22: 0.04523333333 | G22: 0.05253333333 | H22: 0.0383 | I22: 0.0427 | J22: 0.03776666667 | K22: 0.03993333333 | L22: 0.0367 | M22: 0.05933333333 | N22: 0.06293333333 | O22: 0.08346666667 | P22: 0.05096666667 | Q22: 0.05223333333 | R22: 0.03346666667 | S22: 0.04783333333 | T22: 0.05018947368
A23: 0.0358 | B23: 0.0356 | C23: 0.06753333333 | D23: 0.07436666667 | E23: 0.0433 | F23: 0.04196666667 | G23: 0.04946666667 | H23: 0.03606666667 | I23: 0.04223333333 | J23: 0.03596666667 | K23: 0.038 | L23: 0.03526666667 | M23: 0.056 | N23: 0.06036666667 | O23: 0.0799 | P23: 0.04836666667 | Q23: 0.05093333333 | R23: 0.032 | S23: 0.04476666667 | T23: 0.04778421053 | V23: 7 | W23: 2
A24: 0.03213333333 | B24: 0.03236666667 | C24: 0.05936666667 | D24: 0.06753333333 | E24: 0.04006666667 | F24: 0.03763333333 | G24: 0.04456666667 | H24: 0.03276666667 | I24: 0.03933333333 | J24: 0.03276666667 | K24: 0.03396666667 | L24: 0.03223333333 | M24: 0.0505 | N24: 0.05483333333 | O24: 0.07246666667 | P24: 0.0441 | Q24: 0.04876666667 | R24: 0.02926666667 | S24: 0.0402 | T24: 0.04341403509
A25: 0.02886666667 | B25: 0.02926666667 | C25: 0.0515 | D25: 0.05986666667 | E25: 0.0366 | F25: 0.0335 | G25: 0.0395 | H25: 0.02906666667 | I25: 0.03566666667 | J25: 0.0296 | K25: 0.0304 | L25: 0.02856666667 | M25: 0.04473333333 | N25: 0.04846666667 | O25: 0.0639 | P25: 0.03903333333 | Q25: 0.04433333333 | R25: 0.02623333333 | S25: 0.03576666667 | T25: 0.03867719298
A26: 3kW
A27: Abruzzo | B27: Basilicata | C27: Calabria | D27: Campania | E27: Emilia-Romagna | F27: Friuli-Venezia Giulia | G27: Lazio | H27: Liguria | I27: Lombardia | J27: Marche | K27: Molise | L27: Piemonte | M27: Puglia | N27: Sardegna | O27: Sicilia | P27: Toscana | Q27: Trentino-Alto Adige | R27: Umbria | S27: Valle-D'Aosta | T27: Veneto
A28: 0.1436666667 | B28: 0.1443 | C28: 0.1739333333 | D28: 0.2017666667 | E28: 0.1652 | F28: 0.1626 | G28: 0.1727333333 | H28: 0.1236666667 | I28: 0.1674666667 | J28: 0.1625 | K28: 0.1354333333 | L28: 0.1495666667 | M28: 0.1751333333 | N28: 0.1935666667 | O28: 0.2088666667 | P28: 0.1658 | Q28: 0.1162333333 | R28: 0.1668666667 | S28: 0.0775 | T28: 0.1790666667
A29: 0.1219666667 | B29: 0.1213666667 | C29: 0.1482 | D29: 0.1683333333 | E29: 0.1418333333 | F29: 0.1392666667 | G29: 0.1468 | H29: 0.1036 | I29: 0.1422666667 | J29: 0.1379666667 | K29: 0.1165333333 | L29: 0.1257 | M29: 0.1501333333 | N29: 0.1609666667 | O29: 0.1777 | P29: 0.1381333333 | Q29: 0.1011 | R29: 0.1409666667 | S29: 0.0732 | T29: 0.1537
A30: 0.1088333333 | B30: 0.1082 | C30: 0.1325666667 | D30: 0.1474 | E30: 0.1274666667 | F30: 0.1257333333 | G30: 0.1305666667 | H30: 0.09196666667 | I30: 0.1274666667 | J30: 0.1229666667 | K30: 0.1053 | L30: 0.1117 | M30: 0.1347 | N30: 0.1417 | O30: 0.1569 | P30: 0.1217666667 | Q30: 0.09273333333 | R30: 0.1255666667 | S30: 0.06833333333 | T30: 0.1384333333
A31: 0.1031 | B31: 0.1029333333 | C31: 0.1257666667 | D31: 0.1372666667 | E31: 0.1210666667 | F31: 0.1202 | G31: 0.1231666667 | H31: 0.08696666667 | I31: 0.1209333333 | J31: 0.1166 | K31: 0.1002666667 | L31: 0.1059333333 | M31: 0.1276666667 | N31: 0.1337666667 | O31: 0.1464 | P31: 0.1144666667 | Q31: 0.0896 | R31: 0.1191333333 | S31: 0.06653333333 | T31: 0.1313666667
A32: 0.1005333333 | B32: 0.1014666667 | C32: 0.1233 | D32: 0.1319666667 | E32: 0.1179666667 | F32: 0.1181666667 | G32: 0.1203333333 | H32: 0.08483333333 | I32: 0.1179 | J32: 0.1135666667 | K32: 0.09823333333 | L32: 0.104 | M32: 0.1246666667 | N32: 0.1319 | O32: 0.1413 | P32: 0.1108666667 | Q32: 0.0904 | R32: 0.1163333333 | S32: 0.06496666667 | T32: 0.1276666667
A33: 0.1035666667 | B33: 0.1065 | C33: 0.1300666667 | D33: 0.1343333333 | E33: 0.1206333333 | F33: 0.1239 | G33: 0.1248333333 | H33: 0.0877 | I33: 0.1214 | J33: 0.1167333333 | K33: 0.1012666667 | L33: 0.1084333333 | M33: 0.1290333333 | N33: 0.1406 | O33: 0.1457666667 | P33: 0.1137666667 | Q33: 0.1013 | R33: 0.1206 | S33: 0.07073333333 | T33: 0.1301
A34: 0.117 | B34: 0.1242666667 | C34: 0.1546333333 | D34: 0.1521333333 | E34: 0.134 | F34: 0.1442333333 | G34: 0.1394333333 | H34: 0.0985 | I34: 0.1362666667 | J34: 0.1325333333 | K34: 0.1156 | L34: 0.1235666667 | M34: 0.1471666667 | N34: 0.1703333333 | O34: 0.1673333333 | P34: 0.1277666667 | Q34: 0.1310333333 | R34: 0.1374333333 | S34: 0.08266666667 | T34: 0.1455333333
A35: 0.1427 | B35: 0.1579666667 | C35: 0.1952666667 | D35: 0.1903333333 | E35: 0.1570666667 | F35: 0.1739333333 | G35: 0.1675666667 | H35: 0.1187 | I35: 0.1637333333 | J35: 0.161 | K35: 0.1434333333 | L35: 0.1507 | M35: 0.1833 | N35: 0.2253 | O35: 0.2095666667 | P35: 0.1547666667 | Q35: 0.1624 | R35: 0.1674333333 | S35: 0.1018 | T35: 0.1733666667
A36: 0.1625333333 | B36: 0.1836333333 | C36: 0.2192333333 | D36: 0.2186 | E36: 0.1766333333 | F36: 0.1957666667 | G36: 0.1893333333 | H36: 0.1387333333 | I36: 0.1877333333 | J36: 0.1825 | K36: 0.1632 | L36: 0.1744333333 | M36: 0.2092666667 | N36: 0.2614666667 | O36: 0.2416666667 | P36: 0.1774666667 | Q36: 0.1805666667 | R36: 0.1914 | S36: 0.1025333333 | T36: 0.1965
A37: 0.1754333333 | B37: 0.1973 | C37: 0.2300333333 | D37: 0.2361666667 | E37: 0.192 | F37: 0.2098666667 | G37: 0.2046 | H37: 0.1530333333 | I37: 0.2056333333 | J37: 0.1979666667 | K37: 0.1740333333 | L37: 0.1910666667 | M37: 0.2219333333 | N37: 0.2728 | O37: 0.2589333333 | P37: 0.1952666667 | Q37: 0.1872666667 | R37: 0.2089666667 | S37: 0.1102 | T37: 0.2119333333
A38: 0.1792666667 | B38: 0.2016333333 | C38: 0.2315333333 | D38: 0.2422333333 | E38: 0.1987666667 | F38: 0.2114333333 | G38: 0.2089333333 | H38: 0.1572 | I38: 0.2130333333 | J38: 0.2047 | K38: 0.1768 | L38: 0.1956333333 | M38: 0.2252 | N38: 0.2694666667 | O38: 0.2625333333 | P38: 0.2034666667 | Q38: 0.1908333333 | R38: 0.2176333333 | S38: 0.1038333333 | T38: 0.2150333333
A39: 0.1832 | B39: 0.2084 | C39: 0.2376666667 | D39: 0.2482 | E39: 0.2083333333 | F39: 0.2165333333 | G39: 0.2137333333 | H39: 0.163 | I39: 0.2290666667 | J39: 0.2142666667 | K39: 0.1822666667 | L39: 0.2040666667 | M39: 0.2346 | N39: 0.2706333333 | O39: 0.266 | P39: 0.2134333333 | Q39: 0.2204666667 | R39: 0.2285666667 | S39: 0.109 | T39: 0.2229333333
A40: 0.1948333333 | B40: 0.2277333333 | C40: 0.2534333333 | D40: 0.267 | E40: 0.2206 | F40: 0.2239 | G40: 0.2280333333 | H40: 0.1733333333 | I40: 0.2400333333 | J40: 0.2275 | K40: 0.1960666667 | L40: 0.2133666667 | M40: 0.2605333333 | N40: 0.2884666667 | O40: 0.2824666667 | P40: 0.2285 | Q40: 0.2197333333 | R40: 0.2445 | S40: 0.0978 | T40: 0.2335333333
A41: 0.1942666667 | B41: 0.2253 | C41: 0.2558333333 | D41: 0.2779333333 | E41: 0.2205 | F41: 0.2236333333 | G41: 0.2300666667 | H41: 0.1722333333 | I41: 0.2333 | J41: 0.2230333333 | K41: 0.1954666667 | L41: 0.2079333333 | M41: 0.266 | N41: 0.2931 | O41: 0.2939666667 | P41: 0.2266333333 | Q41: 0.1984 | R41: 0.2344333333 | S41: 0.1149 | T41: 0.2322333333
A42: 0.1921 | B42: 0.2130333333 | C42: 0.2544333333 | D42: 0.2737333333 | E42: 0.2171333333 | F42: 0.2215333333 | G42: 0.2276333333 | H42: 0.1670666667 | I42: 0.2276 | J42: 0.2199 | K42: 0.1902333333 | L42: 0.2011666667 | M42: 0.2511333333 | N42: 0.2820333333 | O42: 0.2913333333 | P42: 0.2248 | Q42: 0.1852333333 | R42: 0.2304333333 | S42: 0.1130333333 | T42: 0.2287666667
A43: 0.1876666667 | B43: 0.2093333333 | C43: 0.2453 | D43: 0.2682333333 | E43: 0.2110666667 | F43: 0.2158666667 | G43: 0.2221 | H43: 0.1590666667 | I43: 0.2174333333 | J43: 0.2135 | K43: 0.1862 | L43: 0.1914666667 | M43: 0.2446333333 | N43: 0.2695 | O43: 0.2812666667 | P43: 0.2151333333 | Q43: 0.1808 | R43: 0.2233666667 | S43: 0.1094 | T43: 0.2213666667
A44: 0.1839 | B44: 0.2053333333 | C44: 0.2392 | D44: 0.2621 | E44: 0.2108 | F44: 0.2189333333 | G44: 0.2191666667 | H44: 0.1559 | I44: 0.2156333333 | J44: 0.2107666667 | K44: 0.183 | L44: 0.1889 | M44: 0.2421666667 | N44: 0.2668333333 | O44: 0.2747333333 | P44: 0.2083 | Q44: 0.1904666667 | R44: 0.219 | S44: 0.1123333333 | T44: 0.2225666667
A45: 0.1909333333 | B45: 0.2091666667 | C45: 0.2444666667 | D45: 0.267 | E45: 0.2235666667 | F45: 0.2356 | G45: 0.2297333333 | H45: 0.1648 | I45: 0.2303666667 | J45: 0.2206666667 | K45: 0.1874333333 | L45: 0.2021333333 | M45: 0.2471 | N45: 0.2782666667 | O45: 0.2802333333 | P45: 0.2175333333 | Q45: 0.221 | R45: 0.2301 | S45: 0.1374 | T45: 0.2378333333
A46: 0.2113 | B46: 0.2188666667 | C46: 0.2581666667 | D46: 0.2815666667 | E46: 0.2504333333 | F46: 0.2654 | G46: 0.2535333333 | H46: 0.1893 | I46: 0.2658 | J46: 0.2460333333 | K46: 0.1988333333 | L46: 0.2338333333 | M46: 0.2544333333 | N46: 0.2971333333 | O46: 0.2924333333 | P46: 0.2445666667 | Q46: 0.2515333333 | R46: 0.2587666667 | S46: 0.1830666667 | T46: 0.2679
A47: 0.2485 | B47: 0.2423666667 | C47: 0.2922666667 | D47: 0.3116666667 | E47: 0.2839333333 | F47: 0.2948333333 | G47: 0.2954333333 | H47: 0.2241666667 | I47: 0.3028333333 | J47: 0.2903333333 | K47: 0.2247333333 | L47: 0.2712333333 | M47: 0.2739 | N47: 0.3308333333 | O47: 0.3226333333 | P47: 0.2941333333 | Q47: 0.2601 | R47: 0.3025333333 | S47: 0.1499 | T47: 0.3033333333
A48: 0.2539666667 | B48: 0.2568 | C48: 0.3129 | D48: 0.3326666667 | E48: 0.2829333333 | F48: 0.293 | G48: 0.3004 | H48: 0.2246666667 | I48: 0.2979 | J48: 0.288 | K48: 0.2354666667 | L48: 0.2694333333 | M48: 0.2937333333 | N48: 0.3547 | O48: 0.345 | P48: 0.2970333333 | Q48: 0.2399 | R48: 0.2968333333 | S48: 0.1491333333 | T48: 0.3034333333
A49: 0.2362 | B49: 0.2421666667 | C49: 0.2911333333 | D49: 0.3195666667 | E49: 0.2643333333 | F49: 0.2738 | G49: 0.2804666667 | H49: 0.2092666667 | I49: 0.279 | J49: 0.2670666667 | K49: 0.2212333333 | L49: 0.253 | M49: 0.2781333333 | N49: 0.3327 | O49: 0.3274333333 | P49: 0.2779666667 | Q49: 0.2102333333 | R49: 0.2767666667 | S49: 0.1493666667 | T49: 0.2882
A50: 0.2072333333 | B50: 0.2135333333 | C50: 0.2539333333 | D50: 0.2881666667 | E50: 0.2324666667 | F50: 0.2366 | G50: 0.2474333333 | H50: 0.1819333333 | I50: 0.2430666667 | J50: 0.2342333333 | K50: 0.1941666667 | L50: 0.2201 | M50: 0.245 | N50: 0.2888 | O50: 0.2909333333 | P50: 0.2442333333 | Q50: 0.1758333333 | R50: 0.2424 | S50: 0.1350666667 | T50: 0.2546333333
A51: 0.1730666667 | B51: 0.1769 | C51: 0.2105666667 | D51: 0.2446666667 | E51: 0.1967 | F51: 0.1956333333 | G51: 0.2067666667 | H51: 0.1507333333 | I51: 0.2023 | J51: 0.1953 | K51: 0.1621666667 | L51: 0.1821333333 | M51: 0.2084 | N51: 0.2384 | O51: 0.2481 | P51: 0.2028333333 | Q51: 0.1414333333 | R51: 0.2019 | S51: 0.09256666667 | T51: 0.2141
A52: 4,5kW
A53: Abruzzo | B53: Basilicata | C53: Calabria | D53: Campania | E53: Emilia-Romagna | F53: Friuli-Venezia Giulia | G53: Lazio | H53: Liguria | I53: Lombardia | J53: Marche | K53: Molise | L53: Piemonte | M53: Puglia | N53: Sardegna | O53: Sicilia | P53: Toscana | Q53: Trentino-Alto Adige | R53: Umbria | S53: Valle-D'Aosta | T53: Veneto
A54: 0.2861666667 | B54: 0.2735 | C54: 0.3023 | D54: 0.3441333333 | E54: 0.3096666667 | F54: 0.2951333333 | G54: 0.3254666667 | H54: 0.2266333333 | I54: 0.2952666667 | J54: 0.3018333333 | K54: 0.2717666667 | L54: 0.2882333333 | M54: 0.3050333333 | N54: 0.3047 | O54: 0.3448666667 | P54: 0.2949666667 | Q54: 0.2154666667 | R54: 0.3286333333 | S54: 0.3225 | T54: 0.06046666667
A55: 0.2445 | B55: 0.2315 | C55: 0.2580666667 | D55: 0.2894666667 | E55: 0.2682 | F55: 0.2553 | G55: 0.2792666667 | H55: 0.191 | I55: 0.2525666667 | J55: 0.2580666667 | K55: 0.2329 | L55: 0.2453333333 | M55: 0.2641 | N55: 0.2500666667 | O55: 0.2950666667 | P55: 0.2481 | Q55: 0.1844666667 | R55: 0.2816666667 | S55: 0.2798333333 | T55: 0.052
A56: 0.2189666667 | B56: 0.2068333333 | C56: 0.2315333333 | D56: 0.2555 | E56: 0.2431333333 | F56: 0.2327333333 | G56: 0.2506666667 | H56: 0.1704 | I56: 0.2275333333 | J56: 0.2314 | K56: 0.2091 | L56: 0.2204 | M56: 0.2384 | N56: 0.2194 | O56: 0.2626333333 | P56: 0.2205666667 | Q56: 0.1694 | R56: 0.2533666667 | S56: 0.2543666667 | T56: 0.04606666667
A57: 0.2076666667 | B57: 0.1969666667 | C57: 0.2198 | D57: 0.239 | E57: 0.2321 | F57: 0.2237 | G57: 0.2377666667 | H57: 0.1616 | I57: 0.2166333333 | J57: 0.2200333333 | K57: 0.1979666667 | L57: 0.2103 | M57: 0.2269 | N57: 0.2067666667 | O57: 0.2464666667 | P57: 0.2081 | Q57: 0.1646666667 | R57: 0.2410666667 | S57: 0.243 | T57: 0.04393333333
A58: 0.2020333333 | B58: 0.1931333333 | C58: 0.2141 | D58: 0.2296666667 | E58: 0.2264333333 | F58: 0.2204666667 | G58: 0.2319 | H58: 0.1577 | I58: 0.2109666667 | J58: 0.2139 | K58: 0.1926333333 | L58: 0.2064666667 | M58: 0.2212666667 | N58: 0.2026666667 | O58: 0.2372 | P58: 0.2020333333 | Q58: 0.1694666667 | R58: 0.2359666667 | S58: 0.2369333333 | T58: 0.04243333333
A59: 0.2069333333 | B59: 0.2001333333 | C59: 0.2205 | D59: 0.2315666667 | E59: 0.2311333333 | F59: 0.2302 | G59: 0.2382666667 | H59: 0.1623 | I59: 0.2165 | J59: 0.2185666667 | K59: 0.1952333333 | L59: 0.2149 | M59: 0.226 | N59: 0.2138 | O59: 0.2403 | P59: 0.207 | Q59: 0.1942333333 | R59: 0.2446333333 | S59: 0.2412666667 | T59: 0.04263333333
A60: 0.2280333333 | B60: 0.2233666667 | C60: 0.2486333333 | D60: 0.2533333333 | E60: 0.2520666667 | F60: 0.2598666667 | G60: 0.2578333333 | H60: 0.1787666667 | I60: 0.2395333333 | J60: 0.2418666667 | K60: 0.2122333333 | L60: 0.2419666667 | M60: 0.2469666667 | N60: 0.2553666667 | O60: 0.2638 | P60: 0.2284 | Q60: 0.2511666667 | R60: 0.2724333333 | S60: 0.2644 | T60: 0.0452
A61: 0.2675333333 | B61: 0.2701333333 | C61: 0.2999666667 | D61: 0.3049333333 | E61: 0.2864333333 | F61: 0.2979666667 | G61: 0.2956 | H61: 0.2110333333 | I61: 0.2804333333 | J61: 0.2848 | K61: 0.2517 | L61: 0.2846666667 | M61: 0.2902333333 | N61: 0.3349 | O61: 0.3126666667 | P61: 0.2694333333 | Q61: 0.3048666667 | R61: 0.3165333333 | S61: 0.3027333333 | T61: 0.05256666667
A62: 0.2944333333 | B62: 0.3052 | C62: 0.3311 | D62: 0.3440666667 | E62: 0.3105 | F62: 0.3199 | G62: 0.3226333333 | H62: 0.2430666667 | I62: 0.3122 | J62: 0.3121333333 | K62: 0.2795 | L62: 0.3152666667 | M62: 0.32 | N62: 0.3803 | O62: 0.3514 | P62: 0.3021666667 | Q62: 0.3251333333 | R62: 0.3465 | S62: 0.3283 | T62: 0.0651
A63: 0.3148666667 | B63: 0.3284333333 | C63: 0.3506666667 | D63: 0.3751 | E63: 0.3305 | F63: 0.3335333333 | G63: 0.3458666667 | H63: 0.2674333333 | I63: 0.3389333333 | J63: 0.3333333333 | K63: 0.2981333333 | L63: 0.3392333333 | M63: 0.3385666667 | N63: 0.3954333333 | O63: 0.3779666667 | P63: 0.3296666667 | Q63: 0.3324333333 | R63: 0.3707666667 | S63: 0.3461 | T63: 0.07556666667
A64: 0.3194333333 | B64: 0.3363333333 | C64: 0.3533333333 | D64: 0.3855333333 | E64: 0.3364666667 | F64: 0.3296666667 | G64: 0.3517333333 | H64: 0.2723 | I64: 0.348 | J64: 0.3388 | K64: 0.3014 | L64: 0.3435333333 | M64: 0.3419333333 | N64: 0.3875666667 | O64: 0.3843333333 | P64: 0.3403666667 | Q64: 0.3321333333 | R64: 0.3798666667 | S64: 0.3453666667 | T64: 0.0797
A65: 0.3215 | B65: 0.3428666667 | C65: 0.358 | D65: 0.3905666667 | E65: 0.3485666667 | F65: 0.3324666667 | G65: 0.3564666667 | H65: 0.2778333333 | I65: 0.3705333333 | J65: 0.3483333333 | K65: 0.3068 | L65: 0.3540333333 | M65: 0.3464 | N65: 0.3837333333 | O65: 0.3867 | P65: 0.3512 | Q65: 0.3847333333 | R65: 0.3904666667 | S65: 0.3529 | T65: 0.08363333333
A66: 0.3432333333 | B66: 0.3752666667 | C66: 0.3831 | D66: 0.4140333333 | E66: 0.3750333333 | F66: 0.3499 | G66: 0.3802666667 | H66: 0.3011 | I66: 0.4023333333 | J66: 0.3782333333 | K66: 0.3338 | L66: 0.3781666667 | M66: 0.3765666667 | N66: 0.4119 | O66: 0.4085666667 | P66: 0.3797333333 | Q66: 0.4049666667 | R66: 0.4189333333 | S66: 0.3749333333 | T66: 0.0847
A67: 0.3472333333 | B67: 0.3915 | C67: 0.394 | D67: 0.4321666667 | E67: 0.3758333333 | F67: 0.3487 | G67: 0.3868333333 | H67: 0.3010666667 | I67: 0.388 | J67: 0.3754 | K67: 0.343 | L67: 0.3679666667 | M67: 0.3942 | N67: 0.4273666667 | O67: 0.4286333333 | P67: 0.3786666667 | Q67: 0.3610333333 | R67: 0.4050666667 | S67: 0.3716333333 | T67: 0.07986666667
A68: 0.3462 | B68: 0.3628 | C68: 0.3985666667 | D68: 0.4302333333 | E68: 0.3751666667 | F68: 0.3495 | G68: 0.3863333333 | H68: 0.2939333333 | I68: 0.3812666667 | J68: 0.3740666667 | K68: 0.3359333333 | L68: 0.3626333333 | M68: 0.3755333333 | N68: 0.4167333333 | O68: 0.4292666667 | P68: 0.3796666667 | Q68: 0.3380333333 | R68: 0.4066333333 | S68: 0.3723 | T68: 0.07766666667
A69: 0.3438333333 | B69: 0.3607333333 | C69: 0.3932 | D69: 0.4299666667 | E69: 0.3662666667 | F69: 0.3449333333 | G69: 0.3836333333 | H69: 0.2804666667 | I69: 0.3626333333 | J69: 0.3668333333 | K69: 0.3354333333 | L69: 0.3463 | M69: 0.3733666667 | N69: 0.4049 | O69: 0.4240333333 | P69: 0.3668666667 | Q69: 0.3216333333 | R69: 0.4035 | S69: 0.3620333333 | T69: 0.07493333333
A70: 0.3388 | B70: 0.3577 | C70: 0.3861 | D70: 0.4237666667 | E70: 0.3659 | F70: 0.3536666667 | G70: 0.3814333333 | H70: 0.2732 | I70: 0.3569333333 | J70: 0.363 | K70: 0.3304333333 | L70: 0.3409666667 | M70: 0.3756 | N70: 0.4034333333 | O70: 0.4204666667 | P70: 0.3548666667 | Q70: 0.3414 | R70: 0.3972666667 | S70: 0.3648 | T70: 0.07526666667
A71: 0.3532333333 | B71: 0.3663333333 | C71: 0.3956333333 | D71: 0.4340666667 | E71: 0.3906333333 | F71: 0.3867333333 | G71: 0.4039 | H71: 0.2876666667 | I71: 0.3824666667 | J71: 0.3819333333 | K71: 0.3393666667 | L71: 0.3663333333 | M71: 0.3904666667 | N71: 0.4267666667 | O71: 0.4350666667 | P71: 0.3699333333 | Q71: 0.4037666667 | R71: 0.4194 | S71: 0.3945 | T71: 0.07986666667
A72: 0.3933 | B72: 0.3847666667 | C72: 0.4176 | D72: 0.4592666667 | E72: 0.4438 | F72: 0.4483333333 | G72: 0.4492 | H72: 0.3310666667 | I72: 0.4491333333 | J72: 0.4288 | K72: 0.3625 | L72: 0.4269333333 | M72: 0.4117 | N72: 0.4654 | O72: 0.4596666667 | P72: 0.4150333333 | Q72: 0.4746 | R72: 0.4718 | S72: 0.4547666667 | T72: 0.0889
A73: 0.4689333333 | B73: 0.4274333333 | C73: 0.4749333333 | D73: 0.5080333333 | E73: 0.5149 | F73: 0.5139 | G73: 0.5274666667 | H73: 0.3998 | I73: 0.5319333333 | J73: 0.5128666667 | K73: 0.4142 | L73: 0.5074333333 | M73: 0.4509666667 | N73: 0.5301333333 | O73: 0.5093333333 | P73: 0.5017 | Q73: 0.4890666667 | R73: 0.5592 | S73: 0.5292666667 | T73: 0.0994
A74: 0.4861666667 | B74: 0.4626 | C74: 0.5194666667 | D74: 0.5462333333 | E74: 0.5147666667 | F74: 0.5104666667 | G74: 0.5426 | H74: 0.4001333333 | I74: 0.5201 | J74: 0.5149 | K74: 0.4457 | L74: 0.5034333333 | M74: 0.4865666667 | N74: 0.5752 | O74: 0.5503666667 | P74: 0.5077 | Q74: 0.4370333333 | R74: 0.5531666667 | S74: 0.5276666667 | T74: 0.0997
A75: 0.456 | B75: 0.4386 | C75: 0.4876333333 | D75: 0.5297666667 | E75: 0.4852333333 | F75: 0.4805 | G75: 0.5102666667 | H75: 0.3733 | I75: 0.4887666667 | J75: 0.4815 | K75: 0.4251666667 | L75: 0.4780333333 | M75: 0.4617666667 | N75: 0.5393 | O75: 0.5250666667 | P75: 0.4785666667 | Q75: 0.3792 | R75: 0.5223 | S75: 0.5048333333 | T75: 0.09503333333
A76: 0.4050333333 | B76: 0.3911666667 | C76: 0.4326666667 | D76: 0.4816666667 | E76: 0.4284 | F76: 0.4184333333 | G76: 0.4557333333 | H76: 0.3272666667 | I76: 0.4248 | J76: 0.4270333333 | K76: 0.3805 | L76: 0.4169333333 | M76: 0.4116 | N76: 0.4683333333 | O76: 0.4724 | P76: 0.4258666667 | Q76: 0.3193333333 | R76: 0.4644 | S76: 0.4485 | T76: 0.084
A77: 0.3415333333 | B77: 0.3301333333 | C77: 0.3634666667 | D77: 0.4127 | E77: 0.3644 | F77: 0.3495333333 | G77: 0.3852666667 | H77: 0.2735 | I77: 0.3538333333 | J77: 0.3595333333 | K77: 0.3227333333 | L77: 0.3462333333 | M77: 0.3565333333 | N77: 0.3821 | O77: 0.4070666667 | P77: 0.3573 | Q77: 0.2591333333 | R77: 0.3918 | S77: 0.3803333333 | T77: 0.07026666667
A78: 6kW
A79: Abruzzo | B79: Basilicata | C79: Calabria | D79: Campania | E79: Emilia-Romagna | F79: Friuli-Venezia Giulia | G79: Lazio | H79: Liguria | I79: Lombardia | J79: Marche | K79: Molise | L79: Piemonte | M79: Puglia | N79: Sardegna | O79: Sicilia | P79: Toscana | Q79: Trentino-Alto Adige | R79: Umbria | S79: Valle-D'Aosta | T79: Veneto
A80: 0.3415666667 | B80: 0.3404333333 | C80: 0.3711666667 | D80: 0.4190333333 | E80: 0.4100333333 | F80: 0.3559333333 | G80: 0.4041333333 | H80: 0.2908 | I80: 0.3998333333 | J80: 0.393 | K80: 0.3532666667 | L80: 0.371 | M80: 0.3802666667 | N80: 0.3749 | O80: 0.4237333333 | P80: 0.3721666667 | Q80: 0.3038333333 | R80: 0.4122666667 | S80: 0.4098 | T80: 0.06046666667
A81: 0.2995666667 | B81: 0.2977666667 | C81: 0.3233333333 | D81: 0.3600333333 | E81: 0.3656333333 | F81: 0.3172333333 | G81: 0.3556666667 | H81: 0.2533 | I81: 0.3543666667 | J81: 0.3472666667 | K81: 0.3132333333 | L81: 0.3274666667 | M81: 0.3381 | N81: 0.3147 | O81: 0.3687333333 | P81: 0.3223666667 | Q81: 0.2729333333 | R81: 0.3639666667 | S81: 0.3668333333 | T81: 0.052
A82: 0.2734 | B82: 0.2728666667 | C82: 0.2936666667 | D82: 0.3227666667 | E82: 0.3383 | F82: 0.2954 | G82: 0.3254 | H82: 0.2308666667 | I82: 0.3273 | J82: 0.3185 | K82: 0.2863666667 | L82: 0.3021333333 | M82: 0.3121 | N82: 0.2807666667 | O82: 0.3330666667 | P82: 0.2932333333 | Q82: 0.2580333333 | R82: 0.3354 | S82: 0.3416 | T82: 0.04606666667
A83: 0.2625333333 | B83: 0.2630333333 | C83: 0.2812666667 | D83: 0.3046 | E83: 0.3268333333 | F83: 0.2878 | G83: 0.3118333333 | H83: 0.2216 | I83: 0.3159666667 | J83: 0.3063 | K83: 0.2746666667 | L83: 0.292 | M83: 0.3004 | N83: 0.2669333333 | O83: 0.3157 | P83: 0.2801333333 | Q83: 0.2524 | R83: 0.3244666667 | S83: 0.3318666667 | T83: 0.04393333333
A84: 0.2579333333 | B84: 0.2598 | C84: 0.2755 | D84: 0.2945333333 | E84: 0.3220666667 | F84: 0.2864 | G84: 0.3065333333 | H84: 0.2177 | I84: 0.3101333333 | J84: 0.2998333333 | K84: 0.2681 | L84: 0.2892333333 | M84: 0.2951333333 | N84: 0.2627666667 | O84: 0.3063666667 | P84: 0.2741 | Q84: 0.2586333333 | R84: 0.3193333333 | S84: 0.3279666667 | T84: 0.04243333333
A85: 0.2653666667 | B85: 0.2695 | C85: 0.2831333333 | D85: 0.2972666667 | E85: 0.3300333333 | F85: 0.3010666667 | G85: 0.3146333333 | H85: 0.2232333333 | I85: 0.3187333333 | J85: 0.3056 | K85: 0.2726333333 | L85: 0.3024333333 | M85: 0.3022 | N85: 0.2768666667 | O85: 0.3102333333 | P85: 0.2819666667 | Q85: 0.2877333333 | R85: 0.3308 | S85: 0.3371 | T85: 0.04263333333
A86: 0.2889 | B86: 0.2997 | C86: 0.3119 | D86: 0.3195333333 | E86: 0.3547333333 | F86: 0.3375666667 | G86: 0.3362666667 | H86: 0.2419 | I86: 0.3461333333 | J86: 0.3300666667 | K86: 0.2934666667 | L86: 0.3361666667 | M86: 0.3242333333 | N86: 0.3247333333 | O86: 0.335 | P86: 0.3067333333 | Q86: 0.358 | R86: 0.3623666667 | S86: 0.3655666667 | T86: 0.0452
A87: 0.3256 | B87: 0.3451666667 | C87: 0.3566 | D87: 0.3707 | E87: 0.3845333333 | F87: 0.3705666667 | G87: 0.3719333333 | H87: 0.2759666667 | I87: 0.3871666667 | J87: 0.3685666667 | K87: 0.3338333333 | L87: 0.3783333333 | M87: 0.363 | N87: 0.4075333333 | O87: 0.3825333333 | P87: 0.3485333333 | Q87: 0.4402 | R87: 0.4074666667 | S87: 0.3996666667 | T87: 0.05256666667
A88: 0.3434 | B88: 0.3665 | C88: 0.3812333333 | D88: 0.4102 | E88: 0.3972666667 | F88: 0.377 | G88: 0.3920666667 | H88: 0.3092 | I88: 0.4121666667 | J88: 0.3913 | K88: 0.3583666667 | L88: 0.4012666667 | M88: 0.387 | N88: 0.4492 | O88: 0.4221 | P88: 0.3792666667 | Q88: 0.4764666667 | R88: 0.4330333333 | S88: 0.4100666667 | T88: 0.0651
A89: 0.3547333333 | B89: 0.3811333333 | C89: 0.3970666667 | D89: 0.4424 | E89: 0.4053666667 | F89: 0.3759666667 | G89: 0.4114333333 | H89: 0.3329666667 | I89: 0.4270333333 | J89: 0.4043333333 | K89: 0.3742333333 | L89: 0.4120666667 | M89: 0.4004666667 | N89: 0.4602333333 | O89: 0.4501333333 | P89: 0.4031333333 | Q89: 0.4723666667 | R89: 0.4477 | S89: 0.4096666667 | T89: 0.07556666667
A90: 0.3524 | B90: 0.3856666667 | C90: 0.3986333333 | D90: 0.4527333333 | E90: 0.4011666667 | F90: 0.3600666667 | G90: 0.4133333333 | H90: 0.3344666667 | I90: 0.4243666667 | J90: 0.4026333333 | K90: 0.3747666667 | L90: 0.4049666667 | M90: 0.3985 | N90: 0.4478 | O90: 0.4542 | P90: 0.4089 | Q90: 0.4560666667 | R90: 0.4462666667 | S90: 0.3926333333 | T90: 0.0797
A91: 0.3499333333 | B91: 0.3869 | C91: 0.4018666667 | D91: 0.4553 | E91: 0.406 | F91: 0.3542 | G91: 0.4148333333 | H91: 0.3346666667 | I91: 0.4362 | J91: 0.4059 | K91: 0.3755 | L91: 0.4065666667 | M91: 0.3970666667 | N91: 0.4387666667 | O91: 0.4524666667 | P91: 0.4143666667 | Q91: 0.5021666667 | R91: 0.4477666667 | S91: 0.3886333333 | T91: 0.08363333333
A92: 0.3687 | B92: 0.41 | C92: 0.4221 | D92: 0.4744666667 | E92: 0.4309333333 | F92: 0.3683 | G92: 0.4349333333 | H92: 0.3541666667 | I92: 0.4633666667 | J92: 0.4336333333 | K92: 0.3966666667 | L92: 0.4252 | M92: 0.4183666667 | N92: 0.4636333333 | O92: 0.4683 | P92: 0.4382 | Q92: 0.5077666667 | R92: 0.4677666667 | S92: 0.406 | T92: 0.0847
A93: 0.3708 | B93: 0.4141 | C93: 0.4296333333 | D93: 0.4894666667 | E93: 0.4300666667 | F93: 0.3651 | G93: 0.4393 | H93: 0.3529333333 | I93: 0.4454 | J93: 0.4276666667 | K93: 0.3976333333 | L93: 0.4109333333 | M93: 0.43 | N93: 0.4796333333 | O93: 0.4832666667 | P93: 0.4343333333 | Q93: 0.4508 | R93: 0.4499666667 | S93: 0.3972333333 | T93: 0.07986666667
A94: 0.3704333333 | B94: 0.3911 | C94: 0.4361 | D94: 0.4856666667 | E94: 0.4294 | F94: 0.3663666667 | G94: 0.4371 | H94: 0.3447666667 | I94: 0.4398666667 | J94: 0.4248 | K94: 0.3879333333 | L94: 0.4051666667 | M94: 0.4142333333 | N94: 0.4698333333 | O94: 0.4829666667 | P94: 0.4341666667 | Q94: 0.4332333333 | R94: 0.451 | S94: 0.3980333333 | T94: 0.07766666667
A95: 0.3750666667 | B95: 0.4010333333 | C95: 0.4400666667 | D95: 0.4898666667 | E95: 0.4268666667 | F95: 0.3699 | G95: 0.439 | H95: 0.3345333333 | I95: 0.4288333333 | J95: 0.4258333333 | K95: 0.3966666667 | L95: 0.3960666667 | M95: 0.4189666667 | N95: 0.4645666667 | O95: 0.4845666667 | P95: 0.4267333333 | Q95: 0.4366333333 | R95: 0.457 | S95: 0.3982666667 | T95: 0.07493333333
A96: 0.3798666667 | B96: 0.4114666667 | C96: 0.4446333333 | D96: 0.4924 | E96: 0.4376333333 | F96: 0.3913333333 | G96: 0.4454666667 | H96: 0.3318 | I96: 0.4353 | J96: 0.4337333333 | K96: 0.4048666667 | L96: 0.403 | M96: 0.4344333333 | N96: 0.4719333333 | O96: 0.4915333333 | P96: 0.4225666667 | Q96: 0.4859333333 | R96: 0.4649 | S96: 0.4172333333 | T96: 0.07526666667
A97: 0.4053333333 | B97: 0.4327666667 | C97: 0.4656333333 | D97: 0.5138 | E97: 0.4756666667 | F97: 0.4369333333 | G97: 0.4791333333 | H97: 0.3531 | I97: 0.4755666667 | J97: 0.4654333333 | K97: 0.4262666667 | L97: 0.4408 | M97: 0.4643333333 | N97: 0.5072333333 | O97: 0.5184333333 | P97: 0.4472333333 | Q97: 0.5791 | R97: 0.499 | S97: 0.464 | T97: 0.07986666667
A98: 0.4530333333 | B98: 0.4642666667 | C98: 0.4981 | D98: 0.549 | E98: 0.5415666667 | F98: 0.5087 | G98: 0.5341333333 | H98: 0.4006 | I98: 0.5556333333 | J98: 0.5228666667 | K98: 0.4617333333 | L98: 0.5108666667 | M98: 0.5001333333 | N98: 0.5597333333 | O98: 0.5534666667 | P98: 0.5003 | Q98: 0.6367333333 | R98: 0.5619666667 | S98: 0.5418666667 | T98: 0.0889
A99: 0.5302 | B99: 0.5154666667 | C99: 0.5616 | D99: 0.6047666667 | E99: 0.6268333333 | F99: 0.5830666667 | G99: 0.6195333333 | H99: 0.4700333333 | I99: 0.6508 | J99: 0.6133666667 | K99: 0.5220333333 | L99: 0.5969666667 | M99: 0.5470666667 | N99: 0.6368666667 | O99: 0.6097666667 | P99: 0.5903333333 | Q99: 0.6303 | R99: 0.6534333333 | S99: 0.6317333333 | T99: 0.0994
A100: 0.5464333333 | B100: 0.5484 | C100: 0.6063 | D100: 0.6452666667 | E100: 0.6310333333 | F100: 0.5773333333 | G100: 0.6380666667 | H100: 0.4715 | I100: 0.6386 | J100: 0.6195333333 | K100: 0.5514333333 | L100: 0.5927 | M100: 0.5817333333 | N100: 0.6865333333 | O100: 0.6534 | P100: 0.5975666667 | Q100: 0.5726333333 | R100: 0.6471333333 | S100: 0.6280666667 | T100: 0.0997
A101: 0.5145 | B101: 0.5186666667 | C101: 0.5704 | D101: 0.6255 | E101: 0.5975333333 | F101: 0.5416 | G101: 0.6004333333 | H101: 0.4425666667 | I101: 0.6043333333 | J101: 0.5785333333 | K101: 0.5255333333 | L101: 0.5629 | M101: 0.5495666667 | N101: 0.6440666667 | O101: 0.6231666667 | P101: 0.5654666667 | Q101: 0.5016333333 | R101: 0.6119 | S101: 0.5975333333 | T101: 0.09503333333
A102: 0.4615666667 | B102: 0.4682333333 | C102: 0.5098 | D102: 0.5708 | E102: 0.5362 | F102: 0.4758333333 | G102: 0.5405666667 | H102: 0.395 | I102: 0.5360666667 | J102: 0.5211333333 | K102: 0.4728666667 | L102: 0.5004666667 | M102: 0.4933333333 | N102: 0.5601666667 | O102: 0.5638666667 | P102: 0.5097 | Q102: 0.4267 | R102: 0.5509666667 | S102: 0.5361666667 | T102: 0.084
A103: 0.3968 | B103: 0.4023 | C103: 0.4358 | D103: 0.4937333333 | E103: 0.4681333333 | F103: 0.4072333333 | G103: 0.4657333333 | H103: 0.3384 | I103: 0.4610666667 | J103: 0.4516333333 | K103: 0.4084 | L103: 0.4294666667 | M103: 0.434 | N103: 0.4612 | O103: 0.4921 | P103: 0.4377666667 | Q103: 0.3565333333 | R103: 0.4768666667 | S103: 0.4667666667 | T103: 0.07026666667

Sheet 1,5kW (hidden)
A1: Ora | B1: Abruzzo | C1: Basilicata | D1: Calabria | E1: Campania | F1: Emilia-Romagna | G1: Friuli-Venezia Giulia | H1: Lazio | I1: Liguria | J1: Lombardia | K1: Marche | L1: Molise | M1: Piemonte | N1: Puglia | O1: Sardegna | P1: Sicilia | Q1: Toscana | R1: Trentino-Alto Adige | S1: Umbria | T1: Valle-D'Aosta | U1: Veneto
A2: 00:00:00 | B2: 0.02586666667 | C2: 0.0266 | D2: 0.04566666667 | E2: 0.05323333333 | F2: 0.0336 | G2: 0.03053333333 | H2: 0.0356 | I2: 0.0259 | J2: 0.03266666667 | K2: 0.027 | L2: 0.0279 | M2: 0.02543333333 | N2: 0.0397 | O2: 0.04316666667 | P2: 0.0572 | Q2: 0.0346 | R2: 0.0429 | S2: 0.02363333333 | T2: 0.03206666667 | U2: 0.03490877193
A3: 01:00:00 | B3: 0.02323333333 | C3: 0.02466666667 | D3: 0.04133333333 | E3: 0.04793333333 | F3: 0.03103333333 | G3: 0.0274 | H3: 0.0323 | I3: 0.0231 | J3: 0.0303 | K3: 0.02496666667 | L3: 0.0258 | M3: 0.02286666667 | N3: 0.03596666667 | O3: 0.0389 | P3: 0.05143333333 | Q3: 0.031 | R3: 0.04076666667 | S3: 0.02136666667 | T3: 0.0283 | U3: 0.03171929825
A4: 02:00:00 | B4: 0.0215 | C4: 0.02346666667 | D4: 0.0385 | E4: 0.0444 | F4: 0.02926666667 | G4: 0.025 | H4: 0.0303 | I4: 0.02143333333 | J4: 0.02876666667 | K4: 0.02373333333 | L4: 0.0245 | M4: 0.02143333333 | N4: 0.0336 | O4: 0.03616666667 | P4: 0.04713333333 | Q4: 0.02883333333 | R4: 0.0399 | S4: 0.02023333333 | T4: 0.02593333333 | U4: 0.02968947368
A5: 03:00:00 | B5: 0.02093333333 | C5: 0.02303333333 | D5: 0.03736666667 | E5: 0.04276666667 | F5: 0.02863333333 | G5: 0.0235 | H5: 0.0295 | I5: 0.02063333333 | J5: 0.0283 | K5: 0.02326666667 | L5: 0.0238 | M5: 0.02086666667 | N5: 0.0325 | O5: 0.03503333333 | P5: 0.0452 | Q5: 0.0278 | R5: 0.039 | S5: 0.0197 | T5: 0.02486666667 | U5: 0.02877368421
A6: 04:00:00 | B6: 0.02076666667 | C6: 0.0231 | D6: 0.03756666667 | E6: 0.04253333333 | F6: 0.0282 | G6: 0.02266666667 | H6: 0.02973333333 | I6: 0.02023333333 | J6: 0.02813333333 | K6: 0.02286666667 | L6: 0.02363333333 | M6: 0.02073333333 | N6: 0.0325 | O6: 0.0352 | P6: 0.04476666667 | Q6: 0.02733333333 | R6: 0.04083333333 | S6: 0.01963333333 | T6: 0.0243 | U6: 0.02867017544
A7: 05:00:00 | B7: 0.02153333333 | C7: 0.02403333333 | D7: 0.04023333333 | E7: 0.04396666667 | F7: 0.02816666667 | G7: 0.0228 | H7: 0.03103333333 | I7: 0.02066666667 | J7: 0.02843333333 | K7: 0.023 | L7: 0.02426666667 | M7: 0.0216 | N7: 0.03393333333 | O7: 0.0369 | P7: 0.04753333333 | Q7: 0.02776666667 | R7: 0.04176666667 | S7: 0.02006666667 | T7: 0.02413333333 | U7: 0.02957017544
A8: 06:00:00 | B8: 0.0233 | C8: 0.02623333333 | D8: 0.04696666667 | E8: 0.04816666667 | F8: 0.0285 | G8: 0.0246 | H8: 0.0338 | I8: 0.0223 | J8: 0.02866666667 | K8: 0.024 | L8: 0.02616666667 | M8: 0.02363333333 | N8: 0.0377 | O8: 0.0419 | P8: 0.0535 | Q8: 0.03006666667 | R8: 0.0464 | S8: 0.02173333333 | T8: 0.02513333333 | U8: 0.03225087719
A9: 07:00:00 | B9: 0.0267 | C9: 0.0299 | D9: 0.05566666667 | E9: 0.0548 | F9: 0.02943333333 | G9: 0.02803333333 | H9: 0.03803333333 | I9: 0.02493333333 | J9: 0.02963333333 | K9: 0.0261 | L9: 0.02983333333 | M9: 0.0259 | N9: 0.04433333333 | O9: 0.05066666667 | P9: 0.06333333333 | Q9: 0.0337 | R9: 0.04943333333 | S9: 0.02416666667 | T9: 0.02813333333 | U9: 0.03645964912
A10: 08:00:00 | B10: 0.0294 | C10: 0.03336666667 | D10: 0.06043333333 | E10: 0.05923333333 | F10: 0.0308 | G10: 0.03163333333 | H10: 0.0411 | I10: 0.0281 | J10: 0.03123333333 | K10: 0.0287 | L10: 0.0328 | M10: 0.02833333333 | N10: 0.04853333333 | O10: 0.05616666667 | P10: 0.07023333333 | Q10: 0.03706666667 | R10: 0.0467 | S10: 0.0262 | T10: 0.03233333333 | U10: 0.03959824561
A11: 09:00:00 | B11: 0.031 | C11: 0.0345 | D11: 0.0613 | E11: 0.061 | F11: 0.0324 | G11: 0.0346 | H11: 0.0429 | I11: 0.03003333333 | J11: 0.0329 | K11: 0.0303 | L11: 0.03403333333 | M11: 0.0297 | N11: 0.0497 | O11: 0.0566 | P11: 0.07303333333 | Q11: 0.0395 | R11: 0.04906666667 | S11: 0.0282 | T11: 0.03516666667 | U11: 0.04136491228
A12: 10:00:00 | B12: 0.03113333333 | C12: 0.03436666667 | D12: 0.0601 | E12: 0.06123333333 | F12: 0.03306666667 | G12: 0.03383333333 | H12: 0.043 | I12: 0.02986666667 | J12: 0.03346666667 | K12: 0.03076666667 | L12: 0.0339 | M12: 0.0298 | N12: 0.04956666667 | O12: 0.05526666667 | P12: 0.07286666667 | Q12: 0.0404 | R12: 0.0517 | S12: 0.02933333333 | T12: 0.03456666667 | U12: 0.04148596491
A13: 11:00:00 | B13: 0.03093333333 | C13: 0.03413333333 | D13: 0.05956666667 | E13: 0.0612 | F13: 0.03326666667 | G13: 0.0326 | H13: 0.0432 | I13: 0.02976666667 | J13: 0.0342 | K13: 0.0309 | L13: 0.03373333333 | M13: 0.0299 | N13: 0.0503 | O13: 0.05466666667 | P13: 0.07273333333 | Q13: 0.0407 | R13: 0.04923333333 | S13: 0.0297 | T13: 0.03333333333 | U13: 0.04126666667
A14: 12:00:00 | B14: 0.03136666667 | C14: 0.03446666667 | D14: 0.06096666667 | E14: 0.06256666667 | F14: 0.034 | G14: 0.03373333333 | H14: 0.0441 | I14: 0.0306 | J14: 0.03436666667 | K14: 0.03106666667 | L14: 0.03496666667 | M14: 0.03043333333 | N14: 0.0524 | O14: 0.05543333333 | P14: 0.0744 | Q14: 0.04163333333 | R14: 0.05116666667 | S14: 0.0294 | T14: 0.0348 | U14: 0.04220350877
A15: 13:00:00 | B15: 0.0315 | C15: 0.03353333333 | D15: 0.06213333333 | E15: 0.06336666667 | F15: 0.03423333333 | G15: 0.03613333333 | H15: 0.0439 | I15: 0.03096666667 | J15: 0.03383333333 | K15: 0.03033333333 | L15: 0.03533333333 | M15: 0.0299 | N15: 0.05293333333 | O15: 0.0555 | P15: 0.0755 | Q15: 0.04103333333 | R15: 0.04783333333 | S15: 0.0277 | T15: 0.03666666667 | U15: 0.04222807018
A16: 14:00:00 | B16: 0.03093333333 | C16: 0.03306666667 | D16: 0.06116666667 | E16: 0.0622 | F16: 0.03343333333 | G16: 0.03573333333 | H16: 0.04266666667 | I16: 0.03003333333 | J16: 0.0331 | K16: 0.0298 | L16: 0.03416666667 | M16: 0.029 | N16: 0.0515 | O16: 0.0543 | P16: 0.07426666667 | Q16: 0.03983333333 | R16: 0.05106666667 | S16: 0.02666666667 | T16: 0.03606666667 | U16: 0.04152631579
A17: 15:00:00 | B17: 0.03023333333 | C17: 0.03266666667 | D17: 0.0597 | E17: 0.06083333333 | F17: 0.03323333333 | G17: 0.0346 | H17: 0.04186666667 | I17: 0.02936666667 | J17: 0.0328 | K17: 0.03003333333 | L17: 0.0333 | M17: 0.0285 | N17: 0.05046666667 | O17: 0.05343333333 | P17: 0.07246666667 | Q17: 0.03936666667 | R17: 0.0502 | S17: 0.02646666667 | T17: 0.03476666667 | U17: 0.04075263158
A18: 16:00:00 | B18: 0.03063333333 | C18: 0.03366666667 | D18: 0.0608 | E18: 0.0617 | F18: 0.0341 | G18: 0.0345 | H18: 0.04276666667 | I18: 0.0297 | J18: 0.0335 | K18: 0.0313 | L18: 0.0341 | M18: 0.0289 | N18: 0.05176666667 | O18: 0.0543 | P18: 0.0731 | Q18: 0.04016666667 | R18: 0.05553333333 | S18: 0.02753333333 | T18: 0.0351 | U18: 0.04174561404
A19: 17:00:00 | B19: 0.03246666667 | C19: 0.03536666667 | D19: 0.06396666667 | E19: 0.06633333333 | F19: 0.03673333333 | G19: 0.0358 | H19: 0.04566666667 | I19: 0.03163333333 | J19: 0.03643333333 | K19: 0.03373333333 | L19: 0.0357 | M19: 0.03123333333 | N19: 0.0542 | O19: 0.05676666667 | P19: 0.07613333333 | Q19: 0.0428 | R19: 0.05903333333 | S19: 0.03026666667 | T19: 0.03726666667 | U19: 0.04429122807
A20: 18:00:00 | B20: 0.03416666667 | C20: 0.03666666667 | D20: 0.06633333333 | E20: 0.0706 | F20: 0.03983333333 | G20: 0.03826666667 | H20: 0.0489 | I20: 0.03433333333 | J20: 0.03973333333 | K20: 0.0359 | L20: 0.03683333333 | M20: 0.03406666667 | N20: 0.05623333333 | O20: 0.05913333333 | P20: 0.07816666667 | Q20: 0.04623333333 | R20: 0.05866666667 | S20: 0.03293333333 | T20: 0.04096666667 | U20: 0.04673508772
A21: 19:00:00 | B21: 0.03656666667 | C21: 0.03773333333 | D21: 0.06953333333 | E21: 0.0747 | F21: 0.04356666667 | G21: 0.0436 | H21: 0.05203333333 | I21: 0.03773333333 | J21: 0.04216666667 | K21: 0.03783333333 | L21: 0.0386 | M21: 0.03653333333 | N21: 0.05823333333 | O21: 0.06156666667 | P21: 0.08123333333 | Q21: 0.05023333333 | R21: 0.0554 | S21: 0.03413333333 | T21: 0.0466 | U21: 0.04936842105
A22: 20:00:00 | B22: 0.0378 | C22: 0.03773333333 | D22: 0.07233333333 | E22: 0.07733333333 | F22: 0.045 | G22: 0.04523333333 | H22: 0.05253333333 | I22: 0.0383 | J22: 0.0427 | K22: 0.03776666667 | L22: 0.03993333333 | M22: 0.0367 | N22: 0.05933333333 | O22: 0.06293333333 | P22: 0.08346666667 | Q22: 0.05096666667 | R22: 0.05223333333 | S22: 0.03346666667 | T22: 0.04783333333 | U22: 0.05018947368
A23: 21:00:00 | B23: 0.0358 | C23: 0.0356 | D23: 0.06753333333 | E23: 0.07436666667 | F23: 0.0433 | G23: 0.04196666667 | H23: 0.04946666667 | I23: 0.03606666667 | J23: 0.04223333333 | K23: 0.03596666667 | L23: 0.038 | M23: 0.03526666667 | N23: 0.056 | O23: 0.06036666667 | P23: 0.0799 | Q23: 0.04836666667 | R23: 0.05093333333 | S23: 0.032 | T23: 0.04476666667 | U23: 0.04778421053
A24: 22:00:00 | B24: 0.03213333333 | C24: 0.03236666667 | D24: 0.05936666667 | E24: 0.06753333333 | F24: 0.04006666667 | G24: 0.03763333333 | H24: 0.04456666667 | I24: 0.03276666667 | J24: 0.03933333333 | K24: 0.03276666667 | L24: 0.03396666667 | M24: 0.03223333333 | N24: 0.0505 | O24: 0.05483333333 | P24: 0.07246666667 | Q24: 0.0441 | R24: 0.04876666667 | S24: 0.02926666667 | T24: 0.0402 | U24: 0.04341403509
A25: 23:00:00 | B25: 0.02886666667 | C25: 0.02926666667 | D25: 0.0515 | E25: 0.05986666667 | F25: 0.0366 | G25: 0.0335 | H25: 0.0395 | I25: 0.02906666667 | J25: 0.03566666667 | K25: 0.0296 | L25: 0.0304 | M25: 0.02856666667 | N25: 0.04473333333 | O25: 0.04846666667 | P25: 0.0639 | Q25: 0.03903333333 | R25: 0.04433333333 | S25: 0.02623333333 | T25: 0.03576666667 | U25: 0.03867719298

Sheet 3kW (hidden)
A1: Ora | B1: Abruzzo | C1: Basilicata | D1: Calabria | E1: Campania | F1: Emilia-Romagna | G1: Friuli-Venezia Giulia | H1: Lazio | I1: Liguria | J1: Lombardia | K1: Marche | L1: Molise | M1: Piemonte | N1: Puglia | O1: Sardegna | P1: Sicilia | Q1: Toscana | R1: Trentino-Alto Adige | S1: Umbria | T1: Valle-D'Aosta | U1: Veneto
A2: 00:00:00 | B2: 0.1436666667 | C2: 0.1443 | D2: 0.1739333333 | E2: 0.2017666667 | F2: 0.1652 | G2: 0.1626 | H2: 0.1727333333 | I2: 0.1236666667 | J2: 0.1674666667 | K2: 0.1625 | L2: 0.1354333333 | M2: 0.1495666667 | N2: 0.1751333333 | O2: 0.1935666667 | P2: 0.2088666667 | Q2: 0.1658 | R2: 0.1162333333 | S2: 0.1668666667 | T2: 0.0775 | U2: 0.1790666667
A3: 01:00:00 | B3: 0.1219666667 | C3: 0.1213666667 | D3: 0.1482 | E3: 0.1683333333 | F3: 0.1418333333 | G3: 0.1392666667 | H3: 0.1468 | I3: 0.1036 | J3: 0.1422666667 | K3: 0.1379666667 | L3: 0.1165333333 | M3: 0.1257 | N3: 0.1501333333 | O3: 0.1609666667 | P3: 0.1777 | Q3: 0.1381333333 | R3: 0.1011 | S3: 0.1409666667 | T3: 0.0732 | U3: 0.1537
A4: 02:00:00 | B4: 0.1088333333 | C4: 0.1082 | D4: 0.1325666667 | E4: 0.1474 | F4: 0.1274666667 | G4: 0.1257333333 | H4: 0.1305666667 | I4: 0.09196666667 | J4: 0.1274666667 | K4: 0.1229666667 | L4: 0.1053 | M4: 0.1117 | N4: 0.1347 | O4: 0.1417 | P4: 0.1569 | Q4: 0.1217666667 | R4: 0.09273333333 | S4: 0.1255666667 | T4: 0.06833333333 | U4: 0.1384333333
A5: 03:00:00 | B5: 0.1031 | C5: 0.1029333333 | D5: 0.1257666667 | E5: 0.1372666667 | F5: 0.1210666667 | G5: 0.1202 | H5: 0.1231666667 | I5: 0.08696666667 | J5: 0.1209333333 | K5: 0.1166 | L5: 0.1002666667 | M5: 0.1059333333 | N5: 0.1276666667 | O5: 0.1337666667 | P5: 0.1464 | Q5: 0.1144666667 | R5: 0.0896 | S5: 0.1191333333 | T5: 0.06653333333 | U5: 0.1313666667
A6: 04:00:00 | B6: 0.1005333333 | C6: 0.1014666667 | D6: 0.1233 | E6: 0.1319666667 | F6: 0.1179666667 | G6: 0.1181666667 | H6: 0.1203333333 | I6: 0.08483333333 | J6: 0.1179 | K6: 0.1135666667 | L6: 0.09823333333 | M6: 0.104 | N6: 0.1246666667 | O6: 0.1319 | P6: 0.1413 | Q6: 0.1108666667 | R6: 0.0904 | S6: 0.1163333333 | T6: 0.06496666667 | U6: 0.1276666667
A7: 05:00:00 | B7: 0.1035666667 | C7: 0.1065 | D7: 0.1300666667 | E7: 0.1343333333 | F7: 0.1206333333 | G7: 0.1239 | H7: 0.1248333333 | I7: 0.0877 | J7: 0.1214 | K7: 0.1167333333 | L7: 0.1012666667 | M7: 0.1084333333 | N7: 0.1290333333 | O7: 0.1406 | P7: 0.1457666667 | Q7: 0.1137666667 | R7: 0.1013 | S7: 0.1206 | T7: 0.07073333333 | U7: 0.1301
A8: 06:00:00 | B8: 0.117 | C8: 0.1242666667 | D8: 0.1546333333 | E8: 0.1521333333 | F8: 0.134 | G8: 0.1442333333 | H8: 0.1394333333 | I8: 0.0985 | J8: 0.1362666667 | K8: 0.1325333333 | L8: 0.1156 | M8: 0.1235666667 | N8: 0.1471666667 | O8: 0.1703333333 | P8: 0.1673333333 | Q8: 0.1277666667 | R8: 0.1310333333 | S8: 0.1374333333 | T8: 0.08266666667 | U8: 0.1455333333
A9: 07:00:00 | B9: 0.1427 | C9: 0.1579666667 | D9: 0.1952666667 | E9: 0.1903333333 | F9: 0.1570666667 | G9: 0.1739333333 | H9: 0.1675666667 | I9: 0.1187 | J9: 0.1637333333 | K9: 0.161 | L9: 0.1434333333 | M9: 0.1507 | N9: 0.1833 | O9: 0.2253 | P9: 0.2095666667 | Q9: 0.1547666667 | R9: 0.1624 | S9: 0.1674333333 | T9: 0.1018 | U9: 0.1733666667
A10: 08:00:00 | B10: 0.1625333333 | C10: 0.1836333333 | D10: 0.2192333333 | E10: 0.2186 | F10: 0.1766333333 | G10: 0.1957666667 | H10: 0.1893333333 | I10: 0.1387333333 | J10: 0.1877333333 | K10: 0.1825 | L10: 0.1632 | M10: 0.1744333333 | N10: 0.2092666667 | O10: 0.2614666667 | P10: 0.2416666667 | Q10: 0.1774666667 | R10: 0.1805666667 | S10: 0.1914 | T10: 0.1025333333 | U10: 0.1965
A11: 09:00:00 | B11: 0.1754333333 | C11: 0.1973 | D11: 0.2300333333 | E11: 0.2361666667 | F11: 0.192 | G11: 0.2098666667 | H11: 0.2046 | I11: 0.1530333333 | J11: 0.2056333333 | K11: 0.1979666667 | L11: 0.1740333333 | M11: 0.1910666667 | N11: 0.2219333333 | O11: 0.2728 | P11: 0.2589333333 | Q11: 0.1952666667 | R11: 0.1872666667 | S11: 0.2089666667 | T11: 0.1102 | U11: 0.2119333333
A12: 10:00:00 | B12: 0.1792666667 | C12: 0.2016333333 | D12: 0.2315333333 | E12: 0.2422333333 | F12: 0.1987666667 | G12: 0.2114333333 | H12: 0.2089333333 | I12: 0.1572 | J12: 0.2130333333 | K12: 0.2047 | L12: 0.1768 | M12: 0.1956333333 | N12: 0.2252 | O12: 0.2694666667 | P12: 0.2625333333 | Q12: 0.2034666667 | R12: 0.1908333333 | S12: 0.2176333333 | T12: 0.1038333333 | U12: 0.2150333333
A13: 11:00:00 | B13: 0.1832 | C13: 0.2084 | D13: 0.2376666667 | E13: 0.2482 | F13: 0.2083333333 | G13: 0.2165333333 | H13: 0.2137333333 | I13: 0.163 | J13: 0.2290666667 | K13: 0.2142666667 | L13: 0.1822666667 | M13: 0.2040666667 | N13: 0.2346 | O13: 0.2706333333 | P13: 0.266 | Q13: 0.2134333333 | R13: 0.2204666667 | S13: 0.2285666667 | T13: 0.109 | U13: 0.2229333333
A14: 12:00:00 | B14: 0.1948333333 | C14: 0.2277333333 | D14: 0.2534333333 | E14: 0.267 | F14: 0.2206 | G14: 0.2239 | H14: 0.2280333333 | I14: 0.1733333333 | J14: 0.2400333333 | K14: 0.2275 | L14: 0.1960666667 | M14: 0.2133666667 | N14: 0.2605333333 | O14: 0.2884666667 | P14: 0.2824666667 | Q14: 0.2285 | R14: 0.2197333333 | S14: 0.2445 | T14: 0.0978 | U14: 0.2335333333
A15: 13:00:00 | B15: 0.1942666667 | C15: 0.2253 | D15: 0.2558333333 | E15: 0.2779333333 | F15: 0.2205 | G15: 0.2236333333 | H15: 0.2300666667 | I15: 0.1722333333 | J15: 0.2333 | K15: 0.2230333333 | L15: 0.1954666667 | M15: 0.2079333333 | N15: 0.266 | O15: 0.2931 | P15: 0.2939666667 | Q15: 0.2266333333 | R15: 0.1984 | S15: 0.2344333333 | T15: 0.1149 | U15: 0.2322333333
A16: 14:00:00 | B16: 0.1921 | C16: 0.2130333333 | D16: 0.2544333333 | E16: 0.2737333333 | F16: 0.2171333333 | G16: 0.2215333333 | H16: 0.2276333333 | I16: 0.1670666667 | J16: 0.2276 | K16: 0.2199 | L16: 0.1902333333 | M16: 0.2011666667 | N16: 0.2511333333 | O16: 0.2820333333 | P16: 0.2913333333 | Q16: 0.2248 | R16: 0.1852333333 | S16: 0.2304333333 | T16: 0.1130333333 | U16: 0.2287666667
A17: 15:00:00 | B17: 0.1876666667 | C17: 0.2093333333 | D17: 0.2453 | E17: 0.2682333333 | F17: 0.2110666667 | G17: 0.2158666667 | H17: 0.2221 | I17: 0.1590666667 | J17: 0.2174333333 | K17: 0.2135 | L17: 0.1862 | M17: 0.1914666667 | N17: 0.2446333333 | O17: 0.2695 | P17: 0.2812666667 | Q17: 0.2151333333 | R17: 0.1808 | S17: 0.2233666667 | T17: 0.1094 | U17: 0.2213666667
A18: 16:00:00 | B18: 0.1839 | C18: 0.2053333333 | D18: 0.2392 | E18: 0.2621 | F18: 0.2108 | G18: 0.2189333333 | H18: 0.2191666667 | I18: 0.1559 | J18: 0.2156333333 | K18: 0.2107666667 | L18: 0.183 | M18: 0.1889 | N18: 0.2421666667 | O18: 0.2668333333 | P18: 0.2747333333 | Q18: 0.2083 | R18: 0.1904666667 | S18: 0.219 | T18: 0.1123333333 | U18: 0.2225666667
A19: 17:00:00 | B19: 0.1909333333 | C19: 0.2091666667 | D19: 0.2444666667 | E19: 0.267 | F19: 0.2235666667 | G19: 0.2356 | H19: 0.2297333333 | I19: 0.1648 | J19: 0.2303666667 | K19: 0.2206666667 | L19: 0.1874333333 | M19: 0.2021333333 | N19: 0.2471 | O19: 0.2782666667 | P19: 0.2802333333 | Q19: 0.2175333333 | R19: 0.221 | S19: 0.2301 | T19: 0.1374 | U19: 0.2378333333
A20: 18:00:00 | B20: 0.2113 | C20: 0.2188666667 | D20: 0.2581666667 | E20: 0.2815666667 | F20: 0.2504333333 | G20: 0.2654 | H20: 0.2535333333 | I20: 0.1893 | J20: 0.2658 | K20: 0.2460333333 | L20: 0.1988333333 | M20: 0.2338333333 | N20: 0.2544333333 | O20: 0.2971333333 | P20: 0.2924333333 | Q20: 0.2445666667 | R20: 0.2515333333 | S20: 0.2587666667 | T20: 0.1830666667 | U20: 0.2679
A21: 19:00:00 | B21: 0.2485 | C21: 0.2423666667 | D21: 0.2922666667 | E21: 0.3116666667 | F21: 0.2839333333 | G21: 0.2948333333 | H21: 0.2954333333 | I21: 0.2241666667 | J21: 0.3028333333 | K21: 0.2903333333 | L21: 0.2247333333 | M21: 0.2712333333 | N21: 0.2739 | O21: 0.3308333333 | P21: 0.3226333333 | Q21: 0.2941333333 | R21: 0.2601 | S21: 0.3025333333 | T21: 0.1499 | U21: 0.3033333333
A22: 20:00:00 | B22: 0.2539666667 | C22: 0.2568 | D22: 0.3129 | E22: 0.3326666667 | F22: 0.2829333333 | G22: 0.293 | H22: 0.3004 | I22: 0.2246666667 | J22: 0.2979 | K22: 0.288 | L22: 0.2354666667 | M22: 0.2694333333 | N22: 0.2937333333 | O22: 0.3547 | P22: 0.345 | Q22: 0.2970333333 | R22: 0.2399 | S22: 0.2968333333 | T22: 0.1491333333 | U22: 0.3034333333
A23: 21:00:00 | B23: 0.2362 | C23: 0.2421666667 | D23: 0.2911333333 | E23: 0.3195666667 | F23: 0.2643333333 | G23: 0.2738 | H23: 0.2804666667 | I23: 0.2092666667 | J23: 0.279 | K23: 0.2670666667 | L23: 0.2212333333 | M23: 0.253 | N23: 0.2781333333 | O23: 0.3327 | P23: 0.3274333333 | Q23: 0.2779666667 | R23: 0.2102333333 | S23: 0.2767666667 | T23: 0.1493666667 | U23: 0.2882
A24: 22:00:00 | B24: 0.2072333333 | C24: 0.2135333333 | D24: 0.2539333333 | E24: 0.2881666667 | F24: 0.2324666667 | G24: 0.2366 | H24: 0.2474333333 | I24: 0.1819333333 | J24: 0.2430666667 | K24: 0.2342333333 | L24: 0.1941666667 | M24: 0.2201 | N24: 0.245 | O24: 0.2888 | P24: 0.2909333333 | Q24: 0.2442333333 | R24: 0.1758333333 | S24: 0.2424 | T24: 0.1350666667 | U24: 0.2546333333
A25: 23:00:00 | B25: 0.1730666667 | C25: 0.1769 | D25: 0.2105666667 | E25: 0.2446666667 | F25: 0.1967 | G25: 0.1956333333 | H25: 0.2067666667 | I25: 0.1507333333 | J25: 0.2023 | K25: 0.1953 | L25: 0.1621666667 | M25: 0.1821333333 | N25: 0.2084 | O25: 0.2384 | P25: 0.2481 | Q25: 0.2028333333 | R25: 0.1414333333 | S25: 0.2019 | T25: 0.09256666667 | U25: 0.2141

Sheet 4,5kW (hidden)
A1: Ora | B1: Abruzzo | C1: Basilicata | D1: Calabria | E1: Campania | F1: Emilia-Romagna | G1: Friuli-Venezia Giulia | H1: Lazio | I1: Liguria | J1: Lombardia | K1: Marche | L1: Molise | M1: Piemonte | N1: Puglia | O1: Sardegna | P1: Sicilia | Q1: Toscana | R1: Trentino-Alto Adige | S1: Umbria | T1: Valle-D'Aosta | U1: Veneto
A2: 00:00:00 | B2: 0.2861666667 | C2: 0.2735 | D2: 0.3023 | E2: 0.3441333333 | F2: 0.3096666667 | G2: 0.2951333333 | H2: 0.3254666667 | I2: 0.2266333333 | J2: 0.2952666667 | K2: 0.3018333333 | L2: 0.2717666667 | M2: 0.2882333333 | N2: 0.3050333333 | O2: 0.3047 | P2: 0.3448666667 | Q2: 0.2949666667 | R2: 0.2154666667 | S2: 0.3286333333 | T2: 0.3225 | U2: 0.06046666667
A3: 01:00:00 | B3: 0.2445 | C3: 0.2315 | D3: 0.2580666667 | E3: 0.2894666667 | F3: 0.2682 | G3: 0.2553 | H3: 0.2792666667 | I3: 0.191 | J3: 0.2525666667 | K3: 0.2580666667 | L3: 0.2329 | M3: 0.2453333333 | N3: 0.2641 | O3: 0.2500666667 | P3: 0.2950666667 | Q3: 0.2481 | R3: 0.1844666667 | S3: 0.2816666667 | T3: 0.2798333333 | U3: 0.052
A4: 02:00:00 | B4: 0.2189666667 | C4: 0.2068333333 | D4: 0.2315333333 | E4: 0.2555 | F4: 0.2431333333 | G4: 0.2327333333 | H4: 0.2506666667 | I4: 0.1704 | J4: 0.2275333333 | K4: 0.2314 | L4: 0.2091 | M4: 0.2204 | N4: 0.2384 | O4: 0.2194 | P4: 0.2626333333 | Q4: 0.2205666667 | R4: 0.1694 | S4: 0.2533666667 | T4: 0.2543666667 | U4: 0.04606666667
A5: 03:00:00 | B5: 0.2076666667 | C5: 0.1969666667 | D5: 0.2198 | E5: 0.239 | F5: 0.2321 | G5: 0.2237 | H5: 0.2377666667 | I5: 0.1616 | J5: 0.2166333333 | K5: 0.2200333333 | L5: 0.1979666667 | M5: 0.2103 | N5: 0.2269 | O5: 0.2067666667 | P5: 0.2464666667 | Q5: 0.2081 | R5: 0.1646666667 | S5: 0.2410666667 | T5: 0.243 | U5: 0.04393333333
A6: 04:00:00 | B6: 0.2020333333 | C6: 0.1931333333 | D6: 0.2141 | E6: 0.2296666667 | F6: 0.2264333333 | G6: 0.2204666667 | H6: 0.2319 | I6: 0.1577 | J6: 0.2109666667 | K6: 0.2139 | L6: 0.1926333333 | M6: 0.2064666667 | N6: 0.2212666667 | O6: 0.2026666667 | P6: 0.2372 | Q6: 0.2020333333 | R6: 0.1694666667 | S6: 0.2359666667 | T6: 0.2369333333 | U6: 0.04243333333
A7: 05:00:00 | B7: 0.2069333333 | C7: 0.2001333333 | D7: 0.2205 | E7: 0.2315666667 | F7: 0.2311333333 | G7: 0.2302 | H7: 0.2382666667 | I7: 0.1623 | J7: 0.2165 | K7: 0.2185666667 | L7: 0.1952333333 | M7: 0.2149 | N7: 0.226 | O7: 0.2138 | P7: 0.2403 | Q7: 0.207 | R7: 0.1942333333 | S7: 0.2446333333 | T7: 0.2412666667 | U7: 0.04263333333
A8: 06:00:00 | B8: 0.2280333333 | C8: 0.2233666667 | D8: 0.2486333333 | E8: 0.2533333333 | F8: 0.2520666667 | G8: 0.2598666667 | H8: 0.2578333333 | I8: 0.1787666667 | J8: 0.2395333333 | K8: 0.2418666667 | L8: 0.2122333333 | M8: 0.2419666667 | N8: 0.2469666667 | O8: 0.2553666667 | P8: 0.2638 | Q8: 0.2284 | R8: 0.2511666667 | S8: 0.2724333333 | T8: 0.2644 | U8: 0.0452
A9: 07:00:00 | B9: 0.2675333333 | C9: 0.2701333333 | D9: 0.2999666667 | E9: 0.3049333333 | F9: 0.2864333333 | G9: 0.2979666667 | H9: 0.2956 | I9: 0.2110333333 | J9: 0.2804333333 | K9: 0.2848 | L9: 0.2517 | M9: 0.2846666667 | N9: 0.2902333333 | O9: 0.3349 | P9: 0.3126666667 | Q9: 0.2694333333 | R9: 0.3048666667 | S9: 0.3165333333 | T9: 0.3027333333 | U9: 0.05256666667
A10: 08:00:00 | B10: 0.2944333333 | C10: 0.3052 | D10: 0.3311 | E10: 0.3440666667 | F10: 0.3105 | G10: 0.3199 | H10: 0.3226333333 | I10: 0.2430666667 | J10: 0.3122 | K10: 0.3121333333 | L10: 0.2795 | M10: 0.3152666667 | N10: 0.32 | O10: 0.3803 | P10: 0.3514 | Q10: 0.3021666667 | R10: 0.3251333333 | S10: 0.3465 | T10: 0.3283 | U10: 0.0651
A11: 09:00:00 | B11: 0.3148666667 | C11: 0.3284333333 | D11: 0.3506666667 | E11: 0.3751 | F11: 0.3305 | G11: 0.3335333333 | H11: 0.3458666667 | I11: 0.2674333333 | J11: 0.3389333333 | K11: 0.3333333333 | L11: 0.2981333333 | M11: 0.3392333333 | N11: 0.3385666667 | O11: 0.3954333333 | P11: 0.3779666667 | Q11: 0.3296666667 | R11: 0.3324333333 | S11: 0.3707666667 | T11: 0.3461 | U11: 0.07556666667
A12: 10:00:00 | B12: 0.3194333333 | C12: 0.3363333333 | D12: 0.3533333333 | E12: 0.3855333333 | F12: 0.3364666667 | G12: 0.3296666667 | H12: 0.3517333333 | I12: 0.2723 | J12: 0.348 | K12: 0.3388 | L12: 0.3014 | M12: 0.3435333333 | N12: 0.3419333333 | O12: 0.3875666667 | P12: 0.3843333333 | Q12: 0.3403666667 | R12: 0.3321333333 | S12: 0.3798666667 | T12: 0.3453666667 | U12: 0.0797
A13: 11:00:00 | B13: 0.3215 | C13: 0.3428666667 | D13: 0.358 | E13: 0.3905666667 | F13: 0.3485666667 | G13: 0.3324666667 | H13: 0.3564666667 | I13: 0.2778333333 | J13: 0.3705333333 | K13: 0.3483333333 | L13: 0.3068 | M13: 0.3540333333 | N13: 0.3464 | O13: 0.3837333333 | P13: 0.3867 | Q13: 0.3512 | R13: 0.3847333333 | S13: 0.3904666667 | T13: 0.3529 | U13: 0.08363333333
A14: 12:00:00 | B14: 0.3432333333 | C14: 0.3752666667 | D14: 0.3831 | E14: 0.4140333333 | F14: 0.3750333333 | G14: 0.3499 | H14: 0.3802666667 | I14: 0.3011 | J14: 0.4023333333 | K14: 0.3782333333 | L14: 0.3338 | M14: 0.3781666667 | N14: 0.3765666667 | O14: 0.4119 | P14: 0.4085666667 | Q14: 0.3797333333 | R14: 0.4049666667 | S14: 0.4189333333 | T14: 0.3749333333 | U14: 0.0847
A15: 13:00:00 | B15: 0.3472333333 | C15: 0.3915 | D15: 0.394 | E15: 0.4321666667 | F15: 0.3758333333 | G15: 0.3487 | H15: 0.3868333333 | I15: 0.3010666667 | J15: 0.388 | K15: 0.3754 | L15: 0.343 | M15: 0.3679666667 | N15: 0.3942 | O15: 0.4273666667 | P15: 0.4286333333 | Q15: 0.3786666667 | R15: 0.3610333333 | S15: 0.4050666667 | T15: 0.3716333333 | U15: 0.07986666667
A16: 14:00:00 | B16: 0.3462 | C16: 0.3628 | D16: 0.3985666667 | E16: 0.4302333333 | F16: 0.3751666667 | G16: 0.3495 | H16: 0.3863333333 | I16: 0.2939333333 | J16: 0.3812666667 | K16: 0.3740666667 | L16: 0.3359333333 | M16: 0.3626333333 | N16: 0.3755333333 | O16: 0.4167333333 | P16: 0.4292666667 | Q16: 0.3796666667 | R16: 0.3380333333 | S16: 0.4066333333 | T16: 0.3723 | U16: 0.07766666667
A17: 15:00:00 | B17: 0.3438333333 | C17: 0.3607333333 | D17: 0.3932 | E17: 0.4299666667 | F17: 0.3662666667 | G17: 0.3449333333 | H17: 0.3836333333 | I17: 0.2804666667 | J17: 0.3626333333 | K17: 0.3668333333 | L17: 0.3354333333 | M17: 0.3463 | N17: 0.3733666667 | O17: 0.4049 | P17: 0.4240333333 | Q17: 0.3668666667 | R17: 0.3216333333 | S17: 0.4035 | T17: 0.3620333333 | U17: 0.07493333333
A18: 16:00:00 | B18: 0.3388 | C18: 0.3577 | D18: 0.3861 | E18: 0.4237666667 | F18: 0.3659 | G18: 0.3536666667 | H18: 0.3814333333 | I18: 0.2732 | J18: 0.3569333333 | K18: 0.363 | L18: 0.3304333333 | M18: 0.3409666667 | N18: 0.3756 | O18: 0.4034333333 | P18: 0.4204666667 | Q18: 0.3548666667 | R18: 0.3414 | S18: 0.3972666667 | T18: 0.3648 | U18: 0.07526666667
A19: 17:00:00 | B19: 0.3532333333 | C19: 0.3663333333 | D19: 0.3956333333 | E19: 0.4340666667 | F19: 0.3906333333 | G19: 0.3867333333 | H19: 0.4039 | I19: 0.2876666667 | J19: 0.3824666667 | K19: 0.3819333333 | L19: 0.3393666667 | M19: 0.3663333333 | N19: 0.3904666667 | O19: 0.4267666667 | P19: 0.4350666667 | Q19: 0.3699333333 | R19: 0.4037666667 | S19: 0.4194 | T19: 0.3945 | U19: 0.07986666667
A20: 18:00:00 | B20: 0.3933 | C20: 0.3847666667 | D20: 0.4176 | E20: 0.4592666667 | F20: 0.4438 | G20: 0.4483333333 | H20: 0.4492 | I20: 0.3310666667 | J20: 0.4491333333 | K20: 0.4288 | L20: 0.3625 | M20: 0.4269333333 | N20: 0.4117 | O20: 0.4654 | P20: 0.4596666667 | Q20: 0.4150333333 | R20: 0.4746 | S20: 0.4718 | T20: 0.4547666667 | U20: 0.0889
A21: 19:00:00 | B21: 0.4689333333 | C21: 0.4274333333 | D21: 0.4749333333 | E21: 0.5080333333 | F21: 0.5149 | G21: 0.5139 | H21: 0.5274666667 | I21: 0.3998 | J21: 0.5319333333 | K21: 0.5128666667 | L21: 0.4142 | M21: 0.5074333333 | N21: 0.4509666667 | O21: 0.5301333333 | P21: 0.5093333333 | Q21: 0.5017 | R21: 0.4890666667 | S21: 0.5592 | T21: 0.5292666667 | U21: 0.0994
A22: 20:00:00 | B22: 0.4861666667 | C22: 0.4626 | D22: 0.5194666667 | E22: 0.5462333333 | F22: 0.5147666667 | G22: 0.5104666667 | H22: 0.5426 | I22: 0.4001333333 | J22: 0.5201 | K22: 0.5149 | L22: 0.4457 | M22: 0.5034333333 | N22: 0.4865666667 | O22: 0.5752 | P22: 0.5503666667 | Q22: 0.5077 | R22: 0.4370333333 | S22: 0.5531666667 | T22: 0.5276666667 | U22: 0.0997
A23: 21:00:00 | B23: 0.456 | C23: 0.4386 | D23: 0.4876333333 | E23: 0.5297666667 | F23: 0.4852333333 | G23: 0.4805 | H23: 0.5102666667 | I23: 0.3733 | J23: 0.4887666667 | K23: 0.4815 | L23: 0.4251666667 | M23: 0.4780333333 | N23: 0.4617666667 | O23: 0.5393 | P23: 0.5250666667 | Q23: 0.4785666667 | R23: 0.3792 | S23: 0.5223 | T23: 0.5048333333 | U23: 0.09503333333
A24: 22:00:00 | B24: 0.4050333333 | C24: 0.3911666667 | D24: 0.4326666667 | E24: 0.4816666667 | F24: 0.4284 | G24: 0.4184333333 | H24: 0.4557333333 | I24: 0.3272666667 | J24: 0.4248 | K24: 0.4270333333 | L24: 0.3805 | M24: 0.4169333333 | N24: 0.4116 | O24: 0.4683333333 | P24: 0.4724 | Q24: 0.4258666667 | R24: 0.3193333333 | S24: 0.4644 | T24: 0.4485 | U24: 0.084
A25: 23:00:00 | B25: 0.3415333333 | C25: 0.3301333333 | D25: 0.3634666667 | E25: 0.4127 | F25: 0.3644 | G25: 0.3495333333 | H25: 0.3852666667 | I25: 0.2735 | J25: 0.3538333333 | K25: 0.3595333333 | L25: 0.3227333333 | M25: 0.3462333333 | N25: 0.3565333333 | O25: 0.3821 | P25: 0.4070666667 | Q25: 0.3573 | R25: 0.2591333333 | S25: 0.3918 | T25: 0.3803333333 | U25: 0.07026666667

Sheet 6kW (hidden)
A1: Ora | B1: Abruzzo | C1: Basilicata | D1: Calabria | E1: Campania | F1: Emilia-Romagna | G1: Friuli-Venezia Giulia | H1: Lazio | I1: Liguria | J1: Lombardia | K1: Marche | L1: Molise | M1: Piemonte | N1: Puglia | O1: Sardegna | P1: Sicilia | Q1: Toscana | R1: Trentino-Alto Adige | S1: Umbria | T1: Valle-D'Aosta | U1: Veneto
A2: 00:00:00 | B2: 0.3415666667 | C2: 0.3404333333 | D2: 0.3711666667 | E2: 0.4190333333 | F2: 0.4100333333 | G2: 0.3559333333 | H2: 0.4041333333 | I2: 0.2908 | J2: 0.3998333333 | K2: 0.393 | L2: 0.3532666667 | M2: 0.371 | N2: 0.3802666667 | O2: 0.3749 | P2: 0.4237333333 | Q2: 0.3721666667 | R2: 0.3038333333 | S2: 0.4122666667 | T2: 0.4098 | U2: 0.06046666667
A3: 01:00:00 | B3: 0.2995666667 | C3: 0.2977666667 | D3: 0.3233333333 | E3: 0.3600333333 | F3: 0.3656333333 | G3: 0.3172333333 | H3: 0.3556666667 | I3: 0.2533 | J3: 0.3543666667 | K3: 0.3472666667 | L3: 0.3132333333 | M3: 0.3274666667 | N3: 0.3381 | O3: 0.3147 | P3: 0.3687333333 | Q3: 0.3223666667 | R3: 0.2729333333 | S3: 0.3639666667 | T3: 0.3668333333 | U3: 0.052
A4: 02:00:00 | B4: 0.2734 | C4: 0.2728666667 | D4: 0.2936666667 | E4: 0.3227666667 | F4: 0.3383 | G4: 0.2954 | H4: 0.3254 | I4: 0.2308666667 | J4: 0.3273 | K4: 0.3185 | L4: 0.2863666667 | M4: 0.3021333333 | N4: 0.3121 | O4: 0.2807666667 | P4: 0.3330666667 | Q4: 0.2932333333 | R4: 0.2580333333 | S4: 0.3354 | T4: 0.3416 | U4: 0.04606666667
A5: 03:00:00 | B5: 0.2625333333 | C5: 0.2630333333 | D5: 0.2812666667 | E5: 0.3046 | F5: 0.3268333333 | G5: 0.2878 | H5: 0.3118333333 | I5: 0.2216 | J5: 0.3159666667 | K5: 0.3063 | L5: 0.2746666667 | M5: 0.292 | N5: 0.3004 | O5: 0.2669333333 | P5: 0.3157 | Q5: 0.2801333333 | R5: 0.2524 | S5: 0.3244666667 | T5: 0.3318666667 | U5: 0.04393333333
A6: 04:00:00 | B6: 0.2579333333 | C6: 0.2598 | D6: 0.2755 | E6: 0.2945333333 | F6: 0.3220666667 | G6: 0.2864 | H6: 0.3065333333 | I6: 0.2177 | J6: 0.3101333333 | K6: 0.2998333333 | L6: 0.2681 | M6: 0.2892333333 | N6: 0.2951333333 | O6: 0.2627666667 | P6: 0.3063666667 | Q6: 0.2741 | R6: 0.2586333333 | S6: 0.3193333333 | T6: 0.3279666667 | U6: 0.04243333333
A7: 05:00:00 | B7: 0.2653666667 | C7: 0.2695 | D7: 0.2831333333 | E7: 0.2972666667 | F7: 0.3300333333 | G7: 0.3010666667 | H7: 0.3146333333 | I7: 0.2232333333 | J7: 0.3187333333 | K7: 0.3056 | L7: 0.2726333333 | M7: 0.3024333333 | N7: 0.3022 | O7: 0.2768666667 | P7: 0.3102333333 | Q7: 0.2819666667 | R7: 0.2877333333 | S7: 0.3308 | T7: 0.3371 | U7: 0.04263333333
A8: 06:00:00 | B8: 0.2889 | C8: 0.2997 | D8: 0.3119 | E8: 0.3195333333 | F8: 0.3547333333 | G8: 0.3375666667 | H8: 0.3362666667 | I8: 0.2419 | J8: 0.3461333333 | K8: 0.3300666667 | L8: 0.2934666667 | M8: 0.3361666667 | N8: 0.3242333333 | O8: 0.3247333333 | P8: 0.335 | Q8: 0.3067333333 | R8: 0.358 | S8: 0.3623666667 | T8: 0.3655666667 | U8: 0.0452
A9: 07:00:00 | B9: 0.3256 | C9: 0.3451666667 | D9: 0.3566 | E9: 0.3707 | F9: 0.3845333333 | G9: 0.3705666667 | H9: 0.3719333333 | I9: 0.2759666667 | J9: 0.3871666667 | K9: 0.3685666667 | L9: 0.3338333333 | M9: 0.3783333333 | N9: 0.363 | O9: 0.4075333333 | P9: 0.3825333333 | Q9: 0.3485333333 | R9: 0.4402 | S9: 0.4074666667 | T9: 0.3996666667 | U9: 0.05256666667
A10: 08:00:00 | B10: 0.3434 | C10: 0.3665 | D10: 0.3812333333 | E10: 0.4102 | F10: 0.3972666667 | G10: 0.377 | H10: 0.3920666667 | I10: 0.3092 | J10: 0.4121666667 | K10: 0.3913 | L10: 0.3583666667 | M10: 0.4012666667 | N10: 0.387 | O10: 0.4492 | P10: 0.4221 | Q10: 0.3792666667 | R10: 0.4764666667 | S10: 0.4330333333 | T10: 0.4100666667 | U10: 0.0651
A11: 09:00:00 | B11: 0.3547333333 | C11: 0.3811333333 | D11: 0.3970666667 | E11: 0.4424 | F11: 0.4053666667 | G11: 0.3759666667 | H11: 0.4114333333 | I11: 0.3329666667 | J11: 0.4270333333 | K11: 0.4043333333 | L11: 0.3742333333 | M11: 0.4120666667 | N11: 0.4004666667 | O11: 0.4602333333 | P11: 0.4501333333 | Q11: 0.4031333333 | R11: 0.4723666667 | S11: 0.4477 | T11: 0.4096666667 | U11: 0.07556666667
A12: 10:00:00 | B12: 0.3524 | C12: 0.3856666667 | D12: 0.3986333333 | E12: 0.4527333333 | F12: 0.4011666667 | G12: 0.3600666667 | H12: 0.4133333333 | I12: 0.3344666667 | J12: 0.4243666667 | K12: 0.4026333333 | L12: 0.3747666667 | M12: 0.4049666667 | N12: 0.3985 | O12: 0.4478 | P12: 0.4542 | Q12: 0.4089 | R12: 0.4560666667 | S12: 0.4462666667 | T12: 0.3926333333 | U12: 0.0797
A13: 11:00:00 | B13: 0.3499333333 | C13: 0.3869 | D13: 0.4018666667 | E13: 0.4553 | F13: 0.406 | G13: 0.3542 | H13: 0.4148333333 | I13: 0.3346666667 | J13: 0.4362 | K13: 0.4059 | L13: 0.3755 | M13: 0.4065666667 | N13: 0.3970666667 | O13: 0.4387666667 | P13: 0.4524666667 | Q13: 0.4143666667 | R13: 0.5021666667 | S13: 0.4477666667 | T13: 0.3886333333 | U13: 0.08363333333
A14: 12:00:00 | B14: 0.3687 | C14: 0.41 | D14: 0.4221 | E14: 0.4744666667 | F14: 0.4309333333 | G14: 0.3683 | H14: 0.4349333333 | I14: 0.3541666667 | J14: 0.4633666667 | K14: 0.4336333333 | L14: 0.3966666667 | M14: 0.4252 | N14: 0.4183666667 | O14: 0.4636333333 | P14: 0.4683 | Q14: 0.4382 | R14: 0.5077666667 | S14: 0.4677666667 | T14: 0.406 | U14: 0.0847
A15: 13:00:00 | B15: 0.3708 | C15: 0.4141 | D15: 0.4296333333 | E15: 0.4894666667 | F15: 0.4300666667 | G15: 0.3651 | H15: 0.4393 | I15: 0.3529333333 | J15: 0.4454 | K15: 0.4276666667 | L15: 0.3976333333 | M15: 0.4109333333 | N15: 0.43 | O15: 0.4796333333 | P15: 0.4832666667 | Q15: 0.4343333333 | R15: 0.4508 | S15: 0.4499666667 | T15: 0.3972333333 | U15: 0.07986666667
A16: 14:00:00 | B16: 0.3704333333 | C16: 0.3911 | D16: 0.4361 | E16: 0.4856666667 | F16: 0.4294 | G16: 0.3663666667 | H16: 0.4371 | I16: 0.3447666667 | J16: 0.4398666667 | K16: 0.4248 | L16: 0.3879333333 | M16: 0.4051666667 | N16: 0.4142333333 | O16: 0.4698333333 | P16: 0.4829666667 | Q16: 0.4341666667 | R16: 0.4332333333 | S16: 0.451 | T16: 0.3980333333 | U16: 0.07766666667
A17: 15:00:00 | B17: 0.3750666667 | C17: 0.4010333333 | D17: 0.4400666667 | E17: 0.4898666667 | F17: 0.4268666667 | G17: 0.3699 | H17: 0.439 | I17: 0.3345333333 | J17: 0.4288333333 | K17: 0.4258333333 | L17: 0.3966666667 | M17: 0.3960666667 | N17: 0.4189666667 | O17: 0.4645666667 | P17: 0.4845666667 | Q17: 0.4267333333 | R17: 0.4366333333 | S17: 0.457 | T17: 0.3982666667 | U17: 0.07493333333
A18: 16:00:00 | B18: 0.3798666667 | C18: 0.4114666667 | D18: 0.4446333333 | E18: 0.4924 | F18: 0.4376333333 | G18: 0.3913333333 | H18: 0.4454666667 | I18: 0.3318 | J18: 0.4353 | K18: 0.4337333333 | L18: 0.4048666667 | M18: 0.403 | N18: 0.4344333333 | O18: 0.4719333333 | P18: 0.4915333333 | Q18: 0.4225666667 | R18: 0.4859333333 | S18: 0.4649 | T18: 0.4172333333 | U18: 0.07526666667
A19: 17:00:00 | B19: 0.4053333333 | C19: 0.4327666667 | D19: 0.4656333333 | E19: 0.5138 | F19: 0.4756666667 | G19: 0.4369333333 | H19: 0.4791333333 | I19: 0.3531 | J19: 0.4755666667 | K19: 0.4654333333 | L19: 0.4262666667 | M19: 0.4408 | N19: 0.4643333333 | O19: 0.5072333333 | P19: 0.5184333333 | Q19: 0.4472333333 | R19: 0.5791 | S19: 0.499 | T19: 0.464 | U19: 0.07986666667
A20: 18:00:00 | B20: 0.4530333333 | C20: 0.4642666667 | D20: 0.4981 | E20: 0.549 | F20: 0.5415666667 | G20: 0.5087 | H20: 0.5341333333 | I20: 0.4006 | J20: 0.5556333333 | K20: 0.5228666667 | L20: 0.4617333333 | M20: 0.5108666667 | N20: 0.5001333333 | O20: 0.5597333333 | P20: 0.5534666667 | Q20: 0.5003 | R20: 0.6367333333 | S20: 0.5619666667 | T20: 0.5418666667 | U20: 0.0889
A21: 19:00:00 | B21: 0.5302 | C21: 0.5154666667 | D21: 0.5616 | E21: 0.6047666667 | F21: 0.6268333333 | G21: 0.5830666667 | H21: 0.6195333333 | I21: 0.4700333333 | J21: 0.6508 | K21: 0.6133666667 | L21: 0.5220333333 | M21: 0.5969666667 | N21: 0.5470666667 | O21: 0.6368666667 | P21: 0.6097666667 | Q21: 0.5903333333 | R21: 0.6303 | S21: 0.6534333333 | T21: 0.6317333333 | U21: 0.0994
A22: 20:00:00 | B22: 0.5464333333 | C22: 0.5484 | D22: 0.6063 | E22: 0.6452666667 | F22: 0.6310333333 | G22: 0.5773333333 | H22: 0.6380666667 | I22: 0.4715 | J22: 0.6386 | K22: 0.6195333333 | L22: 0.5514333333 | M22: 0.5927 | N22: 0.5817333333 | O22: 0.6865333333 | P22: 0.6534 | Q22: 0.5975666667 | R22: 0.5726333333 | S22: 0.6471333333 | T22: 0.6280666667 | U22: 0.0997
A23: 21:00:00 | B23: 0.5145 | C23: 0.5186666667 | D23: 0.5704 | E23: 0.6255 | F23: 0.5975333333 | G23: 0.5416 | H23: 0.6004333333 | I23: 0.4425666667 | J23: 0.6043333333 | K23: 0.5785333333 | L23: 0.5255333333 | M23: 0.5629 | N23: 0.5495666667 | O23: 0.6440666667 | P23: 0.6231666667 | Q23: 0.5654666667 | R23: 0.5016333333 | S23: 0.6119 | T23: 0.5975333333 | U23: 0.09503333333
A24: 22:00:00 | B24: 0.4615666667 | C24: 0.4682333333 | D24: 0.5098 | E24: 0.5708 | F24: 0.5362 | G24: 0.4758333333 | H24: 0.5405666667 | I24: 0.395 | J24: 0.5360666667 | K24: 0.5211333333 | L24: 0.4728666667 | M24: 0.5004666667 | N24: 0.4933333333 | O24: 0.5601666667 | P24: 0.5638666667 | Q24: 0.5097 | R24: 0.4267 | S24: 0.5509666667 | T24: 0.5361666667 | U24: 0.084
A25: 23:00:00 | B25: 0.3968 | C25: 0.4023 | D25: 0.4358 | E25: 0.4937333333 | F25: 0.4681333333 | G25: 0.4072333333 | H25: 0.4657333333 | I25: 0.3384 | J25: 0.4610666667 | K25: 0.4516333333 | L25: 0.4084 | M25: 0.4294666667 | N25: 0.434 | O25: 0.4612 | P25: 0.4921 | Q25: 0.4377666667 | R25: 0.3565333333 | S25: 0.4768666667 | T25: 0.4667666667 | U25: 0.07026666667
